{"text_format":"1","workbook":"xlsx","n_sheets":6,"sheets":["MYFF - Cabo Verde","MYFF - Outcome 1.1","MYFF - Outcome 2.1","MYFF - Outcome 2.2","MYFF - Outcome 3.1","Sheet1"],"not_rendered":{"charts":0,"images":0,"macros":0,"external_links":0,"defined_names":11,"comments":0,"pivot_tables":0},"unopened":[],"bounds":{"document_bytes":16777216,"sheet_cells":100000,"rows_first":2000,"rows_last":500,"rows_between":2000,"halvings":0,"cell_chars":16384,"cell_head_chars":4096},"cells_cut":0,"cells_raw":0,"read":"whole","date_system":"1900"}

{"sheet":"MYFF - Cabo Verde","index":0,"n_rows":51,"n_cols":28,"rows_kept":51,"cut":false,"hidden":false,"merged":[[50,0,50,2],[3,3,3,7],[3,12,3,15],[3,16,3,19],[3,20,3,23],[35,0,48,0],[2,0,4,0],[35,1,48,1],[2,1,4,1],[17,0,27,0],[17,1,27,1],[28,0,34,0],[28,1,34,1],[1,0,1,27],[3,8,3,11],[5,1,16,1],[0,0,0,27],[2,2,4,2],[2,3,2,27],[3,24,3,27],[5,0,16,0]]}
["Multi-Year Funding Framework (MYFF) - United Nations Sustainable Development Cooperation Framework (UNSDCF) 2023-2027 Cabo Verde"]
["Vision: All people in Cabo Verde realize their full potential in a consolidated democratic, safe, inclusive, equitable and resilient country, without extreme poverty, dully integrated in the region"]
["Cooperation Framework Outcome","Predicted cost of the outcome","UN Entity"]
[null,null,null,"MYFF (2023-2027)",null,null,null,null,"YEAR 1 (2023)",null,null,null,"YEAR 2 (2024)",null,null,null,"YEAR 3 (2025)",null,null,null,"YEAR 4 (2026)",null,null,null,"YEAR 5 (2027)"]
[null,null,null,"Total Funding Required ","Available Funding","Source of Available Funding\n","Type of Available Funding (assessed, core, non-core)","Funding to be Mobilized \n(D - E)","Total Funding Required ","Available Funding","Source of Available Funding","Funding to be Mobilized ","Total Funding Required ","Available Funding ","Source of Available Funding","Funding to be Mobilized ","Total Funding Required ","Available Funding ","Source of Available Funding","Funding to be Mobilized ","Total Funding Required ","Available Funding","Source of Available Funding","Funding to be Mobilized ","Total Funding Required ","Available Funding","Source of Available Funding","Funding to be Mobilized "]
["Outcome 1.1.  By 2027, more people, especially those living in the most vulnerable and marginalized situations and those living with disabilities, have equitable access to and use of high-quality, resilient, gender-responsive, and modern essential social services and protection",{"$f":"D17","v":18031952},"ILO",{"$f":"SUM(I6+M6+Q6+U6+Y6)","v":390298},{"$f":"SUM(J6+N6+R6+V6+Z6)","v":390298},null,null,{"$f":"D6-E6","v":0},{"$f":"'MYFF - Outcome 1.1'!I6+'MYFF - Outcome 1.1'!I15+'MYFF - Outcome 1.1'!I26","v":173872},{"$f":"'MYFF - Outcome 1.1'!J6+'MYFF - Outcome 1.1'!J15+'MYFF - Outcome 1.1'!J26","v":173872}," ",{"$f":"I6-J6","v":0},{"$f":"'MYFF - Outcome 1.1'!M6+'MYFF - Outcome 1.1'!M15+'MYFF - Outcome 1.1'!M26","v":154952},{"$f":"'MYFF - Outcome 1.1'!N6+'MYFF - Outcome 1.1'!N15+'MYFF - Outcome 1.1'!N26","v":154952}," ",{"$f":"M6-N6","v":0},{"$f":"'MYFF - Outcome 1.1'!Q6+'MYFF - Outcome 1.1'!Q15+'MYFF - Outcome 1.1'!Q26","v":31474},{"$f":"'MYFF - Outcome 1.1'!R6+'MYFF - Outcome 1.1'!R15+'MYFF - Outcome 1.1'!R26","v":31474}," ",{"$f":"Q6-R6","v":0},{"$f":"'MYFF - Outcome 1.1'!U6+'MYFF - Outcome 1.1'!U15+'MYFF - Outcome 1.1'!U26","v":30000},{"$f":"'MYFF - Outcome 1.1'!V6+'MYFF - Outcome 1.1'!V15+'MYFF - Outcome 1.1'!V26","v":30000}," ",{"$f":"U6-V6","v":0},{"$f":"'MYFF - Outcome 1.1'!Y6+'MYFF - Outcome 1.1'!Y15+'MYFF - Outcome 1.1'!Y26","v":0},{"$f":"'MYFF - Outcome 1.1'!Z6+'MYFF - Outcome 1.1'!Z15+'MYFF - Outcome 1.1'!Z26","v":0}," ",{"$f":"Y6-Z6","v":0}]
[null,null,"IOM",822675,42675,null,null,780000,{"$f":"'MYFF - Outcome 1.1'!I16","v":22675},{"$f":"'MYFF - Outcome 1.1'!J16","v":22675}," ",{"$f":"'MYFF - Outcome 1.1'!L16","v":0},{"$f":"'MYFF - Outcome 1.1'!M16","v":20000},{"$f":"'MYFF - Outcome 1.1'!N16","v":20000}," ",{"$f":"'MYFF - Outcome 1.1'!P16","v":0},{"$f":"'MYFF - Outcome 1.1'!Q16","v":280000},{"$f":"'MYFF - Outcome 1.1'!R16","v":0}," ",{"$f":"'MYFF - Outcome 1.1'!T16","v":280000},{"$f":"'MYFF - Outcome 1.1'!U16","v":250000},{"$f":"'MYFF - Outcome 1.1'!V16","v":0}," ",{"$f":"'MYFF - Outcome 1.1'!X16","v":250000},{"$f":"'MYFF - Outcome 1.1'!Y16","v":250000},{"$f":"'MYFF - Outcome 1.1'!Z16","v":0}," ",{"$f":"'MYFF - Outcome 1.1'!AB16","v":250000}]
[null,null,"ITU",{"$f":"SUM(I8+M8+Q8+U8+Y8)","v":80000},{"$f":"SUM(J8+N8+R8+V8+Z8)","v":35000},null,null,{"$f":"D8-E8","v":45000},{"$f":"'MYFF - Outcome 1.1'!I20+'MYFF - Outcome 1.1'!I27","v":50000},{"$f":"'MYFF - Outcome 1.1'!J20+'MYFF - Outcome 1.1'!J27","v":15000}," ",{"$f":"'MYFF - Outcome 1.1'!L20+'MYFF - Outcome 1.1'!L27","v":35000},{"$f":"'MYFF - Outcome 1.1'!M20+'MYFF - Outcome 1.1'!M27","v":30000},{"$f":"'MYFF - Outcome 1.1'!N20+'MYFF - Outcome 1.1'!N27","v":20000}," ",{"$f":"'MYFF - Outcome 1.1'!P20+'MYFF - Outcome 1.1'!P27","v":10000},{"$f":"'MYFF - Outcome 1.1'!Q20+'MYFF - Outcome 1.1'!Q27","v":0},{"$f":"'MYFF - Outcome 1.1'!R20+'MYFF - Outcome 1.1'!R27","v":0}," ",{"$f":"'MYFF - Outcome 1.1'!T20+'MYFF - Outcome 1.1'!T27","v":0},{"$f":"'MYFF - Outcome 1.1'!U20+'MYFF - Outcome 1.1'!U27","v":0},{"$f":"'MYFF - Outcome 1.1'!V20+'MYFF - Outcome 1.1'!V27","v":0}," ",{"$f":"'MYFF - Outcome 1.1'!X20+'MYFF - Outcome 1.1'!X27","v":0},{"$f":"'MYFF - Outcome 1.1'!Y20+'MYFF - Outcome 1.1'!Y27","v":0},{"$f":"'MYFF - Outcome 1.1'!Z20+'MYFF - Outcome 1.1'!Z27","v":0}," ",{"$f":"'MYFF - Outcome 1.1'!AB20+'MYFF - Outcome 1.1'!AB27","v":0}]
[null,null,"UNDP",401000,292000,null,null,109000,{"$f":"'MYFF - Outcome 1.1'!I7+'MYFF - Outcome 1.1'!I17","v":161000},{"$f":"'MYFF - Outcome 1.1'!J7+'MYFF - Outcome 1.1'!J17","v":114000}," ",{"$f":"'MYFF - Outcome 1.1'!L7+'MYFF - Outcome 1.1'!L17","v":47000},{"$f":"'MYFF - Outcome 1.1'!M7+'MYFF - Outcome 1.1'!M17","v":213000},{"$f":"'MYFF - Outcome 1.1'!N7+'MYFF - Outcome 1.1'!N17","v":168000}," ",{"$f":"'MYFF - Outcome 1.1'!P7+'MYFF - Outcome 1.1'!P17","v":45000},{"$f":"'MYFF - Outcome 1.1'!Q7+'MYFF - Outcome 1.1'!Q17","v":27000},{"$f":"'MYFF - Outcome 1.1'!R7+'MYFF - Outcome 1.1'!R17","v":10000}," ",{"$f":"'MYFF - Outcome 1.1'!T7+'MYFF - Outcome 1.1'!T17","v":17000},{"$f":"'MYFF - Outcome 1.1'!U7+'MYFF - Outcome 1.1'!U17","v":0},{"$f":"'MYFF - Outcome 1.1'!V7+'MYFF - Outcome 1.1'!V17","v":0}," ",{"$f":"'MYFF - Outcome 1.1'!X7+'MYFF - Outcome 1.1'!X17","v":0},{"$f":"'MYFF - Outcome 1.1'!Y7+'MYFF - Outcome 1.1'!Y17","v":0},{"$f":"'MYFF - Outcome 1.1'!Z7+'MYFF - Outcome 1.1'!Z17","v":0}," ",{"$f":"'MYFF - Outcome 1.1'!AB7+'MYFF - Outcome 1.1'!AB17","v":0}]
[null,null,"UNESCO",546000,123000,null,null,423000,{"$f":"'MYFF - Outcome 1.1'!I18","v":0},{"$f":"'MYFF - Outcome 1.1'!J18","v":15000}," ",{"$f":"'MYFF - Outcome 1.1'!L18","v":-15000},{"$f":"'MYFF - Outcome 1.1'!M18","v":108000},{"$f":"'MYFF - Outcome 1.1'!N18","v":108000}," ",{"$f":"'MYFF - Outcome 1.1'!P18","v":0},{"$f":"'MYFF - Outcome 1.1'!Q18","v":150000},{"$f":"'MYFF - Outcome 1.1'!R18","v":0}," ",{"$f":"'MYFF - Outcome 1.1'!T18","v":150000},{"$f":"'MYFF - Outcome 1.1'!U18","v":150000},{"$f":"'MYFF - Outcome 1.1'!V18","v":0}," ",{"$f":"'MYFF - Outcome 1.1'!X18","v":150000},{"$f":"'MYFF - Outcome 1.1'!Y18","v":138000},{"$f":"'MYFF - Outcome 1.1'!Z18","v":0}," ",{"$f":"'MYFF - Outcome 1.1'!AB18","v":138000}]
[null,null,"UNFPA",1134350,1044350,null,null,90000,{"$f":"'MYFF - Outcome 1.1'!I8+'MYFF - Outcome 1.1'!I19+'MYFF - Outcome 1.1'!I28","v":235000},{"$f":"'MYFF - Outcome 1.1'!J8+'MYFF - Outcome 1.1'!J19+'MYFF - Outcome 1.1'!J28","v":235000}," ",{"$f":"'MYFF - Outcome 1.1'!L8+'MYFF - Outcome 1.1'!L19+'MYFF - Outcome 1.1'!L28","v":0},{"$f":"'MYFF - Outcome 1.1'!M8+'MYFF - Outcome 1.1'!M19+'MYFF - Outcome 1.1'!M28","v":420000},{"$f":"'MYFF - Outcome 1.1'!N8+'MYFF - Outcome 1.1'!N19+'MYFF - Outcome 1.1'!N28","v":420000}," ",{"$f":"'MYFF - Outcome 1.1'!P8+'MYFF - Outcome 1.1'!P19+'MYFF - Outcome 1.1'!P28","v":0},{"$f":"'MYFF - Outcome 1.1'!Q8+'MYFF - Outcome 1.1'!Q19+'MYFF - Outcome 1.1'!Q28","v":200000},{"$f":"'MYFF - Outcome 1.1'!R8+'MYFF - Outcome 1.1'!R19+'MYFF - Outcome 1.1'!R28","v":170000}," ",{"$f":"'MYFF - Outcome 1.1'!T8+'MYFF - Outcome 1.1'!T19+'MYFF - Outcome 1.1'!T28","v":30000},{"$f":"'MYFF - Outcome 1.1'!U8+'MYFF - Outcome 1.1'!U19+'MYFF - Outcome 1.1'!U28","v":200000},{"$f":"'MYFF - Outcome 1.1'!V8+'MYFF - Outcome 1.1'!V19+'MYFF - Outcome 1.1'!V28","v":170000}," ",{"$f":"'MYFF - Outcome 1.1'!X8+'MYFF - Outcome 1.1'!X19+'MYFF - Outcome 1.1'!X28","v":30000},{"$f":"'MYFF - Outcome 1.1'!Y8+'MYFF - Outcome 1.1'!Y19+'MYFF - Outcome 1.1'!Y28","v":79350},{"$f":"'MYFF - Outcome 1.1'!Z8+'MYFF - Outcome 1.1'!Z19+'MYFF - Outcome 1.1'!Z28","v":49350}," ",{"$f":"'MYFF - Outcome 1.1'!AB8+'MYFF - Outcome 1.1'!AB19+'MYFF - Outcome 1.1'!AB28","v":30000}]
[null,null,"UNHABITAT",720191,243455,null,null,476736,{"$f":"'MYFF - Outcome 1.1'!I9","v":30000},{"$f":"'MYFF - Outcome 1.1'!J9","v":30000}," ",{"$f":"'MYFF - Outcome 1.1'!L9","v":0},{"$f":"'MYFF - Outcome 1.1'!M9","v":133455},{"$f":"'MYFF - Outcome 1.1'!N9","v":133455}," ",{"$f":"'MYFF - Outcome 1.1'!P9","v":0},{"$f":"'MYFF - Outcome 1.1'!Q9","v":200000},{"$f":"'MYFF - Outcome 1.1'!R9","v":80000}," ",{"$f":"'MYFF - Outcome 1.1'!T9","v":120000},{"$f":"'MYFF - Outcome 1.1'!U9","v":200000},{"$f":"'MYFF - Outcome 1.1'!V9","v":0}," ",{"$f":"'MYFF - Outcome 1.1'!X9","v":200000},{"$f":"'MYFF - Outcome 1.1'!Y9","v":156736},{"$f":"'MYFF - Outcome 1.1'!Z9","v":0}," ",{"$f":"'MYFF - Outcome 1.1'!AB9","v":156736}]
[null,null,"UNICEF",7053914,3724214,null,null,3329700,{"$f":"'MYFF - Outcome 1.1'!I10+'MYFF - Outcome 1.1'!I21+'MYFF - Outcome 1.1'!I29","v":2294414},{"$f":"'MYFF - Outcome 1.1'!J10+'MYFF - Outcome 1.1'!J21+'MYFF - Outcome 1.1'!J29","v":2219414}," ",{"$f":"'MYFF - Outcome 1.1'!L10+'MYFF - Outcome 1.1'!L21+'MYFF - Outcome 1.1'!L29","v":75000},{"$f":"'MYFF - Outcome 1.1'!M10+'MYFF - Outcome 1.1'!M21+'MYFF - Outcome 1.1'!M29","v":1312500},{"$f":"'MYFF - Outcome 1.1'!N10+'MYFF - Outcome 1.1'!N21+'MYFF - Outcome 1.1'!N29","v":1154000}," ",{"$f":"'MYFF - Outcome 1.1'!P10+'MYFF - Outcome 1.1'!P21+'MYFF - Outcome 1.1'!P29","v":158500},{"$f":"'MYFF - Outcome 1.1'!Q10+'MYFF - Outcome 1.1'!Q21+'MYFF - Outcome 1.1'!Q29","v":1947000},{"$f":"'MYFF - Outcome 1.1'!R10+'MYFF - Outcome 1.1'!R21+'MYFF - Outcome 1.1'!R29","v":340800}," ",{"$f":"'MYFF - Outcome 1.1'!T10+'MYFF - Outcome 1.1'!T21+'MYFF - Outcome 1.1'!T29","v":1606200},{"$f":"'MYFF - Outcome 1.1'!U10+'MYFF - Outcome 1.1'!U21+'MYFF - Outcome 1.1'!U29","v":910000},{"$f":"'MYFF - Outcome 1.1'!V10+'MYFF - Outcome 1.1'!V21+'MYFF - Outcome 1.1'!V29","v":10000}," ",{"$f":"'MYFF - Outcome 1.1'!X10+'MYFF - Outcome 1.1'!X21+'MYFF - Outcome 1.1'!X29","v":900000},{"$f":"'MYFF - Outcome 1.1'!Y10+'MYFF - Outcome 1.1'!Y21+'MYFF - Outcome 1.1'!Y29","v":590000},{"$f":"'MYFF - Outcome 1.1'!Z10+'MYFF - Outcome 1.1'!Z21+'MYFF - Outcome 1.1'!Z29","v":0}," ",{"$f":"'MYFF - Outcome 1.1'!AB10+'MYFF - Outcome 1.1'!AB21+'MYFF - Outcome 1.1'!AB29","v":590000}]
[null,null,"UNODC",1120302,385802,null,null,734500,{"$f":"'MYFF - Outcome 1.1'!I11+'MYFF - Outcome 1.1'!I22+'MYFF - Outcome 1.1'!I30","v":317136},{"$f":"'MYFF - Outcome 1.1'!J11+'MYFF - Outcome 1.1'!J22+'MYFF - Outcome 1.1'!J30","v":252736}," ",{"$f":"'MYFF - Outcome 1.1'!L11+'MYFF - Outcome 1.1'!L22+'MYFF - Outcome 1.1'!L30","v":64400},{"$f":"'MYFF - Outcome 1.1'!M11+'MYFF - Outcome 1.1'!M22+'MYFF - Outcome 1.1'!M30","v":160302},{"$f":"'MYFF - Outcome 1.1'!N11+'MYFF - Outcome 1.1'!N22+'MYFF - Outcome 1.1'!N30","v":124802}," ",{"$f":"'MYFF - Outcome 1.1'!P11+'MYFF - Outcome 1.1'!P22+'MYFF - Outcome 1.1'!P30","v":35500},{"$f":"'MYFF - Outcome 1.1'!Q11+'MYFF - Outcome 1.1'!Q22+'MYFF - Outcome 1.1'!Q30","v":292864},{"$f":"'MYFF - Outcome 1.1'!R11+'MYFF - Outcome 1.1'!R22+'MYFF - Outcome 1.1'!R30","v":8264}," ",{"$f":"'MYFF - Outcome 1.1'!T11+'MYFF - Outcome 1.1'!T22+'MYFF - Outcome 1.1'!T30","v":284600},{"$f":"'MYFF - Outcome 1.1'!U11+'MYFF - Outcome 1.1'!U22+'MYFF - Outcome 1.1'!U30","v":220000},{"$f":"'MYFF - Outcome 1.1'!V11+'MYFF - Outcome 1.1'!V22+'MYFF - Outcome 1.1'!V30","v":0}," ",{"$f":"'MYFF - Outcome 1.1'!X11+'MYFF - Outcome 1.1'!X22+'MYFF - Outcome 1.1'!X30","v":220000},{"$f":"'MYFF - Outcome 1.1'!Y11+'MYFF - Outcome 1.1'!Y22+'MYFF - Outcome 1.1'!Y30","v":130000},{"$f":"'MYFF - Outcome 1.1'!Z11+'MYFF - Outcome 1.1'!Z22+'MYFF - Outcome 1.1'!Z30","v":0}," ",{"$f":"'MYFF - Outcome 1.1'!AB11+'MYFF - Outcome 1.1'!AB22+'MYFF - Outcome 1.1'!AB30","v":130000}]
[null,null,"UNWOMEN",150000,0,null,null,150000,30000,0," ",{"$f":"I15-J15","v":30000},30000,0," ",{"$f":"M15-N15","v":30000},30000,0," ",{"$f":"Q15-R15","v":30000},30000,0," ",{"$f":"U15-V15","v":30000},30000,0," ",{"$f":"Y15-Z15","v":30000}]
[null,null,"WHO",5613222,2331673,null,null,3281549,{"$f":"'MYFF - Outcome 1.1'!I13+'MYFF - Outcome 1.1'!I24+'MYFF - Outcome 1.1'!I32","v":1182000},{"$f":"'MYFF - Outcome 1.1'!J13+'MYFF - Outcome 1.1'!J24+'MYFF - Outcome 1.1'!J32","v":1182000}," ",{"$f":"'MYFF - Outcome 1.1'!L13+'MYFF - Outcome 1.1'!L24+'MYFF - Outcome 1.1'!L32","v":0},{"$f":"'MYFF - Outcome 1.1'!M13+'MYFF - Outcome 1.1'!M24+'MYFF - Outcome 1.1'!M32","v":1544348},{"$f":"'MYFF - Outcome 1.1'!N13+'MYFF - Outcome 1.1'!N24+'MYFF - Outcome 1.1'!N32","v":1149673}," ",{"$f":"'MYFF - Outcome 1.1'!P13+'MYFF - Outcome 1.1'!P24+'MYFF - Outcome 1.1'!P32","v":394675},{"$f":"'MYFF - Outcome 1.1'!Q13+'MYFF - Outcome 1.1'!Q24+'MYFF - Outcome 1.1'!Q32","v":1501874},{"$f":"'MYFF - Outcome 1.1'!R13+'MYFF - Outcome 1.1'!R24+'MYFF - Outcome 1.1'!R32","v":0}," ",{"$f":"'MYFF - Outcome 1.1'!T13+'MYFF - Outcome 1.1'!T24+'MYFF - Outcome 1.1'!T32","v":1501874},{"$f":"'MYFF - Outcome 1.1'!U13+'MYFF - Outcome 1.1'!U24+'MYFF - Outcome 1.1'!U32","v":1010000},{"$f":"'MYFF - Outcome 1.1'!V13+'MYFF - Outcome 1.1'!V24+'MYFF - Outcome 1.1'!V32","v":0}," ",{"$f":"'MYFF - Outcome 1.1'!X13+'MYFF - Outcome 1.1'!X24+'MYFF - Outcome 1.1'!X32","v":1010000},{"$f":"'MYFF - Outcome 1.1'!Y13+'MYFF - Outcome 1.1'!Y24+'MYFF - Outcome 1.1'!Y32","v":375000},{"$f":"'MYFF - Outcome 1.1'!Z13+'MYFF - Outcome 1.1'!Z24+'MYFF - Outcome 1.1'!Z32","v":0}," ",{"$f":"'MYFF - Outcome 1.1'!AB13+'MYFF - Outcome 1.1'!AB24+'MYFF - Outcome 1.1'!AB32","v":375000}]
[null,null,"Total",{"$f":"SUM(D6:D16)","v":18031952},{"$f":"SUM(E6:E16)","v":8612467},null,null,{"$f":"SUM(H6:H16)","v":9419485},{"$f":"SUM(I6:I16)","v":4496097},{"$f":"SUM(J6:J16)","v":4259697},null,{"$f":"SUM(L6:L16)","v":236400},{"$f":"SUM(M6:M16)","v":4126557},{"$f":"SUM(N6:N16)","v":3452882},null,{"$f":"SUM(P6:P16)","v":673675},{"$f":"SUM(Q6:Q16)","v":4660212},{"$f":"SUM(R6:R16)","v":640538},null,{"$f":"SUM(T6:T16)","v":4019674},{"$f":"SUM(U6:U16)","v":3000000},{"$f":"SUM(V6:V16)","v":210000},null,{"$f":"SUM(X6:X16)","v":2790000},{"$f":"SUM(Y6:Y16)","v":1749086},{"$f":"SUM(Z6:Z16)","v":49350},null,{"$f":"SUM(AB6:AB16)","v":1699736}]
["Outcome 2.1: By 2027, a more sustainable, inclusive, diversified and integrated economy generates decent jobs, food security and nutrition for the most vulnerable, especially women, youth and the extreme poor",{"$f":"D28","v":28421698.867021278},"FAO",{"$f":"SUM(I18+M18+Q18+U18+Y18)","v":7436808},3168103,null,null,{"$f":"D18-E18","v":4268705},{"$f":"'MYFF - Outcome 2.1'!I6+'MYFF - Outcome 2.1'!I15+'MYFF - Outcome 2.1'!I21","v":1449500},{"$f":"'MYFF - Outcome 2.1'!J6+'MYFF - Outcome 2.1'!J15+'MYFF - Outcome 2.1'!J21","v":1410914}," ",{"$f":"'MYFF - Outcome 2.1'!L6+'MYFF - Outcome 2.1'!L15+'MYFF - Outcome 2.1'!L21","v":38586},{"$f":"'MYFF - Outcome 2.1'!M6+'MYFF - Outcome 2.1'!M15+'MYFF - Outcome 2.1'!M21","v":1757189},{"$f":"'MYFF - Outcome 2.1'!N6+'MYFF - Outcome 2.1'!N15+'MYFF - Outcome 2.1'!N21","v":1757189}," ",{"$f":"'MYFF - Outcome 2.1'!P6+'MYFF - Outcome 2.1'!P15+'MYFF - Outcome 2.1'!P21","v":0},{"$f":"'MYFF - Outcome 2.1'!Q6+'MYFF - Outcome 2.1'!Q15+'MYFF - Outcome 2.1'!Q21","v":1580119},{"$f":"'MYFF - Outcome 2.1'!R6+'MYFF - Outcome 2.1'!R15+'MYFF - Outcome 2.1'!R21","v":0},null,{"$f":"'MYFF - Outcome 2.1'!T6+'MYFF - Outcome 2.1'!T15+'MYFF - Outcome 2.1'!T21","v":1580119},{"$f":"'MYFF - Outcome 2.1'!U6+'MYFF - Outcome 2.1'!U15+'MYFF - Outcome 2.1'!U21","v":1450000},{"$f":"'MYFF - Outcome 2.1'!V6+'MYFF - Outcome 2.1'!V15+'MYFF - Outcome 2.1'!V21","v":0},null,{"$f":"'MYFF - Outcome 2.1'!X6+'MYFF - Outcome 2.1'!X15+'MYFF - Outcome 2.1'!X21","v":1450000},{"$f":"'MYFF - Outcome 2.1'!Y6+'MYFF - Outcome 2.1'!Y15+'MYFF - Outcome 2.1'!Y21","v":1200000},{"$f":"'MYFF - Outcome 2.1'!Z6+'MYFF - Outcome 2.1'!Z15+'MYFF - Outcome 2.1'!Z21","v":0},null,{"$f":"'MYFF - Outcome 2.1'!AB6+'MYFF - Outcome 2.1'!AB15+'MYFF - Outcome 2.1'!AB21","v":1200000}]
[null,null,"ILO",2741475,2270689,null,null,470786,{"$f":"'MYFF - Outcome 2.1'!I7","v":374451},{"$f":"'MYFF - Outcome 2.1'!J7","v":354451},{"$f":"'MYFF - Outcome 2.1'!K7","v":"Luxem bourg, Joint SDG, Finland"},{"$f":"'MYFF - Outcome 2.1'!L7","v":20000},{"$f":"'MYFF - Outcome 2.1'!M7","v":757024},{"$f":"'MYFF - Outcome 2.1'!N7","v":636238},{"$f":"'MYFF - Outcome 2.1'!O7","v":"Luxembourg, Finland"},{"$f":"'MYFF - Outcome 2.1'!P7","v":120786},{"$f":"'MYFF - Outcome 2.1'!Q7","v":750000},{"$f":"'MYFF - Outcome 2.1'!R7","v":640000},null,{"$f":"'MYFF - Outcome 2.1'!T7","v":110000},{"$f":"'MYFF - Outcome 2.1'!U7","v":750000},{"$f":"'MYFF - Outcome 2.1'!V7","v":640000},null,{"$f":"'MYFF - Outcome 2.1'!X7","v":110000},{"$f":"'MYFF - Outcome 2.1'!Y7","v":110000},{"$f":"'MYFF - Outcome 2.1'!Z7","v":0},null,{"$f":"'MYFF - Outcome 2.1'!AB7","v":110000}]
[null,null,"IOM",7505537,612215,null,null,6893322,{"$f":"'MYFF - Outcome 2.1'!I8+'MYFF - Outcome 2.1'!I24","v":275940},{"$f":"'MYFF - Outcome 2.1'!J8+'MYFF - Outcome 2.1'!J24","v":275940}," ",{"$f":"'MYFF - Outcome 2.1'!L8+'MYFF - Outcome 2.1'!L24","v":0},{"$f":"'MYFF - Outcome 2.1'!M8+'MYFF - Outcome 2.1'!M24","v":336275},{"$f":"'MYFF - Outcome 2.1'!N8+'MYFF - Outcome 2.1'!N24","v":336275}," ",{"$f":"'MYFF - Outcome 2.1'!P8+'MYFF - Outcome 2.1'!P24","v":0},{"$f":"'MYFF - Outcome 2.1'!Q8+'MYFF - Outcome 2.1'!Q24","v":2493322},{"$f":"'MYFF - Outcome 2.1'!R8+'MYFF - Outcome 2.1'!R24","v":0},null,{"$f":"'MYFF - Outcome 2.1'!T8+'MYFF - Outcome 2.1'!T24","v":2493322},{"$f":"'MYFF - Outcome 2.1'!U8+'MYFF - Outcome 2.1'!U24","v":2300000},{"$f":"'MYFF - Outcome 2.1'!V8+'MYFF - Outcome 2.1'!V24","v":0},null,{"$f":"'MYFF - Outcome 2.1'!X8+'MYFF - Outcome 2.1'!X24","v":2300000},{"$f":"'MYFF - Outcome 2.1'!Y8+'MYFF - Outcome 2.1'!Y24","v":2100000},{"$f":"'MYFF - Outcome 2.1'!Z8+'MYFF - Outcome 2.1'!Z24","v":0},null,{"$f":"'MYFF - Outcome 2.1'!AB8+'MYFF - Outcome 2.1'!AB24","v":2100000}]
[null,null,"ITU",15000,10000,null,null,5000,{"$f":"'MYFF - Outcome 2.1'!I9","v":15000},{"$f":"'MYFF - Outcome 2.1'!J9","v":10000},{"$f":"'MYFF - Outcome 2.1'!K9","v":"core funds"},{"$f":"'MYFF - Outcome 2.1'!L9","v":5000},{"$f":"'MYFF - Outcome 2.1'!M9","v":0},{"$f":"'MYFF - Outcome 2.1'!N9","v":0}," ",{"$f":"'MYFF - Outcome 2.1'!P9","v":0},{"$f":"'MYFF - Outcome 2.1'!Q9","v":0},{"$f":"'MYFF - Outcome 2.1'!R9","v":0},null,{"$f":"'MYFF - Outcome 2.1'!T9","v":0},{"$f":"'MYFF - Outcome 2.1'!U9","v":0},{"$f":"'MYFF - Outcome 2.1'!V9","v":0},null,{"$f":"'MYFF - Outcome 2.1'!X9","v":0},{"$f":"'MYFF - Outcome 2.1'!Y9","v":0},{"$f":"'MYFF - Outcome 2.1'!Z9","v":0},null,{"$f":"'MYFF - Outcome 2.1'!AB9","v":0}]
[null,null,"UNDP",3017850,2221000,null,null,796850,{"$f":"'MYFF - Outcome 2.1'!I10+'MYFF - Outcome 2.1'!I16+'MYFF - Outcome 2.1'!I25","v":847850},{"$f":"'MYFF - Outcome 2.1'!J10+'MYFF - Outcome 2.1'!J16+'MYFF - Outcome 2.1'!J25","v":701000}," ",{"$f":"'MYFF - Outcome 2.1'!L10+'MYFF - Outcome 2.1'!L16+'MYFF - Outcome 2.1'!L25","v":146850},{"$f":"'MYFF - Outcome 2.1'!M10+'MYFF - Outcome 2.1'!M16+'MYFF - Outcome 2.1'!M25","v":545000},{"$f":"'MYFF - Outcome 2.1'!N10+'MYFF - Outcome 2.1'!N16+'MYFF - Outcome 2.1'!N25","v":520000}," ",{"$f":"'MYFF - Outcome 2.1'!P10+'MYFF - Outcome 2.1'!P16+'MYFF - Outcome 2.1'!P25","v":25000},{"$f":"'MYFF - Outcome 2.1'!Q10+'MYFF - Outcome 2.1'!Q16+'MYFF - Outcome 2.1'!Q25","v":675000},{"$f":"'MYFF - Outcome 2.1'!R10+'MYFF - Outcome 2.1'!R16+'MYFF - Outcome 2.1'!R25","v":500000},null,{"$f":"'MYFF - Outcome 2.1'!T10+'MYFF - Outcome 2.1'!T16+'MYFF - Outcome 2.1'!T25","v":175000},{"$f":"'MYFF - Outcome 2.1'!U10+'MYFF - Outcome 2.1'!U16+'MYFF - Outcome 2.1'!U25","v":550000},{"$f":"'MYFF - Outcome 2.1'!V10+'MYFF - Outcome 2.1'!V16+'MYFF - Outcome 2.1'!V25","v":500000},null,{"$f":"'MYFF - Outcome 2.1'!X10+'MYFF - Outcome 2.1'!X16+'MYFF - Outcome 2.1'!X25","v":50000},{"$f":"'MYFF - Outcome 2.1'!Y10+'MYFF - Outcome 2.1'!Y16+'MYFF - Outcome 2.1'!Y25","v":400000},{"$f":"'MYFF - Outcome 2.1'!Z10+'MYFF - Outcome 2.1'!Z16+'MYFF - Outcome 2.1'!Z25","v":0},null,{"$f":"'MYFF - Outcome 2.1'!AB10+'MYFF - Outcome 2.1'!AB16+'MYFF - Outcome 2.1'!AB25","v":400000}]
[null,null,"UNECA",155000,129000,null,null,26000,{"$f":"'MYFF - Outcome 2.1'!I11","v":58000},{"$f":"'MYFF - Outcome 2.1'!J11","v":32000},{"$f":"'MYFF - Outcome 2.1'!K11","v":"core funds"},{"$f":"'MYFF - Outcome 2.1'!L11","v":26000},{"$f":"'MYFF - Outcome 2.1'!M11","v":97000},{"$f":"'MYFF - Outcome 2.1'!N11","v":97000},{"$f":"'MYFF - Outcome 2.1'!O11","v":"core funds"},{"$f":"'MYFF - Outcome 2.1'!P11","v":0},{"$f":"'MYFF - Outcome 2.1'!Q11","v":0},{"$f":"'MYFF - Outcome 2.1'!R11","v":0},null,{"$f":"'MYFF - Outcome 2.1'!T11","v":0},{"$f":"'MYFF - Outcome 2.1'!U11","v":0},{"$f":"'MYFF - Outcome 2.1'!V11","v":0},null,{"$f":"'MYFF - Outcome 2.1'!X11","v":0},{"$f":"'MYFF - Outcome 2.1'!Y11","v":0},{"$f":"'MYFF - Outcome 2.1'!Z11","v":0},null,{"$f":"'MYFF - Outcome 2.1'!AB11","v":0}]
[null,null,"UNESCO",125600,125600,null,null,0,{"$f":"'MYFF - Outcome 2.1'!I17","v":100000},{"$f":"'MYFF - Outcome 2.1'!J17","v":100000},{"$f":"'MYFF - Outcome 2.1'!K17","v":"core funds"},{"$f":"'MYFF - Outcome 2.1'!L17","v":0},{"$f":"'MYFF - Outcome 2.1'!M17","v":25600},{"$f":"'MYFF - Outcome 2.1'!N17","v":25600},{"$f":"'MYFF - Outcome 2.1'!O17","v":"core funds"},{"$f":"'MYFF - Outcome 2.1'!P17","v":0},{"$f":"'MYFF - Outcome 2.1'!Q17","v":0},{"$f":"'MYFF - Outcome 2.1'!R17","v":0},null,{"$f":"'MYFF - Outcome 2.1'!T17","v":0},{"$f":"'MYFF - Outcome 2.1'!U17","v":0},{"$f":"'MYFF - Outcome 2.1'!V17","v":0},null,{"$f":"'MYFF - Outcome 2.1'!X17","v":0},{"$f":"'MYFF - Outcome 2.1'!Y17","v":0},{"$f":"'MYFF - Outcome 2.1'!Z17","v":0},null,{"$f":"'MYFF - Outcome 2.1'!AB17","v":0}]
[null,null,"UNIDO",6082712.8670212766,192163," "," ",5890549.8670212766,{"$f":"'MYFF - Outcome 2.1'!I12+'MYFF - Outcome 2.1'!I18+'MYFF - Outcome 2.1'!I26","v":91477},{"$f":"'MYFF - Outcome 2.1'!J12+'MYFF - Outcome 2.1'!J18+'MYFF - Outcome 2.1'!J26","v":91477}," ",{"$f":"'MYFF - Outcome 2.1'!L12+'MYFF - Outcome 2.1'!L18+'MYFF - Outcome 2.1'!L26","v":0},{"$f":"'MYFF - Outcome 2.1'!M12+'MYFF - Outcome 2.1'!M18+'MYFF - Outcome 2.1'!M26","v":600686},{"$f":"'MYFF - Outcome 2.1'!N12+'MYFF - Outcome 2.1'!N18+'MYFF - Outcome 2.1'!N26","v":100686}," ",{"$f":"'MYFF - Outcome 2.1'!P12+'MYFF - Outcome 2.1'!P18+'MYFF - Outcome 2.1'!P26","v":500000},{"$f":"'MYFF - Outcome 2.1'!Q12+'MYFF - Outcome 2.1'!Q18+'MYFF - Outcome 2.1'!Q26","v":2472774.9335106383},{"$f":"'MYFF - Outcome 2.1'!R12+'MYFF - Outcome 2.1'!R18+'MYFF - Outcome 2.1'!R26","v":0},null,{"$f":"'MYFF - Outcome 2.1'!T12+'MYFF - Outcome 2.1'!T18+'MYFF - Outcome 2.1'!T26","v":2472774.9335106383},{"$f":"'MYFF - Outcome 2.1'!U12+'MYFF - Outcome 2.1'!U18+'MYFF - Outcome 2.1'!U26","v":1486387.4667553192},{"$f":"'MYFF - Outcome 2.1'!V12+'MYFF - Outcome 2.1'!V18+'MYFF - Outcome 2.1'!V26","v":0},null,{"$f":"'MYFF - Outcome 2.1'!X12+'MYFF - Outcome 2.1'!X18+'MYFF - Outcome 2.1'!X26","v":1486387.4667553192},{"$f":"'MYFF - Outcome 2.1'!Y12+'MYFF - Outcome 2.1'!Y18+'MYFF - Outcome 2.1'!Y26","v":1431387.4667553192},{"$f":"'MYFF - Outcome 2.1'!Z12+'MYFF - Outcome 2.1'!Z18+'MYFF - Outcome 2.1'!Z26","v":0},null,{"$f":"'MYFF - Outcome 2.1'!AB12+'MYFF - Outcome 2.1'!AB18+'MYFF - Outcome 2.1'!AB26","v":1431387.4667553192}]
[null,null,"WFP",{"$f":"SUM(I26+M26+Q26+U26+Y26)","v":990000},{"$f":"SUM(J26+N26+R26+V26+Z26)","v":990000},null,null,{"$f":"D26-E26","v":0},{"$f":"'MYFF - Outcome 2.1'!I22","v":990000},{"$f":"'MYFF - Outcome 2.1'!J22","v":990000},{"$f":"'MYFF - Outcome 2.1'!K22","v":"ECOWAS, Japan"},{"$f":"'MYFF - Outcome 2.1'!L22","v":0},{"$f":"'MYFF - Outcome 2.1'!M22","v":0},{"$f":"'MYFF - Outcome 2.1'!N22","v":0}," ",{"$f":"'MYFF - Outcome 2.1'!P22","v":0},{"$f":"'MYFF - Outcome 2.1'!Q22","v":0},{"$f":"'MYFF - Outcome 2.1'!R22","v":0},null,{"$f":"'MYFF - Outcome 2.1'!T22","v":0},{"$f":"'MYFF - Outcome 2.1'!U22","v":0},{"$f":"'MYFF - Outcome 2.1'!V22","v":0},null,{"$f":"'MYFF - Outcome 2.1'!X22","v":0},{"$f":"'MYFF - Outcome 2.1'!Y22","v":0},{"$f":"'MYFF - Outcome 2.1'!Z22","v":0},null,{"$f":"'MYFF - Outcome 2.1'!AB22","v":0}]
[null,null,"WIPO",351716,351716,null,null,0,{"$f":"'MYFF - Outcome 2.1'!I13+'MYFF - Outcome 2.1'!I19+'MYFF - Outcome 2.1'!I27","v":112137},{"$f":"'MYFF - Outcome 2.1'!J13+'MYFF - Outcome 2.1'!J19+'MYFF - Outcome 2.1'!J27","v":112137}," ",{"$f":"'MYFF - Outcome 2.1'!L13+'MYFF - Outcome 2.1'!L19+'MYFF - Outcome 2.1'!L27","v":0},{"$f":"'MYFF - Outcome 2.1'!M13+'MYFF - Outcome 2.1'!M19+'MYFF - Outcome 2.1'!M27","v":107159},{"$f":"'MYFF - Outcome 2.1'!N13+'MYFF - Outcome 2.1'!N19+'MYFF - Outcome 2.1'!N27","v":107159}," ",{"$f":"'MYFF - Outcome 2.1'!P13+'MYFF - Outcome 2.1'!P19+'MYFF - Outcome 2.1'!P27","v":0},{"$f":"'MYFF - Outcome 2.1'!Q13+'MYFF - Outcome 2.1'!Q19+'MYFF - Outcome 2.1'!Q27","v":132420},{"$f":"'MYFF - Outcome 2.1'!R13+'MYFF - Outcome 2.1'!R19+'MYFF - Outcome 2.1'!R27","v":132420},null,{"$f":"'MYFF - Outcome 2.1'!T13+'MYFF - Outcome 2.1'!T19+'MYFF - Outcome 2.1'!T27","v":0},{"$f":"'MYFF - Outcome 2.1'!U13+'MYFF - Outcome 2.1'!U19+'MYFF - Outcome 2.1'!U27","v":0},{"$f":"'MYFF - Outcome 2.1'!V13+'MYFF - Outcome 2.1'!V19+'MYFF - Outcome 2.1'!V27","v":0},null,{"$f":"'MYFF - Outcome 2.1'!X13+'MYFF - Outcome 2.1'!X19+'MYFF - Outcome 2.1'!X27","v":0},{"$f":"'MYFF - Outcome 2.1'!Y13+'MYFF - Outcome 2.1'!Y19+'MYFF - Outcome 2.1'!Y27","v":0},{"$f":"'MYFF - Outcome 2.1'!Z13+'MYFF - Outcome 2.1'!Z19+'MYFF - Outcome 2.1'!Z27","v":0},null,{"$f":"'MYFF - Outcome 2.1'!AB13+'MYFF - Outcome 2.1'!AB19+'MYFF - Outcome 2.1'!AB27","v":0}]
[null,null,"Total",{"$f":"SUM(D18:D27)","v":28421698.867021278},{"$f":"SUM(E18:E27)","v":10070486},null,null,{"$f":"SUM(H18:H27)","v":18351212.867021278},{"$f":"SUM(I18:I27)","v":4314355},{"$f":"SUM(J18:J27)","v":4077919},null,{"$f":"SUM(L18:L27)","v":236436},{"$f":"SUM(M18:M27)","v":4225933},{"$f":"SUM(N18:N27)","v":3580147},null,{"$f":"SUM(P18:P27)","v":645786},{"$f":"SUM(Q18:Q27)","v":8103635.9335106388},{"$f":"SUM(R18:R27)","v":1272420},null,{"$f":"SUM(T18:T27)","v":6831215.9335106388},{"$f":"SUM(U18:U27)","v":6536387.4667553194},{"$f":"SUM(V18:V27)","v":1140000},null,{"$f":"SUM(X18:X27)","v":5396387.4667553194},{"$f":"SUM(Y18:Y27)","v":5241387.4667553194},{"$f":"SUM(Z18:Z27)","v":0},null,{"$f":"SUM(AB18:AB27)","v":5241387.4667553194}]
["Outcome 2.2: By 2027, key marine and land ecosystems and biodiversity are better protected, restored, and more sustainably managed and the resilience to shocks and climate change impacts are improved and gender responsive.",{"$f":"D35","v":42325148.600000001},"FAO",{"$f":"SUM(I29+M29+Q29+U29+Y29)","v":20978709},15978709,null,null,{"$f":"D29-E29","v":5000000},{"$f":"'MYFF - Outcome 2.2'!I6+'MYFF - Outcome 2.2'!I11+'MYFF - Outcome 2.2'!I19","v":708709},{"$f":"'MYFF - Outcome 2.2'!J6+'MYFF - Outcome 2.2'!J11+'MYFF - Outcome 2.2'!J19","v":708709}," ",{"$f":"'MYFF - Outcome 2.2'!L6+'MYFF - Outcome 2.2'!L11+'MYFF - Outcome 2.2'!L19","v":0},{"$f":"'MYFF - Outcome 2.2'!M6+'MYFF - Outcome 2.2'!M11+'MYFF - Outcome 2.2'!M19","v":670000},{"$f":"'MYFF - Outcome 2.2'!N6+'MYFF - Outcome 2.2'!N11+'MYFF - Outcome 2.2'!N19","v":670000}," ",{"$f":"'MYFF - Outcome 2.2'!P6+'MYFF - Outcome 2.2'!P11+'MYFF - Outcome 2.2'!P19","v":0},{"$f":"'MYFF - Outcome 2.2'!Q6+'MYFF - Outcome 2.2'!Q11+'MYFF - Outcome 2.2'!Q19","v":7600000},{"$f":"'MYFF - Outcome 2.2'!R6+'MYFF - Outcome 2.2'!R11+'MYFF - Outcome 2.2'!R19","v":4600000},null,{"$f":"'MYFF - Outcome 2.2'!T6+'MYFF - Outcome 2.2'!T11+'MYFF - Outcome 2.2'!T19","v":3000000},{"$f":"'MYFF - Outcome 2.2'!U6+'MYFF - Outcome 2.2'!U11+'MYFF - Outcome 2.2'!U19","v":6000000},{"$f":"'MYFF - Outcome 2.2'!V6+'MYFF - Outcome 2.2'!V11+'MYFF - Outcome 2.2'!V19","v":5000000},null,{"$f":"'MYFF - Outcome 2.2'!X6+'MYFF - Outcome 2.2'!X11+'MYFF - Outcome 2.2'!X19","v":1000000},{"$f":"'MYFF - Outcome 2.2'!Y6+'MYFF - Outcome 2.2'!Y11+'MYFF - Outcome 2.2'!Y19","v":6000000},{"$f":"'MYFF - Outcome 2.2'!Z6+'MYFF - Outcome 2.2'!Z11+'MYFF - Outcome 2.2'!Z19","v":5000000},null,{"$f":"'MYFF - Outcome 2.2'!AB6+'MYFF - Outcome 2.2'!AB11+'MYFF - Outcome 2.2'!AB19","v":1000000}]
[null,null,"UNDP",13049806,3590806,null,null,9459000,{"$f":"'MYFF - Outcome 2.2'!I8+'MYFF - Outcome 2.2'!I12+'MYFF - Outcome 2.2'!I20","v":1713017},{"$f":"'MYFF - Outcome 2.2'!J8+'MYFF - Outcome 2.2'!J12+'MYFF - Outcome 2.2'!J20","v":1713017}," ",{"$f":"'MYFF - Outcome 2.2'!L8+'MYFF - Outcome 2.2'!L12+'MYFF - Outcome 2.2'!L20","v":0},{"$f":"'MYFF - Outcome 2.2'!M8+'MYFF - Outcome 2.2'!M12+'MYFF - Outcome 2.2'!M20","v":1877789},{"$f":"'MYFF - Outcome 2.2'!N8+'MYFF - Outcome 2.2'!N12+'MYFF - Outcome 2.2'!N20","v":1877789}," ",{"$f":"'MYFF - Outcome 2.2'!P8+'MYFF - Outcome 2.2'!P12+'MYFF - Outcome 2.2'!P20","v":0},{"$f":"'MYFF - Outcome 2.2'!Q8+'MYFF - Outcome 2.2'!Q12+'MYFF - Outcome 2.2'!Q20","v":3759000},{"$f":"'MYFF - Outcome 2.2'!R8+'MYFF - Outcome 2.2'!R12+'MYFF - Outcome 2.2'!R20","v":0},null,{"$f":"'MYFF - Outcome 2.2'!T8+'MYFF - Outcome 2.2'!T12+'MYFF - Outcome 2.2'!T20","v":3759000},{"$f":"'MYFF - Outcome 2.2'!U8+'MYFF - Outcome 2.2'!U12+'MYFF - Outcome 2.2'!U20","v":2900000},{"$f":"'MYFF - Outcome 2.2'!V8+'MYFF - Outcome 2.2'!V12+'MYFF - Outcome 2.2'!V20","v":0},null,{"$f":"'MYFF - Outcome 2.2'!X8+'MYFF - Outcome 2.2'!X12+'MYFF - Outcome 2.2'!X20","v":2900000},{"$f":"'MYFF - Outcome 2.2'!Y8+'MYFF - Outcome 2.2'!Y12+'MYFF - Outcome 2.2'!Y20","v":2800000},{"$f":"'MYFF - Outcome 2.2'!Z8+'MYFF - Outcome 2.2'!Z12+'MYFF - Outcome 2.2'!Z20","v":0},null,{"$f":"'MYFF - Outcome 2.2'!AB8+'MYFF - Outcome 2.2'!AB12+'MYFF - Outcome 2.2'!AB20","v":2800000}]
[null,null,"UNEP",619782,328422,null,null,291360,{"$f":"'MYFF - Outcome 2.2'!I13","v":180000},{"$f":"'MYFF - Outcome 2.2'!J13","v":124000},{"$f":"'MYFF - Outcome 2.2'!K13","v":"Montreal Protocol"},{"$f":"'MYFF - Outcome 2.2'!L13","v":56000},{"$f":"'MYFF - Outcome 2.2'!M13","v":430600},{"$f":"'MYFF - Outcome 2.2'!N13","v":204422},{"$f":"'MYFF - Outcome 2.2'!O13","v":"Montreal Protocol, GEF, SOFF"},{"$f":"'MYFF - Outcome 2.2'!P13","v":226178},{"$f":"'MYFF - Outcome 2.2'!Q13","v":9182},{"$f":"'MYFF - Outcome 2.2'!R13","v":0},null,{"$f":"'MYFF - Outcome 2.2'!T13","v":9182},{"$f":"'MYFF - Outcome 2.2'!U13","v":0},{"$f":"'MYFF - Outcome 2.2'!V13","v":0},null,{"$f":"'MYFF - Outcome 2.2'!X13","v":0},{"$f":"'MYFF - Outcome 2.2'!Y13","v":0},{"$f":"'MYFF - Outcome 2.2'!Z13","v":0},null,{"$f":"'MYFF - Outcome 2.2'!AB13","v":0}]
[null,null,"UNESCO",598000,196025,null,null,401975,{"$f":"'MYFF - Outcome 2.2'!I9+'MYFF - Outcome 2.2'!I16+'MYFF - Outcome 2.2'!I21","v":143000},{"$f":"'MYFF - Outcome 2.2'!J9+'MYFF - Outcome 2.2'!J16+'MYFF - Outcome 2.2'!J21","v":143000}," ",{"$f":"'MYFF - Outcome 2.2'!L9+'MYFF - Outcome 2.2'!L16+'MYFF - Outcome 2.2'!L21","v":0},{"$f":"'MYFF - Outcome 2.2'!M9+'MYFF - Outcome 2.2'!M16+'MYFF - Outcome 2.2'!M21","v":94000},{"$f":"'MYFF - Outcome 2.2'!N9+'MYFF - Outcome 2.2'!N16+'MYFF - Outcome 2.2'!N21","v":53025}," ",{"$f":"'MYFF - Outcome 2.2'!P9+'MYFF - Outcome 2.2'!P16+'MYFF - Outcome 2.2'!P21","v":40975},{"$f":"'MYFF - Outcome 2.2'!Q9+'MYFF - Outcome 2.2'!Q16+'MYFF - Outcome 2.2'!Q21","v":121000},{"$f":"'MYFF - Outcome 2.2'!R9+'MYFF - Outcome 2.2'!R16+'MYFF - Outcome 2.2'!R21","v":0},null,{"$f":"'MYFF - Outcome 2.2'!T9+'MYFF - Outcome 2.2'!T16+'MYFF - Outcome 2.2'!T21","v":121000},{"$f":"'MYFF - Outcome 2.2'!U9+'MYFF - Outcome 2.2'!U16+'MYFF - Outcome 2.2'!U21","v":120000},{"$f":"'MYFF - Outcome 2.2'!V9+'MYFF - Outcome 2.2'!V16+'MYFF - Outcome 2.2'!V21","v":0},null,{"$f":"'MYFF - Outcome 2.2'!X9+'MYFF - Outcome 2.2'!X16+'MYFF - Outcome 2.2'!X21","v":120000},{"$f":"'MYFF - Outcome 2.2'!Y9+'MYFF - Outcome 2.2'!Y16+'MYFF - Outcome 2.2'!Y21","v":120000},{"$f":"'MYFF - Outcome 2.2'!Z9+'MYFF - Outcome 2.2'!Z16+'MYFF - Outcome 2.2'!Z21","v":0},null,{"$f":"'MYFF - Outcome 2.2'!AB9+'MYFF - Outcome 2.2'!AB16+'MYFF - Outcome 2.2'!AB21","v":120000}]
[null,null,"UNHABITAT",100000,0,null,null,100000,{"$f":"'MYFF - Outcome 2.2'!I7","v":0},{"$f":"'MYFF - Outcome 2.2'!J7","v":0}," ",{"$f":"'MYFF - Outcome 2.2'!L7","v":0},{"$f":"'MYFF - Outcome 2.2'!M7","v":0},{"$f":"'MYFF - Outcome 2.2'!N7","v":0}," ",{"$f":"'MYFF - Outcome 2.2'!P7","v":0},{"$f":"'MYFF - Outcome 2.2'!Q7","v":50000},{"$f":"'MYFF - Outcome 2.2'!R7","v":0},null,{"$f":"'MYFF - Outcome 2.2'!T7","v":50000},{"$f":"'MYFF - Outcome 2.2'!U7","v":50000},{"$f":"'MYFF - Outcome 2.2'!V7","v":0},null,{"$f":"'MYFF - Outcome 2.2'!X7","v":50000},{"$f":"'MYFF - Outcome 2.2'!Y7","v":0},{"$f":"'MYFF - Outcome 2.2'!Z7","v":0},null,{"$f":"'MYFF - Outcome 2.2'!AB7","v":0}]
[null,null,"UNIDO",6978851.6000000006,2064431," "," ",4914420.6000000006,{"$f":"'MYFF - Outcome 2.2'!I14+'MYFF - Outcome 2.2'!I17","v":415603},{"$f":"'MYFF - Outcome 2.2'!J14+'MYFF - Outcome 2.2'!J17","v":415603}," ",{"$f":"'MYFF - Outcome 2.2'!L14+'MYFF - Outcome 2.2'!L17","v":0},{"$f":"'MYFF - Outcome 2.2'!M14+'MYFF - Outcome 2.2'!M17","v":1148828},{"$f":"'MYFF - Outcome 2.2'!N14+'MYFF - Outcome 2.2'!N17","v":1148828}," ",{"$f":"'MYFF - Outcome 2.2'!P14+'MYFF - Outcome 2.2'!P17","v":0},{"$f":"'MYFF - Outcome 2.2'!Q14+'MYFF - Outcome 2.2'!Q17","v":2138140.2000000002},{"$f":"'MYFF - Outcome 2.2'!R14+'MYFF - Outcome 2.2'!R17","v":500000},null,{"$f":"'MYFF - Outcome 2.2'!T14+'MYFF - Outcome 2.2'!T17","v":1638140.2000000002},{"$f":"'MYFF - Outcome 2.2'!U14+'MYFF - Outcome 2.2'!U17","v":1638140.2},{"$f":"'MYFF - Outcome 2.2'!V14+'MYFF - Outcome 2.2'!V17","v":0},null,{"$f":"'MYFF - Outcome 2.2'!X14+'MYFF - Outcome 2.2'!X17","v":1638140.2},{"$f":"'MYFF - Outcome 2.2'!Y14+'MYFF - Outcome 2.2'!Y17","v":1638140.2},{"$f":"'MYFF - Outcome 2.2'!Z14+'MYFF - Outcome 2.2'!Z17","v":0},null,{"$f":"'MYFF - Outcome 2.2'!AB14+'MYFF - Outcome 2.2'!AB17","v":1638140.2}]
[null,null,"Total ",{"$f":"SUM(D29:D34)","v":42325148.600000001},{"$f":"SUM(E29:E34)","v":22158393},null,null,{"$f":"SUM(H29:H34)","v":20166755.600000001},{"$f":"SUM(I29:I34)","v":3160329},{"$f":"SUM(J29:J34)","v":3104329},null,{"$f":"SUM(L29:L34)","v":56000},{"$f":"SUM(M29:M34)","v":4221217},{"$f":"SUM(N29:N34)","v":3954064},null,{"$f":"SUM(P29:P34)","v":267153},{"$f":"SUM(Q29:Q34)","v":13677322.199999999},{"$f":"SUM(R29:R34)","v":5100000},null,{"$f":"SUM(T29:T34)","v":8577322.1999999993},{"$f":"SUM(U29:U34)","v":10708140.199999999},{"$f":"SUM(V29:V34)","v":5000000},null,{"$f":"SUM(X29:X34)","v":5708140.2000000002},{"$f":"SUM(Y29:Y34)","v":10558140.199999999},{"$f":"SUM(Z29:Z34)","v":5000000},null,{"$f":"SUM(AB29:AB34)","v":5558140.2000000002}]
["Outcome 3.1: By 2027, more people, especially women, youth and those in vulnerable groups, freely exercise their rights, participate in, and benefit from, inclusive, resilient, transparent, and accountable institutions and a more modernized, transformative and effective system of democratic governance that upholds the rule of law, at national and local levels.",{"$f":"D49","v":27517577.016806722},"FAO",{"$f":"SUM(I36+M36+Q36+U36+Y36)","v":1699477},436477,null,null,{"$f":"D36-E36","v":1263000},{"$f":"'MYFF - Outcome 3.1'!I17","v":315307},{"$f":"'MYFF - Outcome 3.1'!J17","v":315307},{"$f":"'MYFF - Outcome 3.1'!K17","v":"GEF"},{"$f":"'MYFF - Outcome 3.1'!L17","v":0},{"$f":"'MYFF - Outcome 3.1'!M17","v":121170},{"$f":"'MYFF - Outcome 3.1'!N17","v":121170},{"$f":"'MYFF - Outcome 3.1'!O17","v":"GEF"},{"$f":"'MYFF - Outcome 3.1'!P17","v":0},{"$f":"'MYFF - Outcome 3.1'!Q17","v":463000},{"$f":"'MYFF - Outcome 3.1'!R17","v":0},null,{"$f":"'MYFF - Outcome 3.1'!T17","v":463000},{"$f":"'MYFF - Outcome 3.1'!U17","v":400000},{"$f":"'MYFF - Outcome 3.1'!V17","v":0},null,{"$f":"'MYFF - Outcome 3.1'!X17","v":400000},{"$f":"'MYFF - Outcome 3.1'!Y17","v":400000},{"$f":"'MYFF - Outcome 3.1'!Z17","v":0},null,{"$f":"'MYFF - Outcome 3.1'!AB17","v":400000}]
[null,null,"ILO",515509,234197,null,null,281312,{"$f":"'MYFF - Outcome 3.1'!I9","v":176731},{"$f":"'MYFF - Outcome 3.1'!J9","v":136731},{"$f":"'MYFF - Outcome 3.1'!K9","v":"Finland"},{"$f":"'MYFF - Outcome 3.1'!L9","v":40000},{"$f":"'MYFF - Outcome 3.1'!M9","v":120778},{"$f":"'MYFF - Outcome 3.1'!N9","v":97466},{"$f":"'MYFF - Outcome 3.1'!O9","v":"Finland"},{"$f":"'MYFF - Outcome 3.1'!P9","v":23312},{"$f":"'MYFF - Outcome 3.1'!Q9","v":88000},{"$f":"'MYFF - Outcome 3.1'!R9","v":0},null,{"$f":"'MYFF - Outcome 3.1'!T9","v":88000},{"$f":"'MYFF - Outcome 3.1'!U9","v":70000},{"$f":"'MYFF - Outcome 3.1'!V9","v":0},null,{"$f":"'MYFF - Outcome 3.1'!X9","v":70000},{"$f":"'MYFF - Outcome 3.1'!Y9","v":60000},{"$f":"'MYFF - Outcome 3.1'!Z9","v":0},null,{"$f":"'MYFF - Outcome 3.1'!AB9","v":60000}]
[null,null,"IOM",1950000,1138204,null,null,811796,{"$f":"'MYFF - Outcome 3.1'!I10+'MYFF - Outcome 3.1'!I18+'MYFF - Outcome 3.1'!I26","v":921943},{"$f":"'MYFF - Outcome 3.1'!J10+'MYFF - Outcome 3.1'!J18+'MYFF - Outcome 3.1'!J26","v":921943},null,{"$f":"'MYFF - Outcome 3.1'!L10+'MYFF - Outcome 3.1'!L18+'MYFF - Outcome 3.1'!L26","v":0},{"$f":"'MYFF - Outcome 3.1'!M10+'MYFF - Outcome 3.1'!M18+'MYFF - Outcome 3.1'!M26","v":216261},{"$f":"'MYFF - Outcome 3.1'!N10+'MYFF - Outcome 3.1'!N18+'MYFF - Outcome 3.1'!N26","v":216261},"  ",{"$f":"'MYFF - Outcome 3.1'!P10+'MYFF - Outcome 3.1'!P18+'MYFF - Outcome 3.1'!P26","v":0},{"$f":"'MYFF - Outcome 3.1'!Q10+'MYFF - Outcome 3.1'!Q18+'MYFF - Outcome 3.1'!Q26","v":371796},{"$f":"'MYFF - Outcome 3.1'!R10+'MYFF - Outcome 3.1'!R18+'MYFF - Outcome 3.1'!R26","v":0},null,{"$f":"'MYFF - Outcome 3.1'!T10+'MYFF - Outcome 3.1'!T18+'MYFF - Outcome 3.1'!T26","v":371796},{"$f":"'MYFF - Outcome 3.1'!U10+'MYFF - Outcome 3.1'!U18+'MYFF - Outcome 3.1'!U26","v":220000},{"$f":"'MYFF - Outcome 3.1'!V10+'MYFF - Outcome 3.1'!V18+'MYFF - Outcome 3.1'!V26","v":0},null,{"$f":"'MYFF - Outcome 3.1'!X10+'MYFF - Outcome 3.1'!X18+'MYFF - Outcome 3.1'!X26","v":220000},{"$f":"'MYFF - Outcome 3.1'!Y10+'MYFF - Outcome 3.1'!Y18+'MYFF - Outcome 3.1'!Y26","v":220000},{"$f":"'MYFF - Outcome 3.1'!Z10+'MYFF - Outcome 3.1'!Z18+'MYFF - Outcome 3.1'!Z26","v":0},null,{"$f":"'MYFF - Outcome 3.1'!AB10+'MYFF - Outcome 3.1'!AB18+'MYFF - Outcome 3.1'!AB26","v":220000}]
[null,null,"OHCHR",156500,34500,null,null,122000,{"$f":"'MYFF - Outcome 3.1'!I11","v":0},{"$f":"'MYFF - Outcome 3.1'!J11","v":0},null,{"$f":"'MYFF - Outcome 3.1'!L11","v":0},{"$f":"'MYFF - Outcome 3.1'!M11","v":19500},{"$f":"'MYFF - Outcome 3.1'!N11","v":17500},{"$f":"'MYFF - Outcome 3.1'!O11","v":"Core Funding"},{"$f":"'MYFF - Outcome 3.1'!P11","v":2000},{"$f":"'MYFF - Outcome 3.1'!Q11","v":47000},{"$f":"'MYFF - Outcome 3.1'!R11","v":17000},null,{"$f":"'MYFF - Outcome 3.1'!T11","v":30000},{"$f":"'MYFF - Outcome 3.1'!U11","v":45000},{"$f":"'MYFF - Outcome 3.1'!V11","v":0},null,{"$f":"'MYFF - Outcome 3.1'!X11","v":45000},{"$f":"'MYFF - Outcome 3.1'!Y11","v":45000},{"$f":"'MYFF - Outcome 3.1'!Z11","v":0},null,{"$f":"'MYFF - Outcome 3.1'!AB11","v":45000}]
[null,null,"UNCTAD",1950000,120000,null,null,1830000,{"$f":"'MYFF - Outcome 3.1'!I6+'MYFF - Outcome 3.1'!I19","v":300000},{"$f":"'MYFF - Outcome 3.1'!J6+'MYFF - Outcome 3.1'!J19","v":20000},null,{"$f":"'MYFF - Outcome 3.1'!L6+'MYFF - Outcome 3.1'!L19","v":280000},{"$f":"'MYFF - Outcome 3.1'!M6+'MYFF - Outcome 3.1'!M19","v":380000},{"$f":"'MYFF - Outcome 3.1'!N6+'MYFF - Outcome 3.1'!N19","v":100000}," ",{"$f":"'MYFF - Outcome 3.1'!P6+'MYFF - Outcome 3.1'!P19","v":280000},{"$f":"'MYFF - Outcome 3.1'!Q6+'MYFF - Outcome 3.1'!Q19","v":470000},{"$f":"'MYFF - Outcome 3.1'!R6+'MYFF - Outcome 3.1'!R19","v":0},null,{"$f":"'MYFF - Outcome 3.1'!T6+'MYFF - Outcome 3.1'!T19","v":470000},{"$f":"'MYFF - Outcome 3.1'!U6+'MYFF - Outcome 3.1'!U19","v":400000},{"$f":"'MYFF - Outcome 3.1'!V6+'MYFF - Outcome 3.1'!V19","v":0},null,{"$f":"'MYFF - Outcome 3.1'!X6+'MYFF - Outcome 3.1'!X19","v":400000},{"$f":"'MYFF - Outcome 3.1'!Y6+'MYFF - Outcome 3.1'!Y19","v":400000},{"$f":"'MYFF - Outcome 3.1'!Z6+'MYFF - Outcome 3.1'!Z19","v":0},null,{"$f":"'MYFF - Outcome 3.1'!AB6+'MYFF - Outcome 3.1'!AB19","v":400000}]
[null,null,"UNDP",15552049,8154583,null,null,7397466,{"$f":"'MYFF - Outcome 3.1'!I7+'MYFF - Outcome 3.1'!I13+'MYFF - Outcome 3.1'!I20+'MYFF - Outcome 3.1'!I27","v":2104466},{"$f":"'MYFF - Outcome 3.1'!J7+'MYFF - Outcome 3.1'!J13+'MYFF - Outcome 3.1'!J20+'MYFF - Outcome 3.1'!J27","v":541000},null,{"$f":"'MYFF - Outcome 3.1'!L7+'MYFF - Outcome 3.1'!L13+'MYFF - Outcome 3.1'!L20+'MYFF - Outcome 3.1'!L27","v":1563466},{"$f":"'MYFF - Outcome 3.1'!M7+'MYFF - Outcome 3.1'!M13+'MYFF - Outcome 3.1'!M20+'MYFF - Outcome 3.1'!M27","v":3510583},{"$f":"'MYFF - Outcome 3.1'!N7+'MYFF - Outcome 3.1'!N13+'MYFF - Outcome 3.1'!N20+'MYFF - Outcome 3.1'!N27","v":3413583}," ",{"$f":"'MYFF - Outcome 3.1'!P7+'MYFF - Outcome 3.1'!P13+'MYFF - Outcome 3.1'!P20+'MYFF - Outcome 3.1'!P27","v":97000},{"$f":"'MYFF - Outcome 3.1'!Q7+'MYFF - Outcome 3.1'!Q13+'MYFF - Outcome 3.1'!Q20+'MYFF - Outcome 3.1'!Q27","v":3837000},{"$f":"'MYFF - Outcome 3.1'!R7+'MYFF - Outcome 3.1'!R13+'MYFF - Outcome 3.1'!R20+'MYFF - Outcome 3.1'!R27","v":1900000},null,{"$f":"'MYFF - Outcome 3.1'!T7+'MYFF - Outcome 3.1'!T13+'MYFF - Outcome 3.1'!T20+'MYFF - Outcome 3.1'!T27","v":1937000},{"$f":"'MYFF - Outcome 3.1'!U7+'MYFF - Outcome 3.1'!U13+'MYFF - Outcome 3.1'!U20+'MYFF - Outcome 3.1'!U27","v":3050000},{"$f":"'MYFF - Outcome 3.1'!V7+'MYFF - Outcome 3.1'!V13+'MYFF - Outcome 3.1'!V20+'MYFF - Outcome 3.1'!V27","v":1300000},null,{"$f":"'MYFF - Outcome 3.1'!X7+'MYFF - Outcome 3.1'!X13+'MYFF - Outcome 3.1'!X20+'MYFF - Outcome 3.1'!X27","v":1750000},{"$f":"'MYFF - Outcome 3.1'!Y7+'MYFF - Outcome 3.1'!Y13+'MYFF - Outcome 3.1'!Y20+'MYFF - Outcome 3.1'!Y27","v":3050000},{"$f":"'MYFF - Outcome 3.1'!Z7+'MYFF - Outcome 3.1'!Z13+'MYFF - Outcome 3.1'!Z20+'MYFF - Outcome 3.1'!Z27","v":1000000},null,{"$f":"'MYFF - Outcome 3.1'!AB7+'MYFF - Outcome 3.1'!AB13+'MYFF - Outcome 3.1'!AB20+'MYFF - Outcome 3.1'!AB27","v":2050000}]
[null,null,"UNESCO",476000,50000,null,null,426000,{"$f":"'MYFF - Outcome 3.1'!I21","v":90000},{"$f":"'MYFF - Outcome 3.1'!J21","v":50000},{"$f":"'MYFF - Outcome 3.1'!K21","v":"Core Funding"},{"$f":"'MYFF - Outcome 3.1'!L21","v":40000},{"$f":"'MYFF - Outcome 3.1'!M21","v":0},{"$f":"'MYFF - Outcome 3.1'!N21","v":0}," ",{"$f":"'MYFF - Outcome 3.1'!P21","v":0},{"$f":"'MYFF - Outcome 3.1'!Q21","v":156000},{"$f":"'MYFF - Outcome 3.1'!R21","v":0},null,{"$f":"'MYFF - Outcome 3.1'!T21","v":156000},{"$f":"'MYFF - Outcome 3.1'!U21","v":130000},{"$f":"'MYFF - Outcome 3.1'!V21","v":0},null,{"$f":"'MYFF - Outcome 3.1'!X21","v":130000},{"$f":"'MYFF - Outcome 3.1'!Y21","v":100000},{"$f":"'MYFF - Outcome 3.1'!Z21","v":0},null,{"$f":"'MYFF - Outcome 3.1'!AB21","v":100000}]
[null,null,"UNFPA",{"$f":"SUM(I43+M43+Q43+U43+Y43)","v":500000},355276,null,null,144724,{"$f":"'MYFF - Outcome 3.1'!I14+'MYFF - Outcome 3.1'!I22","v":280000},{"$f":"'MYFF - Outcome 3.1'!J14+'MYFF - Outcome 3.1'!J22","v":240000},null,{"$f":"'MYFF - Outcome 3.1'!L14+'MYFF - Outcome 3.1'!L22","v":40000},{"$f":"'MYFF - Outcome 3.1'!M14+'MYFF - Outcome 3.1'!M22","v":220000},{"$f":"'MYFF - Outcome 3.1'!N14+'MYFF - Outcome 3.1'!N22","v":115276}," ",{"$f":"'MYFF - Outcome 3.1'!P14+'MYFF - Outcome 3.1'!P22","v":104724},{"$f":"'MYFF - Outcome 3.1'!Q14+'MYFF - Outcome 3.1'!Q22","v":0},{"$f":"'MYFF - Outcome 3.1'!R14+'MYFF - Outcome 3.1'!R22","v":0},null,{"$f":"'MYFF - Outcome 3.1'!T14+'MYFF - Outcome 3.1'!T22","v":0},{"$f":"'MYFF - Outcome 3.1'!U14+'MYFF - Outcome 3.1'!U22","v":0},{"$f":"'MYFF - Outcome 3.1'!V14+'MYFF - Outcome 3.1'!V22","v":0},null,{"$f":"'MYFF - Outcome 3.1'!X14+'MYFF - Outcome 3.1'!X22","v":0},{"$f":"'MYFF - Outcome 3.1'!Y14+'MYFF - Outcome 3.1'!Y22","v":0},{"$f":"'MYFF - Outcome 3.1'!Z14+'MYFF - Outcome 3.1'!Z22","v":0},null,{"$f":"'MYFF - Outcome 3.1'!AB14+'MYFF - Outcome 3.1'!AB22","v":0}]
[null,null,"UNHABITAT",2000000,1550000,null,null,450000,{"$f":"'MYFF - Outcome 3.1'!I15","v":200000},{"$f":"'MYFF - Outcome 3.1'!J15","v":0},null,{"$f":"'MYFF - Outcome 3.1'!L15","v":200000},{"$f":"'MYFF - Outcome 3.1'!M15","v":550000},{"$f":"'MYFF - Outcome 3.1'!N15","v":550000},{"$f":"'MYFF - Outcome 3.1'!O15","v":"Luxembourg "},{"$f":"'MYFF - Outcome 3.1'!P15","v":0},{"$f":"'MYFF - Outcome 3.1'!Q15","v":500000},{"$f":"'MYFF - Outcome 3.1'!R15","v":500000},{"$f":"'MYFF - Outcome 3.1'!S15","v":"Luxembourg "},{"$f":"'MYFF - Outcome 3.1'!T15","v":0},{"$f":"'MYFF - Outcome 3.1'!U15","v":500000},{"$f":"'MYFF - Outcome 3.1'!V15","v":500000},{"$f":"'MYFF - Outcome 3.1'!W15","v":"Luxembourg "},{"$f":"'MYFF - Outcome 3.1'!X15","v":0},{"$f":"'MYFF - Outcome 3.1'!Y15","v":250000},{"$f":"'MYFF - Outcome 3.1'!Z15","v":0},null,{"$f":"'MYFF - Outcome 3.1'!AB15","v":250000}]
[null,null,"UNICEF",350000,156000,null,null,194000,{"$f":"'MYFF - Outcome 3.1'!I23+'MYFF - Outcome 3.1'!I28","v":200000},{"$f":"'MYFF - Outcome 3.1'!J23+'MYFF - Outcome 3.1'!J28","v":156000},null,{"$f":"'MYFF - Outcome 3.1'!L23+'MYFF - Outcome 3.1'!L28","v":44000},{"$f":"'MYFF - Outcome 3.1'!M23+'MYFF - Outcome 3.1'!M28","v":0},{"$f":"'MYFF - Outcome 3.1'!N23+'MYFF - Outcome 3.1'!N28","v":0}," ",{"$f":"'MYFF - Outcome 3.1'!P23+'MYFF - Outcome 3.1'!P28","v":0},{"$f":"'MYFF - Outcome 3.1'!Q23+'MYFF - Outcome 3.1'!Q28","v":50000},{"$f":"'MYFF - Outcome 3.1'!R23+'MYFF - Outcome 3.1'!R28","v":0},null,{"$f":"'MYFF - Outcome 3.1'!T23+'MYFF - Outcome 3.1'!T28","v":50000},{"$f":"'MYFF - Outcome 3.1'!U23+'MYFF - Outcome 3.1'!U28","v":50000},{"$f":"'MYFF - Outcome 3.1'!V23+'MYFF - Outcome 3.1'!V28","v":0},null,{"$f":"'MYFF - Outcome 3.1'!X23+'MYFF - Outcome 3.1'!X28","v":50000},{"$f":"'MYFF - Outcome 3.1'!Y23+'MYFF - Outcome 3.1'!Y28","v":50000},{"$f":"'MYFF - Outcome 3.1'!Z23+'MYFF - Outcome 3.1'!Z28","v":0},null,{"$f":"'MYFF - Outcome 3.1'!AB23+'MYFF - Outcome 3.1'!AB28","v":50000}]
[null,null,"UNIDO",535042.01680672192,245042.01680672201,null,null,289999.99999999988,{"$f":"'MYFF - Outcome 3.1'!I24","v":61000},{"$f":"'MYFF - Outcome 3.1'!J24","v":61000},{"$f":"'MYFF - Outcome 3.1'!K24","v":"Core Funding"},{"$f":"'MYFF - Outcome 3.1'!L24","v":0},{"$f":"'MYFF - Outcome 3.1'!M24","v":59000},{"$f":"'MYFF - Outcome 3.1'!N24","v":59000},{"$f":"'MYFF - Outcome 3.1'!O24","v":"Core Funding"},{"$f":"'MYFF - Outcome 3.1'!P24","v":0},{"$f":"'MYFF - Outcome 3.1'!Q24","v":194894.95798319299},{"$f":"'MYFF - Outcome 3.1'!R24","v":59894.957983192951},{"$f":"'MYFF - Outcome 3.1'!S24","v":"Core Funding"},{"$f":"'MYFF - Outcome 3.1'!T24","v":135000.00000000003},{"$f":"'MYFF - Outcome 3.1'!U24","v":200147.05882352899},{"$f":"'MYFF - Outcome 3.1'!V24","v":65147.058823529049},{"$f":"'MYFF - Outcome 3.1'!W24","v":"Core Funding"},{"$f":"'MYFF - Outcome 3.1'!X24","v":134999.99999999994},{"$f":"'MYFF - Outcome 3.1'!Y24","v":20000},{"$f":"'MYFF - Outcome 3.1'!Z24","v":0},null,{"$f":"'MYFF - Outcome 3.1'!AB24","v":20000}]
[null,null,"UNODC",1683000,1359000,null,null,324000,{"$f":"'MYFF - Outcome 3.1'!I29","v":943000},{"$f":"'MYFF - Outcome 3.1'!J29","v":983000},{"$f":"'MYFF - Outcome 3.1'!K29","v":"USA, Germany, EU"},{"$f":"'MYFF - Outcome 3.1'!L29","v":-40000},{"$f":"'MYFF - Outcome 3.1'!M29","v":580000},{"$f":"'MYFF - Outcome 3.1'!N29","v":376000},{"$f":"'MYFF - Outcome 3.1'!O29","v":"EU, USA, Germany"},{"$f":"'MYFF - Outcome 3.1'!P29","v":204000},{"$f":"'MYFF - Outcome 3.1'!Q29","v":160000},{"$f":"'MYFF - Outcome 3.1'!R29","v":0},null,{"$f":"'MYFF - Outcome 3.1'!T29","v":160000},{"$f":"'MYFF - Outcome 3.1'!U29","v":0},{"$f":"'MYFF - Outcome 3.1'!V29","v":0},null,{"$f":"'MYFF - Outcome 3.1'!X29","v":0},{"$f":"'MYFF - Outcome 3.1'!Y29","v":0},{"$f":"'MYFF - Outcome 3.1'!Z29","v":0},null,{"$f":"'MYFF - Outcome 3.1'!AB29","v":0}]
[null,null,"UNWOMEN",150000,0,null,null,150000,{"$f":"'MYFF - Outcome 3.1'!I12","v":0},{"$f":"'MYFF - Outcome 3.1'!J12","v":0},null,{"$f":"'MYFF - Outcome 3.1'!L12","v":0},{"$f":"'MYFF - Outcome 3.1'!M12","v":0},{"$f":"'MYFF - Outcome 3.1'!N12","v":0}," ",{"$f":"'MYFF - Outcome 3.1'!P12","v":0},{"$f":"'MYFF - Outcome 3.1'!Q12","v":50000},{"$f":"'MYFF - Outcome 3.1'!R12","v":0},null,{"$f":"'MYFF - Outcome 3.1'!T12","v":50000},{"$f":"'MYFF - Outcome 3.1'!U12","v":50000},{"$f":"'MYFF - Outcome 3.1'!V12","v":0},null,{"$f":"'MYFF - Outcome 3.1'!X12","v":50000},{"$f":"'MYFF - Outcome 3.1'!Y12","v":50000},{"$f":"'MYFF - Outcome 3.1'!Z12","v":0},null,{"$f":"'MYFF - Outcome 3.1'!AB12","v":50000}]
[null,null,"Total",{"$f":"SUM(D36:D48)","v":27517577.016806722},{"$f":"SUM(E36:E48)","v":13833279.016806722},null,null,{"$f":"SUM(H36:H48)","v":13684298},{"$f":"SUM(I36:I48)","v":5592447},{"$f":"SUM(J36:J48)","v":3424981},null,2167466,5777292,5066256,null,711036,6387690.957983193,2476894.957983193,null,3910796,5115147.0588235287,1865147.0588235292,null,3250000,4645000,1000000,null,3645000]
[]
["Grand Total UNCF 2023-27",null,null,{"$f":"SUM(D49,D28,D35,D17)","v":116296376.48382801},{"$f":"SUM(E49,E28,E35,E17)","v":54674625.016806722},null,null,{"$f":"SUM(H49,H28,H35,H17)","v":61621751.467021279},{"$f":"SUM(I49,I28,I35,I17)","v":17563228},{"$f":"SUM(J49,J28,J35,J17)","v":14866926},null,{"$f":"SUM(L49,L28,L35,L17)","v":2696302},{"$f":"SUM(M49,M28,M35,M17)","v":18350999},{"$f":"SUM(N49,N28,N35,N17)","v":16053349},null,{"$f":"SUM(P49,P28,P35,P17)","v":2297650},{"$f":"SUM(Q49,Q28,Q35,Q17)","v":32828861.09149383},{"$f":"SUM(R49,R28,R35,R17)","v":9489852.9579831921},null,{"$f":"SUM(T49,T28,T35,T17)","v":23339008.133510638},{"$f":"SUM(U49,U28,U35,U17)","v":25359674.725578848},{"$f":"SUM(V49,V28,V35,V17)","v":8215147.0588235296},null,{"$f":"SUM(X49,X28,X35,X17)","v":17144527.666755319},{"$f":"SUM(Y49,Y28,Y35,Y17)","v":22193613.666755319},{"$f":"SUM(Z49,Z28,Z35,Z17)","v":6049350},null,{"$f":"SUM(AB49,AB28,AB35,AB17)","v":16144263.666755319}]

{"sheet":"MYFF - Outcome 1.1","index":1,"n_rows":35,"n_cols":28,"rows_kept":35,"cut":false,"hidden":false,"merged":[[5,0,13,0],[5,1,13,1],[14,0,24,0],[14,1,24,1],[34,0,34,2],[3,3,3,7],[2,3,2,27],[3,12,3,15],[3,16,3,19],[3,20,3,23],[3,24,3,27],[25,0,33,0],[25,1,33,1],[0,0,0,27],[2,0,4,0],[2,2,4,2],[2,1,4,1],[1,0,1,27],[3,8,3,11]]}
["Multi-Year Funding Framework (MYFF) - United Nations Sustainable Development Cooperation Framework (UNSDCF) 2023-2027 Cabo Verde"]
["Outcome 1.1.  By 2027, more people, especially those living in the most vulnerable and marginalized situations and those living with disabilities, have equitable access to and use of high-quality, resilient, gender-responsive, and modern essential social services and protection"]
["Cooperation Framework Output","Predicted cost of the output","UN Entity"]
[null,null,null,"MYFF (2023-2027)",null,null,null,null,"YEAR 1 (2023)",null,null,null,"YEAR 2 (2024)",null,null,null,"YEAR 3 (2025)",null,null,null,"YEAR 4 (2026)",null,null,null,"YEAR 5 (2027)"]
[null,null,null,"Total Funding Required ","Available Funding","Source of Available Funding","Type of Available Funding \n(assessed, core, non-core)","Funding to be Mobilized \n(D - E)","Total Funding Required ","Available Funding","Source of Available Funding","Funding to be Mobilized ","Total Funding Required ","Available Funding ","Source of Available Funding","Funding to be Mobilized ","Total Funding Required ","Available Funding ","Source of Available Funding","Funding to be Mobilized ","Total Funding Required ","Available Funding","Source of Available Funding","Funding to be Mobilized ","Total Funding Required ","Available Funding","Source of Available Funding","Funding to be Mobilized "]
["Output 1.1.1:\nNational institutions, social partners and civil society organizations, have stronger capacities to deliver, innovate and partner for social protection and the protection of children and adolescents, essential services, data, monitoring and reporting systems",{"$f":"D14","v":9668324},"ILO",{"$f":"SUM(I6+M6+Q6+U6+Y6)","v":150397},{"$f":"SUM(J6+N6+R6+V6+Z6)","v":150397}," "," ",{"$f":"D6-E6","v":0},30041,30041,null,{"$f":"I6-J6","v":0},58882,58882,null,{"$f":"M6-N6","v":0},31474,31474,null,{"$f":"Q6-R6","v":0},30000,30000,null,{"$f":"U6-V6","v":0},0,0,null,{"$f":"Y6-Z6","v":0}]
[null,null,"UNDP",230000,148000," "," ",82000,125000,78000,null,47000,105000,70000,null,35000,0,0,null,0,0,0,null,0,0,0,null,0]
[null,null,"UNFPA",834350,744350," "," ",90000,135000,135000,null,0,220000,220000,null,0,200000,170000,null,30000,200000,170000,null,30000,79350,49350,null,30000]
[null,null,"UNHABITAT",720191,243455," "," ",476736,30000,30000,null,0,133455,133455,null,0,200000,80000,null,120000,200000,0,null,200000,156736,0,null,156736]
[null,null,"UNICEF",3793000,2293000," "," ",1500000,1428700,1353700,null,75000,928650,813500,null,115150,1135650,125800,null,1009850,300000,0,null,300000,0,0,null,0]
[null,null,"UNODC",514038,279038," "," ",235000,199736,189736,null,10000,94302,89302,null,5000,130000,0,null,130000,90000,0,null,{"$f":"U11-V11","v":90000},0,0,null,0]
[null,null,"UNWOMEN",50000,0," "," ",50000,10000,null,null,10000,10000,null,null,10000,10000,null,null,10000,10000,null,null,{"$f":"U12-V12","v":10000},10000,null,null,10000]
[null,null,"WHO",3376348,1376348," "," ",2000000,725000,725000,null,0,1001523,651348,null,350175,1049825,0,null,1049825,600000,0,null,600000,0,0,null,0]
[null,null,"Total Output 1.1.1",{"$f":"SUM(D6:D13)","v":9668324},{"$f":"SUM(E6:E13)","v":5234588},null,null,{"$f":"SUM(H6:H13)","v":4433736},{"$f":"SUM(I6:I13)","v":2683477},{"$f":"SUM(J6:J13)","v":2541477},null,{"$f":"SUM(L6:L13)","v":142000},{"$f":"SUM(M6:M13)","v":2551812},{"$f":"SUM(N6:N13)","v":2036487},null,{"$f":"SUM(P6:P13)","v":515325},{"$f":"SUM(Q6:Q13)","v":2756949},{"$f":"SUM(R6:R13)","v":407274},null,{"$f":"SUM(T6:T13)","v":2349675},{"$f":"SUM(U6:U13)","v":1430000},{"$f":"SUM(V6:V13)","v":200000},null,{"$f":"SUM(X6:X13)","v":1230000},{"$f":"SUM(Y6:Y13)","v":246086},{"$f":"SUM(Z6:Z13)","v":49350},null,{"$f":"SUM(AB6:AB13)","v":196736}]
["Output 1.1.2:\nMore people in vulnerable situations and marginalized situations have access to and are empowered through quality education, health care and tools to exercise their rights.",{"$f":"D25","v":6213540},"ILO",{"$f":"SUM(I15+M15+Q15+U15+Y15)","v":147251},{"$f":"SUM(J15+N15+R15+V15+Z15)","v":147251}," "," ",{"$f":"D15-E15","v":0},82171,82171,null,{"$f":"I15-J15","v":0},65080,65080,null,{"$f":"M15-N15","v":0},0,0,null,{"$f":"Q15-R15","v":0},0,0,null,{"$f":"U15-V15","v":0},0,0,null,{"$f":"Y15-Z15","v":0}]
[null,null,"IOM",{"$f":"SUM(I16+M16+Q16+U16+Y16)","v":822675},{"$f":"SUM(J16+N16+R16+V16+Z16)","v":42675}," "," ",780000,22675,22675,null,0,20000,20000,null,0,280000,0,null,280000,250000,0,null,250000,250000,0,null,250000]
[null,null,"UNDP",{"$f":"SUM(I17+M17+Q17+U17+Y17)","v":171000},144000," "," ",27000,36000,36000,null,0,108000,98000,null,10000,27000,10000,null,17000,0,0,null,0,0,0,null,0]
[null,null,"UNESCO",546000,123000," "," ",423000,0,15000,null,-15000,108000,108000,null,0,150000,0,null,150000,150000,0,null,150000,138000,0,null,138000]
[null,null,"UNFPA",300000,300000," "," ",0,100000,100000,null,0,200000,200000,null,0,0,0,null,0,0,0,null,0,0,0,null,0]
[null,null,"ITU",40000,10000," "," ",30000,30000,5000,null,25000,10000,5000,null,5000,0,0,null,0,0,0,null,0,0,0,null,0]
[null,null,"UNICEF",2860114,1285114," "," ",1575000,848214,848214,null,0,321850,279000,null,42850,690050,157900,null,532150,500000,0,null,500000,500000,0,null,500000]
[null,null,"UNODC",298000,48000," "," ",250000,55000,30000,null,25000,45000,18000,null,27000,78000,0,null,78000,60000,0,null,60000,60000,0,null,60000]
[null,null,"UNWOMEN",{"$f":"SUM(I23+M23+Q23+U23+Y23)","v":50000},{"$f":"SUM(J23+N23+R23+V23+Z23)","v":0}," "," ",{"$f":"D23-E23","v":50000},10000,null,null,10000,10000,null,null,10000,10000,null,null,10000,10000,null,null,10000,10000,null,null,10000]
[null,null,"WHO",978500,378500," "," ",600000,197000,197000,null,0,226000,181500,null,44500,200500,0,null,200500,180000,0,null,180000,175000,0,null,175000]
[null,null,"Total Output 1.1.2.",{"$f":"SUM(D15:D24)","v":6213540},{"$f":"SUM(E15:E24)","v":2478540}," "," ",{"$f":"SUM(H15:H24)","v":3735000},{"$f":"SUM(I15:I24)","v":1381060},{"$f":"SUM(J15:J24)","v":1336060},null,{"$f":"SUM(L15:L24)","v":45000},{"$f":"SUM(M15:M24)","v":1113930},{"$f":"SUM(N15:N24)","v":974580},null,{"$f":"SUM(P15:P24)","v":139350},{"$f":"SUM(Q15:Q24)","v":1435550},{"$f":"SUM(R15:R24)","v":167900},null,{"$f":"SUM(T15:T24)","v":1267650},{"$f":"SUM(U15:U24)","v":1150000},{"$f":"SUM(V15:V24)","v":0},null,{"$f":"SUM(X15:X24)","v":1150000},{"$f":"SUM(Y15:Y24)","v":1133000},{"$f":"SUM(Z15:Z24)","v":0},null,{"$f":"SUM(AB15:AB24)","v":1133000}]
["Output 1.1.3:\nPolicies and regulatory frameworks better enable access to, utilization and modernization of inclusive, digital, gender-responsive and resilient social and protection services, including for informal settlements.",{"$f":"D33","v":2150088},"ILO",{"$f":"SUM(I26+M26+Q26+U26+Y26)","v":92650},{"$f":"SUM(J26+N26+R26+V26+Z26)","v":92650}," "," ",{"$f":"D26-E26","v":0},61660,61660,null,{"$f":"I26-J26","v":0},30990,30990,null,{"$f":"M26-N26","v":0},0,0,null,{"$f":"Q26-R26","v":0},0,0,null,{"$f":"U26-V26","v":0},0,0,null,{"$f":"Y26-Z26","v":0}]
[null,null,"ITU",40000,25000," "," ",15000,20000,10000,null,10000,20000,15000,null,5000,0,0,null,0,0,0,null,0,0,0,null,0]
[null,null,"UNFPA",0,0," "," ",0,0,0,null,0,0,0,null,0,0,0,null,0,0,0,null,0,0,0,null,0]
[null,null,"UNICEF",400800,146100," "," ",254700,17500,17500,null,0,62000,61500,null,500,121300,57100,null,64200,110000,10000,null,100000,90000,0,null,90000]
[null,null,"UNODC",308264,58764," "," ",249500,62400,33000,null,29400,21000,17500,null,3500,84864,8264,null,76600,70000,0,null,70000,70000,0,null,70000]
[null,null,"UNWOMEN",50000,0," "," ",50000,10000,null,null,10000,10000,null,null,10000,10000,null,null,10000,10000,null,null,10000,10000,null,null,10000]
[null,null,"WHO",1258374,576825," "," ",681549,260000,260000,null,0,316825,316825,null,0,251549,0,null,251549,230000,0,null,230000,200000,0,null,200000]
[null,null,"Total Output 1.1.3",{"$f":"SUM(D26:D32)","v":2150088},{"$f":"SUM(E26:E32)","v":899339}," "," ",{"$f":"SUM(H26:H32)","v":1250749},{"$f":"SUM(I26:I30)","v":161560},{"$f":"SUM(J26:J30)","v":122160},null,{"$f":"SUM(L26:L30)","v":39400},{"$f":"SUM(M26:M30)","v":133990},{"$f":"SUM(N26:N30)","v":124990},null,{"$f":"SUM(P26:P30)","v":9000},{"$f":"SUM(Q26:Q30)","v":206164},{"$f":"SUM(R26:R30)","v":65364},null,{"$f":"SUM(T26:T30)","v":140800},{"$f":"SUM(U26:U30)","v":180000},{"$f":"SUM(V26:V30)","v":10000},null,{"$f":"SUM(X26:X30)","v":170000},{"$f":"SUM(Y26:Y30)","v":160000},{"$f":"SUM(Z26:Z30)","v":0},null,{"$f":"SUM(AB26:AB30)","v":160000}]
[]
["Grand Total Outcome 1.1",null,null,{"$f":"SUM(D33,D25,D14)","v":18031952},{"$f":"SUM(E33,E25,E14)","v":8612467}," "," ",{"$f":"SUM(H33,H25,H14)","v":9419485},{"$f":"SUM(I33,I25,I14)","v":4226097},{"$f":"SUM(J33,J25,J14)","v":3999697}," ",{"$f":"SUM(L33,L25,L14)","v":226400},{"$f":"SUM(M33,M25,M14)","v":3799732},{"$f":"SUM(N33,N25,N14)","v":3136057}," ",{"$f":"SUM(P33,P25,P14)","v":663675},{"$f":"SUM(Q33,Q25,Q14)","v":4398663},{"$f":"SUM(R33,R25,R14)","v":640538}," ",{"$f":"SUM(T33,T25,T14)","v":3758125},{"$f":"SUM(U33,U25,U14)","v":2760000},{"$f":"SUM(V33,V25,V14)","v":210000}," ",{"$f":"SUM(X33,X25,X14)","v":2550000},{"$f":"SUM(Y33,Y25,Y14)","v":1539086},{"$f":"SUM(Z33,Z25,Z14)","v":49350}," ",{"$f":"SUM(AB33,AB25,AB14)","v":1489736}]

{"sheet":"MYFF - Outcome 2.1","index":2,"n_rows":30,"n_cols":28,"rows_kept":30,"cut":false,"hidden":false,"merged":[[14,0,19,0],[14,1,19,1],[0,0,0,27],[1,0,1,27],[2,0,4,0],[2,1,4,1],[2,2,4,2],[2,3,2,27],[3,3,3,7],[3,8,3,11],[3,12,3,15],[3,16,3,19],[3,20,3,23],[3,24,3,27],[5,0,13,0],[5,1,13,1],[20,0,22,0],[20,1,22,1],[29,0,29,2],[23,0,27,0],[23,1,27,1]]}
["Multi-Year Funding Framework (MYFF) - United Nations Sustainable Development Cooperation Framework (UNSDCF) 2023-2027 Cabo Verde"]
["Outcome 2.1: By 2027, a more sustainable, inclusive, diversified and integrated economy generates decent jobs, food security and nutrition for the most vulnerable, especially women, youth and the extreme poor"]
["Cooperation Framework Output","Predicted cost of the output","UN Entity"]
[null,null,null,"MYFF (2023-2027)",null,null,null,null,"YEAR 1 (2023)",null,null,null,"YEAR 2 (2024)",null,null,null,"YEAR 3 (2025)",null,null,null,"YEAR 4 (2026)",null,null,null,"YEAR 5 (2027)"]
[null,null,null,"Total Funding Required ","Available Funding","Source of Available Funding","Type of Available Funding \n(assessed, core, non-core)","Funding to be Mobilized \n(D - E)","Total Funding Required ","Available Funding","Source of Available Funding","Funding to be Mobilized ","Total Funding Required ","Available Funding ","Source of Available Funding","Funding to be Mobilized ","Total Funding Required ","Available Funding ","Source of Available Funding","Funding to be Mobilized ","Total Funding Required ","Available Funding","Source of Available Funding","Funding to be Mobilized ","Total Funding Required ","Available Funding","Source of Available Funding","Funding to be Mobilized "]
["Output 2.1.1: Institutional frameworks are enhanced and more inclusive, and duty bearers have strengthened capacities for better business environment, national quality systems, regional integration, a greater diaspora contribution to the economy, and the protection of workers’ rights.",{"$f":"D14","v":11998178},"FAO",{"$f":"SUM(I6+M6+Q6+U6+Y6)","v":1639141},600555," "," ",{"$f":"D6-E6","v":1038586},310000,271414,"China, core funds",{"$f":"I6-J6","v":38586},329141,329141,"China",{"$f":"M6-N6","v":0},350000,0,null,{"$f":"Q6-R6","v":350000},350000,0,null,{"$f":"U6-V6","v":350000},300000,0,null,{"$f":"Y6-Z6","v":300000}]
[null,null,"ILO",2741475,2270689," "," ",470786,374451,354451,"Luxem bourg, Joint SDG, Finland",{"$f":"I7-J7","v":20000},757024,636238,"Luxembourg, Finland",{"$f":"M7-N7","v":120786},750000,640000,null,{"$f":"Q7-R7","v":110000},750000,640000,null,{"$f":"U7-V7","v":110000},110000,0,null,{"$f":"Y7-Z7","v":110000}]
[null,null,"IOM",4891846,448524," "," ",4443322,190940,190940,"IOM dev. Fund, Joint SDG, France",0,257584,257584,"IOM dev fund, Joint SDG",0,1543322,0,null,1543322,1500000,0,null,1500000,1400000,0,null,1400000]
[null,null,"ITU",15000,10000," "," ",5000,15000,10000,"core funds",5000,0,0,null,0,0,0,null,0,0,0,null,0,0,0,null,0]
[null,null,"UNDP",309000,59000," "," ",250000,39000,39000,"core funds",0,20000,20000,"core funds",0,100000,0,null,100000,50000,0,null,50000,100000,0,null,100000]
[null,null,"UNECA",155000,129000," "," ",26000,58000,32000,"core funds",26000,97000,97000,"core funds",0,0,0,null,0,0,0,null,0,0,0,null,0]
[null,null,"UNIDO",2039500,39500,null,null,2000000,39500,39500,"EU",0,500000,0,null,500000,500000,0,null,500000,500000,0,null,500000,500000,0,null,500000]
[null,null,"WIPO",207216,207216,207216,207216,0,112137,112137,"core funds",0,35159,35159,"core funds",0,59920,59920,"core funds",0,0,0,null,0,0,0,null,0]
[null,null,"Total Output 2.2.1",{"$f":"SUM(D6:D13)","v":11998178},{"$f":"SUM(E6:E13)","v":3764484}," "," ",{"$f":"SUM(H6:H13)","v":8233694},{"$f":"SUM(I6:I13)","v":1139028},{"$f":"SUM(J6:J13)","v":1049442}," ",89586,{"$f":"SUM(M6:M13)","v":1995908},{"$f":"SUM(N6:N13)","v":1375122}," ",620786,{"$f":"SUM(Q6:Q13)","v":3303242},{"$f":"SUM(R6:R13)","v":699920}," ",2603322,{"$f":"SUM(U6:U13)","v":3150000},{"$f":"SUM(V6:V13)","v":640000}," ",2510000,{"$f":"SUM(Y6:Y13)","v":2410000},{"$f":"SUM(Z6:Z13)","v":0}," ",2410000]
["Output 2.1.2: Small and medium-sized enterprises are integrated into green, blue and value chains, their productive capacities and access to financial and non-financial services are strengthened, and market, nature-based, and energy-efficient solutions (in the private sector) are promoted.",{"$f":"D20","v":10091003.531914892},"FAO",{"$f":"SUM(I15+M15+Q15+U15+Y15)","v":3732490},{"$f":"SUM(J15+N15+R15+V15+Z15)","v":1732490}," "," ",{"$f":"D15-E15","v":2000000},689500,689500,"Spain, China, GEF, Joint SDG, core funds",0,1042990,1042990,"Spain, China, GEF, Joint SDG, core funds",0,800000,0,null,800000,700000,0,null,700000,500000,0,null,500000]
[null,null,"UNDP",{"$f":"SUM(I16+M16+Q16+U16+Y16)","v":2658850},2162000," "," ",496850,808850,662000,"core funds",146850,500000,500000,"core funds",0,550000,500000,null,50000,500000,500000,null,0,300000,0,null,300000]
[null,null,"UNESCO",{"$f":"SUM(I17+M17+Q17+U17+Y17)","v":125600},{"$f":"SUM(J17+N17+R17+V17+Z17)","v":125600}," "," ",{"$f":"D17-E17","v":0},100000,100000,"core funds",{"$f":"I17-J17","v":0},25600,25600,"core funds",{"$f":"M17-N17","v":0},0,0,null,{"$f":"Q17-R17","v":0},0,0,null,{"$f":"U17-V17","v":0},0,0,null,{"$f":"Y17-Z17","v":0}]
[null,null,"UNIDO",{"$f":"SUM(I18+M18+Q18+U18+Y18)","v":3502063.5319148921},{"$f":"SUM(J18+N18+R18+V18+Z18)","v":152663}," "," ",{"$f":"D18-E18","v":3349400.5319148921},51977,51977,"Joint SDG",{"$f":"I18-J18","v":0},100686,100686,"Joint SDG",{"$f":"M18-N18","v":0},1702200.2659574461,0,null,{"$f":"Q18-R18","v":1702200.2659574461},851100.13297872304,0,null,{"$f":"U18-V18","v":851100.13297872304},796100.13297872304,0,null,{"$f":"Y18-Z18","v":796100.13297872304}]
[null,null,"WIPO",72000,72000,null,null,0,0,0,null,0,72000,72000,"core funds",0,0,0,null,0,0,0,null,0,0,0,null,0]
[null,null,"Total Output 2.1.2.",{"$f":"SUM(D15:D19)","v":10091003.531914892},{"$f":"SUM(E15:E19)","v":4244753},null,null,{"$f":"SUM(H15:H19)","v":5846250.5319148917},{"$f":"SUM(I15:I19)","v":1650327},{"$f":"SUM(J15:J19)","v":1503477}," ",146850,{"$f":"SUM(M15:M19)","v":1741276},{"$f":"SUM(N15:N19)","v":1741276}," ",0,{"$f":"SUM(Q15:Q19)","v":3052200.2659574458},{"$f":"SUM(R15:R19)","v":500000}," ",2552200.2659574458,{"$f":"SUM(U15:U19)","v":2051100.1329787229},{"$f":"SUM(V15:V19)","v":500000}," ",1551100.1329787229,{"$f":"SUM(Y15:Y19)","v":1596100.1329787229},{"$f":"SUM(Z15:Z19)","v":0}," ",1596100.1329787229]
["Output 2.1.3: More people, especially women, youth, children, those living with disabilities, migrants and the extreme poor, have adequate and culturally accepted  access to safe and nutritious foods at all times.",{"$f":"D23","v":3055177},"FAO",{"$f":"SUM(I21+M21+Q21+U21+Y21)","v":2065177},835058," "," ",{"$f":"D21-E21","v":1230119},450000,450000,"Belgium, Korea, core funds",0,385058,385058,"Belgium, Korea, core funds",0,430119,0,null,430119,400000,0,null,400000,400000,0,null,400000]
[null,null,"WFP",990000,990000," "," ",0,990000,990000,"ECOWAS, Japan",0,0,0,null,0,0,0,null,0,0,0,null,0,0,0,null,0]
[null,null,"Total Output 2.1.3.",{"$f":"SUM(D21:D22)","v":3055177},{"$f":"SUM(E21:E22)","v":1825058}," "," ",{"$f":"SUM(H21:H22)","v":1230119},{"$f":"SUM(I21:I22)","v":1440000},{"$f":"SUM(J21:J22)","v":1440000}," ",0,{"$f":"SUM(M21:M22)","v":385058},{"$f":"SUM(N21:N22)","v":385058}," ",0,{"$f":"SUM(Q21:Q22)","v":430119},{"$f":"SUM(R21:R22)","v":0}," ",430119,{"$f":"SUM(U21:U22)","v":400000},{"$f":"SUM(V21:V22)","v":0}," ",400000,{"$f":"SUM(Y21:Y22)","v":400000},{"$f":"SUM(Z21:Z22)","v":0}," ",400000]
["Output 2.1.4: More people have access to upgraded technical and vocational education and training (TVET) for relevant skills to the current and future labour market, social protection and decent jobs.",{"$f":"D28","v":3277340.3351063849},"IOM",{"$f":"I24+M24+Q24+U24+Y24","v":2613691},{"$f":"J24+N24+R24+V24+Z24","v":163691}," "," ",{"$f":"D24-E24","v":2450000},85000,85000,"IOM dev. Fund ",{"$f":"I24-J24","v":0},78691,78691,"IOM dev fund",{"$f":"M24-N24","v":0},950000,0,null,950000,800000,0,null,800000,700000,0,null,700000]
[null,null,"UNDP",{"$f":"SUM(I25+M25+Q25+U25+Y25)","v":50000},0," "," ",{"$f":"D25-E25","v":50000},0,0,null,0,25000,0,null,25000,25000,0,null,25000,0,0,null,0,0,0,null,0]
[null,null,"UNIDO",541149.33510638494,0,null,null,541149.33510638494,0,0,null,0,0,0,null,0,270574.66755319247,0,null,270574.66755319247,135287.33377659624,0,null,135287.33377659624,135287.33377659624,0,null,135287.33377659624]
[null,null,"WIPO",{"$f":"SUM(I27+M27+Q27+U27+Y27)","v":72500},{"$f":"SUM(J27+N27+R27+V27+Z27)","v":72500}," "," ",0,null,null,null,0,null,null,null,0,72500,72500,null,0,null,null,null,0,null,null,null,0]
[null,null,"Total Output 2.1.4",{"$f":"SUM(D24:D27)","v":3277340.3351063849},{"$f":"SUM(E24:E27)","v":236191}," "," ",{"$f":"SUM(H24:H27)","v":3041149.3351063849},{"$f":"SUM(I24:I27)","v":85000},{"$f":"SUM(J24:J27)","v":85000}," ",0,{"$f":"SUM(M24:M27)","v":103691},{"$f":"SUM(N24:N27)","v":78691}," ",25000,{"$f":"SUM(Q24:Q27)","v":1318074.6675531925},{"$f":"SUM(R24:R27)","v":72500}," ",1245574.6675531925,{"$f":"SUM(U24:U27)","v":935287.33377659624},{"$f":"SUM(V24:V27)","v":0}," ",935287.33377659624,{"$f":"SUM(Y24:Y27)","v":835287.33377659624},{"$f":"SUM(Z24:Z27)","v":0}," ",835287.33377659624]
[]
["Grand Total Outcome 2.1",null,null,{"$f":"SUM(D23,D20,D14,D28)","v":28421698.867021274},{"$f":"SUM(E23,E20,E14,E28)","v":10070486},null,null,{"$f":"SUM(H23,H20,H14,H28)","v":18351212.867021278},{"$f":"SUM(I23,I20,I14,I28)","v":4314355},{"$f":"SUM(J23+J20+J14,J28)","v":4077919},null,{"$f":"SUM(L23+L20+L14,L28)","v":236436},{"$f":"SUM(M23,M20,M14,M28)","v":4225933},{"$f":"SUM(N23+N20+N14,N28)","v":3580147},null,{"$f":"SUM(P23+P20+P14,P28)","v":645786},{"$f":"SUM(Q23,Q20,Q14,Q28)","v":8103635.9335106388},{"$f":"SUM(R23+R20+R14,R28)","v":1272420},null,{"$f":"SUM(T23+T20+T14,T28)","v":6831215.9335106388},{"$f":"SUM(U23,U20,U14,U28)","v":6536387.4667553185},{"$f":"SUM(V23+V20+V14,V28)","v":1140000},null,{"$f":"SUM(X23+X20+X14,X28)","v":5396387.4667553185},{"$f":"SUM(Y23,Y20,Y14,Y28)","v":5241387.4667553185},{"$f":"SUM(Z23+Z20+Z14,Z28)","v":0},null,{"$f":"SUM(AB23+AB20+AB14,AB28)","v":5241387.4667553185}]

{"sheet":"MYFF - Outcome 2.2","index":3,"n_rows":24,"n_cols":28,"rows_kept":24,"cut":false,"hidden":false,"merged":[[10,0,14,0],[10,1,14,1],[0,0,0,27],[1,0,1,27],[2,0,4,0],[2,1,4,1],[2,2,4,2],[2,3,2,27],[3,3,3,7],[3,8,3,11],[3,12,3,15],[3,16,3,19],[3,20,3,23],[3,24,3,27],[5,0,9,0],[5,1,9,1],[18,0,21,0],[18,1,21,1],[23,0,23,2],[15,0,17,0],[15,1,17,1]]}
["Multi-Year Funding Framework (MYFF) - United Nations Sustainable Development Cooperation Framework (UNSDCF) 2023-2027 Cabo Verde"]
["Outcome 2.2: By 2027, key marine and land ecosystems and biodiversity are better protected, restored, and more sustainably managed and the resilience to shocks and climate change impacts are improved and gender responsive."]
["Cooperation Framework Output","Predicted cost of the output","UN Entity"]
[null,null,null,"MYFF (2023-2027)",null,null,null,null,"YEAR 1 (2023)",null,null,null,"YEAR 2 (2024)",null,null,null,"YEAR 3 (2025)",null,null,null,"YEAR 4 (2026)",null,null,null,"YEAR 5 (2027)"]
[null,null,null,"Total Funding Required ","Available Funding","Source of Available Funding\n","Type of Available Funding \n(assessed, core, non-core)","Funding to be Mobilized \n(D - E)","Total Funding Required ","Available Funding","Source of Available Funding","Funding to be Mobilized ","Total Funding Required ","Available Funding ","Source of Available Funding","Funding to be Mobilized ","Total Funding Required ","Available Funding ","Source of Available Funding","Funding to be Mobilized ","Total Funding Required ","Available Funding","Source of Available Funding","Funding to be Mobilized ","Total Funding Required ","Available Funding","Source of Available Funding","Funding to be Mobilized "]
["Output 2.2.1: More people and institutions have knowledge and awareness of natural wealth, the risks of degradations, and adequate access to natural resources management services and infrastructures",{"$f":"D10","v":8489000},"FAO",{"$f":"SUM(I6+M6+Q6+U6+Y6)","v":5000000},3358779," "," ",{"$f":"D6-E6","v":1641221},178779,178779,"GCF, GEF",{"$f":"I6-J6","v":0},180000,180000,"GCF, GEF",{"$f":"M6-N6","v":0},1641221,1000000,null,{"$f":"Q6-R6","v":641221},1500000,1000000,null,{"$f":"U6-V6","v":500000},1500000,1000000,null,{"$f":"Y6-Z6","v":500000}]
[null,null,"ONUHABITAT",100000,0," "," ",100000,0,0,null,{"$f":"I7-J7","v":0},0,0,null,{"$f":"M7-N7","v":0},50000,0,null,{"$f":"Q7-R7","v":50000},50000,0,null,{"$f":"U7-V7","v":50000},0,0,null,{"$f":"Y7-Z7","v":0}]
[null,null,"UNDP",3000000,906000," "," ",2094000,430000,430000,"GEF, core funds",0,476000,476000,"GEF, core funds",0,794000,0,null,794000,700000,0,null,700000,600000,0,null,600000]
[null,null,"UNESCO",389000,11384,null,null,377616,0,0,null,0,28000,11384,"Core funds",16616,121000,0,null,121000,120000,0,null,120000,120000,0,null,120000]
[null,null,"Total Output 2.2.1.",{"$f":"SUM(D6:D9)","v":8489000},{"$f":"SUM(E6:E9)","v":4276163}," "," ",{"$f":"SUM(H6:H9)","v":4212837},{"$f":"SUM(I6:I9)","v":608779},{"$f":"SUM(J6:J9)","v":608779}," ",{"$f":"SUM(L6:L9)","v":0},{"$f":"SUM(M6:M9)","v":684000},{"$f":"SUM(N6:N9)","v":667384}," ",{"$f":"SUM(P6:P9)","v":16616},{"$f":"SUM(Q6:Q9)","v":2606221},{"$f":"SUM(R6:R9)","v":1000000}," ",{"$f":"SUM(T6:T9)","v":1606221},{"$f":"SUM(U6:U9)","v":2370000},{"$f":"SUM(V6:V9)","v":1000000}," ",{"$f":"SUM(X6:X9)","v":1370000},{"$f":"SUM(Y6:Y9)","v":2220000},{"$f":"SUM(Z6:Z9)","v":1000000}," ",{"$f":"SUM(AB6:AB9)","v":1220000}]
["Output 2.2.2: National institutions have strengthened capacities for the conservation, restoration, and valorization of ecosystems and biodiversity, including with monitoring, information, protection and natural resources management systems, access to climate financing, and report on global commitments",{"$f":"D15","v":14827319},"FAO",{"$f":"SUM(I11+M11+Q11+U11+Y11)","v":10978709},{"$f":"SUM(J11+N11+R11+V11+Z11)","v":9777578}," "," ",{"$f":"D11-E11","v":1201131},407578,407578,"GEF, core funds",0,370000,370000,"GEF, core funds",0,4201131,3000000,null,1201131,3000000,3000000,null,0,3000000,3000000,null,0]
[null,null,"UNDP",{"$f":"SUM(I12+M12+Q12+U12+Y12)","v":3000000},817826," "," ",2182174,519527,519527,"GEF",0,298299,298299,"GEF",0,782174,0,null,782174,700000,0,null,700000,700000,0,null,700000]
[null,null,"UNEP",619782,328422," "," ",291360,180000,124000,"Montreal Protocol",56000,430600,204422,"Montreal Protocol, GEF, SOFF",226178,9182,0,null,9182,0,0,null,0,0,0,null,0]
[null,null,"UNIDO",228828,228828,null,null,0,149500,149500,"GCF",0,79328,79328,"GCF",0,0,0,null,0,0,0,null,0,0,0,null,0]
[null,null,"Total Output 2.2.2.",{"$f":"SUM(D11:D14)","v":14827319},{"$f":"SUM(E11:E14)","v":11152654},null,null,{"$f":"SUM(H11:H14)","v":3674665},{"$f":"SUM(I11:I14)","v":1256605},{"$f":"SUM(J11:J14)","v":1200605}," ",{"$f":"SUM(L11:L14)","v":56000},{"$f":"SUM(M11:M14)","v":1178227},{"$f":"SUM(N11:N14)","v":952049}," ",{"$f":"SUM(P11:P14)","v":226178},{"$f":"SUM(Q11:Q14)","v":4992487},{"$f":"SUM(R11:R14)","v":3000000}," ",{"$f":"SUM(T11:T14)","v":1992487},{"$f":"SUM(U11:U14)","v":3700000},{"$f":"SUM(V11:V14)","v":3000000}," ",{"$f":"SUM(X11:X14)","v":700000},{"$f":"SUM(Y11:Y14)","v":3700000},{"$f":"SUM(Z11:Z14)","v":3000000}," ",{"$f":"SUM(AB11:AB14)","v":700000}]
["Output 2.2.3: Legal and planning frameworks are improved and better implemented with participatory approaches in the management of environmental & natural resources, including affordable clean energy, and the preparedness and response to shocks.",{"$f":"D18","v":6758023.6000000006},"UNESCO",{"$f":"SUM(I16+M16+Q16+U16+Y16)","v":8000},0," "," ",{"$f":"D16-E16","v":8000},0,0,null,0,8000,0,null,8000,0,0,null,0,0,0,null,0,0,0,null,0]
[null,null,"UNIDO",6750023.6000000006,1835603,null,null,4914420.6000000006,266103,266103,"GEF; GCF",0,1069500,1069500,"GEF; GCF",0,2138140.2000000002,500000,"GEF",1638140.2000000002,1638140.2,0,null,1638140.2,1638140.2,0,null,1638140.2]
[null,null,"Total Output 2.2.3.",{"$f":"SUM(D16:D17)","v":6758023.6000000006},{"$f":"SUM(E16:E17)","v":1835603},null,null,{"$f":"SUM(H16:H17)","v":4922420.6000000006},{"$f":"SUM(I16:I17)","v":266103},{"$f":"SUM(J16:J17)","v":266103}," ",{"$f":"SUM(L16:L17)","v":0},{"$f":"SUM(M16:M17)","v":1077500},{"$f":"SUM(N16:N17)","v":1069500}," ",{"$f":"SUM(P16:P17)","v":8000},{"$f":"SUM(Q16:Q17)","v":2138140.2000000002},{"$f":"SUM(R16:R17)","v":500000}," ",{"$f":"SUM(T16:T17)","v":1638140.2000000002},{"$f":"SUM(U16:U17)","v":1638140.2},{"$f":"SUM(V16:V17)","v":0}," ",{"$f":"SUM(X16:X17)","v":1638140.2},{"$f":"SUM(Y16:Y17)","v":1638140.2},{"$f":"SUM(Z16:Z17)","v":0}," ",{"$f":"SUM(AB16:AB17)","v":1638140.2}]
["Output 2.2.4: Actors have better access to knowledge, innovative techniques and technologies for integrated gender-sensitive territorial planning, including decision-making about land and sea use, ecosystems’ healthy functioning and the sustainable increase of the services provided.",{"$f":"D22","v":12250806},"FAO",{"$f":"SUM(I19+M19+Q19+U19+Y19)","v":5000000},2842352," "," ",{"$f":"D19-E19","v":2157648},122352,122352,"GCF, GEF",0,120000,120000,"GCF, GEF",0,1757648,600000,null,1157648,1500000,1000000,null,500000,1500000,1000000,null,500000]
[null,null,"UNDP",7049806,1866980," "," ",5182826,763490,763490,"GEF",0,1103490,1103490,"GEF",0,2182826,0,null,2182826,1500000,0,null,1500000,1500000,0,null,1500000]
[null,null,"UNESCO",201000,184641,400000,143000,16359,143000,143000,"EU",0,58000,41641,"Core funds, regular programme",16359,0,0,null,0,0,0,null,0,0,0,null,0]
[null,null,"Total Output 2.2.4.",{"$f":"SUM(D19:D21)","v":12250806},{"$f":"SUM(E19:E21)","v":4893973},null,null,{"$f":"SUM(H19:H21)","v":7356833},{"$f":"SUM(I19:I21)","v":1028842},{"$f":"SUM(J19:J21)","v":1028842}," ",{"$f":"SUM(L19:L21)","v":0},{"$f":"SUM(M19:M21)","v":1281490},{"$f":"SUM(N19:N21)","v":1265131}," ",{"$f":"SUM(P19:P21)","v":16359},{"$f":"SUM(Q19:Q21)","v":3940474},{"$f":"SUM(R19:R21)","v":600000}," ",{"$f":"SUM(T19:T21)","v":3340474},{"$f":"SUM(U19:U21)","v":3000000},{"$f":"SUM(V19:V21)","v":1000000}," ",{"$f":"SUM(X19:X21)","v":2000000},{"$f":"SUM(Y19:Y21)","v":3000000},{"$f":"SUM(Z19:Z21)","v":1000000}," ",{"$f":"SUM(AB19:AB21)","v":2000000}]
[]
["Grand Total Outcome 2.2",null,null,{"$f":"SUM(D18,D15,D10,D22)","v":42325148.600000001},{"$f":"SUM(E18,E15,E10,E22)","v":22158393},null,null,{"$f":"SUM(H18,H15,H10,H22)","v":20166755.600000001},{"$f":"SUM(I18,I15,I10,I22)","v":3160329},{"$f":"SUM(J18+J15+J10,J22)","v":3104329},null,{"$f":"SUM(L18+L15+L10,L22)","v":56000},{"$f":"SUM(M18,M15,M10,M22)","v":4221217},{"$f":"SUM(N18+N15+N10,N22)","v":3954064},null,{"$f":"SUM(P18+P15+P10,P22)","v":267153},{"$f":"SUM(Q18,Q15,Q10,Q22)","v":13677322.199999999},{"$f":"SUM(R18+R15+R10,R22)","v":5100000},null,{"$f":"SUM(T18+T15+T10,T22)","v":8577322.1999999993},{"$f":"SUM(U18,U15,U10,U22)","v":10708140.199999999},{"$f":"SUM(V18+V15+V10,V22)","v":5000000},null,{"$f":"SUM(X18+X15+X10,X22)","v":5708140.2000000002},{"$f":"SUM(Y18,Y15,Y10,Y22)","v":10558140.199999999},{"$f":"SUM(Z18+Z15+Z10,Z22)","v":5000000},null,{"$f":"SUM(AB18+AB15+AB10,AB22)","v":5558140.2000000002}]

{"sheet":"MYFF - Outcome 3.1","index":4,"n_rows":32,"n_cols":28,"rows_kept":32,"cut":false,"hidden":false,"merged":[[8,0,15,0],[8,1,15,1],[0,0,0,27],[1,0,1,27],[2,0,4,0],[2,1,4,1],[2,2,4,2],[2,3,2,27],[3,3,3,7],[3,8,3,11],[3,12,3,15],[5,0,7,0],[5,1,7,1],[3,16,3,19],[3,20,3,23],[3,24,3,27],[16,0,24,0],[16,1,24,1],[31,0,31,2],[25,0,30,0],[25,1,30,1]]}
["Multi-Year Funding Framework (MYFF) - United Nations Sustainable Development Cooperation Framework (UNSDCF) 2023-2027 Cabo Verde"]
["Outcome 3.1: By 2027, more people, especially women, youth and those in vulnerable groups, freely exercise their rights, participate in, and benefit from, inclusive, resilient, transparent, and accountable institutions and a more modernized, transformative and effective system of democratic governance that upholds the rule of law, at national and local levels."]
["Cooperation Framework Output","Predicted cost of the output","UN Entity"]
[null,null,null,"MYFF (2023-2027)",null,null,null,null,"YEAR 1 (2023)",null,null,null,"YEAR 2 (2024)",null,null,null,"YEAR 3 (2025)",null,null,null,"YEAR 4 (2026)",null,null,null,"YEAR 5 (2027)"]
[null,null,null,"Total Funding Required ","Available Funding","Source of Available Funding","Type of Available Funding \n(assessed, core, non-core)","Funding to be Mobilized \n(D - E)","Total Funding Required ","Available Funding","Source of Available Funding","Funding to be Mobilized ","Total Funding Required ","Available Funding ","Source of Available Funding","Funding to be Mobilized ","Total Funding Required ","Available Funding ","Source of Available Funding","Funding to be Mobilized ","Total Funding Required ","Available Funding","Source of Available Funding","Funding to be Mobilized ","Total Funding Required ","Available Funding","Source of Available Funding","Funding to be Mobilized "]
["Output 3.1.1: More people, particularly women and youth and those living in vulnerable situations, are empowered to exercise their rights, individually or through stronger and more effective civil society organizations.",{"$f":"D8","v":4550000},"UNCTAD",{"$f":"SUM(I6+M6+Q6+U6+Y6)","v":1550000},40000," "," ",{"$f":"D6-E6","v":1510000},300000,20000,"Core Funding",{"$f":"I6-J6","v":280000},300000,20000,"Core Funding",{"$f":"M6-N6","v":280000},350000,0,null,{"$f":"Q6-R6","v":350000},300000,0,null,{"$f":"U6-V6","v":300000},300000,0,null,{"$f":"Y6-Z6","v":300000}]
[null,null,"UNDP",3000000,30000," "," ",2970000,1027466,30000,"core funding",997466,0,0,null,0,772534,0,null,772534,600000,0,null,600000,600000,0,null,600000]
[null,null,"Total Output 3.1.1.",{"$f":"SUM(D6:D7)","v":4550000},{"$f":"SUM(E6:E7)","v":70000},null,null,{"$f":"SUM(H6:H7)","v":4480000},{"$f":"SUM(I6:I7)","v":1327466},{"$f":"SUM(J6:J7)","v":50000}," ",{"$f":"SUM(L6:L7)","v":1277466},{"$f":"SUM(M6:M7)","v":300000},{"$f":"SUM(N6:N7)","v":20000}," ",{"$f":"SUM(P6:P7)","v":280000},{"$f":"SUM(Q6:Q7)","v":1122534},{"$f":"SUM(R6:R7)","v":0}," ",{"$f":"SUM(T6:T7)","v":1122534},{"$f":"SUM(U6:U7)","v":900000},{"$f":"SUM(V6:V7)","v":0}," ",{"$f":"SUM(X6:X7)","v":900000},{"$f":"SUM(Y6:Y7)","v":900000},{"$f":"SUM(Z6:Z7)","v":0}," ",{"$f":"SUM(AB6:AB7)","v":900000}]
["Output 3.1.2: State institutions have enhanced capacities for more coherent, transparent, accountable, evidence and results-based, participative and innovative policy and strategy design and implementation at all levels to address structural barriers, enhance economic growth, reduce territorial and social disparities and advance gender equality ",{"$f":"D16","v":12894058},"ILO",{"$f":"SUM(I9+M9+Q9+U9+Y9)","v":515509},{"$f":"SUM(J9+N9+R9+V9+Z9)","v":234197}," "," ",{"$f":"D9-E9","v":281312},176731,136731,"Finland",40000,120778,97466,"Finland",23312,88000,0,null,88000,70000,0,null,70000,60000,0,null,60000]
[null,null,"IOM",{"$f":"SUM(I10+M10+Q10+U10+Y10)","v":1500000},{"$f":"SUM(J10+N10+R10+V10+Z10)","v":912862}," "," ",587138,820943,820943,"Denmark, IOM dev Fund",0,91919,91919,"IOM dev Fund",0,287138,0,null,287138,150000,0,null,150000,150000,0,null,150000]
[null,null,"OHRCHR",{"$f":"SUM(I11+M11+Q11+U11+Y11)","v":156500},34500," "," ",122000,0,0,null,0,19500,17500,"Core Funding",2000,47000,17000,null,30000,45000,0,null,45000,45000,0,null,45000]
[null,null,"UN WOMEN",150000,0," "," ",150000,0,0,null,0,0,0,null,0,50000,0,null,50000,50000,0,null,50000,50000,0,null,50000]
[null,null,"UNDP",8552049,7744583," "," ",807466,162000,142000,"Core Funding",20000,3435583,3402583,"Luxembourg, EU, core funding",33000,1954466,1900000,"Luxembourg, EU",54466,1500000,1300000,"Luxembourg, EU",200000,1500000,1000000,"Luxembourg",500000]
[null,null,"UNFPA",20000,20000," "," ",0,0,0,null,0,20000,20000,"Core Funding",0,0,0,null,0,0,0,null,0,0,0,null,0]
[null,null,"UNHABITAT",2000000,1550000," "," ",450000,200000,0,null,200000,550000,550000,"Luxembourg ",0,500000,500000,"Luxembourg ",0,500000,500000,"Luxembourg ",0,250000,0,"Luxembourg",250000]
[null,null,"Total Output 3.1.2.",{"$f":"SUM(D9:D15)","v":12894058},{"$f":"SUM(E9:E15)","v":10496142},null,null,{"$f":"SUM(H9:H15)","v":2397916},{"$f":"SUM(I9:I15)","v":1359674},{"$f":"SUM(J9:J15)","v":1099674}," ",{"$f":"SUM(L9:L15)","v":260000},{"$f":"SUM(M9:M15)","v":4237780},{"$f":"SUM(N9:N15)","v":4179468}," ",{"$f":"SUM(P9:P15)","v":58312},{"$f":"SUM(Q9:Q15)","v":2926604},{"$f":"SUM(R9:R15)","v":2417000}," ",{"$f":"SUM(T9:T15)","v":509604},{"$f":"SUM(U9:U15)","v":2315000},{"$f":"SUM(V9:V15)","v":1800000}," ",{"$f":"SUM(X9:X15)","v":515000},{"$f":"SUM(Y9:Y15)","v":2055000},{"$f":"SUM(Z9:Z15)","v":1000000}," ",{"$f":"SUM(AB9:AB15)","v":1055000}]
["Output 3.1.3: Public and private institutions at all levels have enhanced capacities to coordinate, develop partnerships and increase the mobilization of internal and external financial and technical resources, including from the Diaspora.",{"$f":"D25","v":7090519.0168067217},"FAO",{"$f":"SUM(I17+M17+Q17+U17+Y17)","v":1699477},436477," "," ",{"$f":"D17-E17","v":1263000},315307,315307,"GEF",0,121170,121170,"GEF",0,463000,0,null,463000,400000,0,null,400000,400000,0,null,400000]
[null,null,"IOM",250000,110044," "," ",139956,58000,58000,"IOM dev Fund",0,52044,52044,"IOM dev Fund",0,49956,0,null,49956,45000,0,null,45000,45000,0,null,45000]
[null,null,"UNCTAD",400000,80000," "," ",320000,0,0,null,0,80000,80000,"UN dev account",0,120000,0,null,120000,100000,0,null,100000,100000,0,null,100000]
[null,null,"UNDP",3000000,360000," "," ",2640000,850000,349000,"Joint SDG, core funding",501000,75000,11000,"Core Funding",64000,775000,0,null,775000,650000,0,null,650000,650000,0,null,650000]
[null,null,"UNESCO",476000,50000," "," ",426000,90000,50000,"Core Funding",40000,0,0,null,0,156000,0,null,156000,130000,0,null,130000,100000,0,null,100000]
[null,null,"UNFPA",480000,335276," "," ",144724,280000,240000,null,40000,200000,95276,null,104724,0,0,null,0,0,0,null,0,0,0,null,0]
[null,null,"UNICEF",250000,96000," "," ",154000,100000,96000,null,4000,0,0,null,0,50000,0,null,50000,50000,0,null,50000,50000,0,null,50000]
[null,null,"UNIDO",535042.01680672192,245042.01680672201,null,null,289999.99999999988,61000,61000,"Core Funding",0,59000,59000,"Core Funding",0,194894.95798319299,59894.957983192951,"Core Funding",135000.00000000003,200147.05882352899,65147.058823529049,"Core Funding",134999.99999999994,20000,0,null,20000]
[null,null,"Total Output 3.1.3.",{"$f":"SUM(D17:D24)","v":7090519.0168067217},{"$f":"SUM(E17:E24)","v":1712839.0168067219},null,null,{"$f":"SUM(H17:H24)","v":5377680},{"$f":"SUM(I17:I24)","v":1754307},{"$f":"SUM(J17:J24)","v":1169307}," ",{"$f":"SUM(L17:L24)","v":585000},{"$f":"SUM(M17:M24)","v":587214},{"$f":"SUM(N17:N24)","v":418490}," ",{"$f":"SUM(P17:P24)","v":168724},{"$f":"SUM(Q17:Q24)","v":1808850.957983193},{"$f":"SUM(R17:R24)","v":59894.957983192951}," ",{"$f":"SUM(T17:T24)","v":1748956},{"$f":"SUM(U17:U24)","v":1575147.0588235289},{"$f":"SUM(V17:V24)","v":65147.058823529049}," ",{"$f":"SUM(X17:X24)","v":1510000},{"$f":"SUM(Y17:Y24)","v":1365000},{"$f":"SUM(Z17:Z24)","v":0}," ",{"$f":"SUM(AB17:AB24)","v":1365000}]
["Output 3.1.4: Justice and security systems are strengthened to improve access, be accountable, effective and efficient, prevent violence, fight against illicit trafficking and crimes, especially those against women and children, and provide effective remedy.",{"$f":"D30","v":2983000},"IOM",{"$f":"SUM(I26+M26+Q26+U26+Y26)","v":200000},115298," "," ",{"$f":"D26-E26","v":84702},43000,43000,"USA, Spain",0,72298,72298,"USA, Spain",0,34702,0,null,34702,25000,0," ",25000,25000,0,null,25000]
[null,null,"UNDP",1000000,20000," "," ",980000,65000,20000,null,45000,0,0,null,0,335000,0,null,335000,300000,0,null,300000,300000,0,null,300000]
[null,null,"UNICEF",100000,60000," "," ",40000,100000,60000,null,40000,0,0,null,0,0,0,null,0,0,0,null,0,0,0,null,0]
[null,null,"UNODC",1683000,1359000," "," ",324000,943000,983000,"USA, Germany, EU",-40000,580000,376000,"EU, USA, Germany",204000,160000,0,null,160000,0,0,null,0,0,0,null,0]
[null,null,"Total Output 3.1.4.",{"$f":"SUM(D26:D29)","v":2983000},{"$f":"SUM(E26:E29)","v":1554298},null,null,{"$f":"SUM(H26:H29)","v":1428702},{"$f":"SUM(I26:I29)","v":1151000},{"$f":"SUM(J26:J29)","v":1106000}," ",{"$f":"SUM(L26:L29)","v":45000},{"$f":"SUM(M26:M29)","v":652298},{"$f":"SUM(N26:N29)","v":448298}," ",{"$f":"SUM(P26:P29)","v":204000},{"$f":"SUM(Q26:Q29)","v":529702},{"$f":"SUM(R26:R29)","v":0}," ",{"$f":"SUM(T26:T29)","v":529702},{"$f":"SUM(U26:U29)","v":325000},{"$f":"SUM(V26:V29)","v":0}," ",{"$f":"SUM(X26:X29)","v":325000},{"$f":"SUM(Y26:Y29)","v":325000},{"$f":"SUM(Z26:Z29)","v":0}," ",{"$f":"SUM(AB26:AB29)","v":325000}]
[]
["Grand Total Outcome 3.1",null,null,{"$f":"SUM(D25,D16,D8,D30)","v":27517577.016806722},{"$f":"SUM(E25,E16,E8,E30)","v":13833279.016806722},null,null,{"$f":"SUM(H25,H16,H8,H30)","v":13684298},{"$f":"SUM(I25,I16,I8,I30)","v":5592447},{"$f":"SUM(J25+J16+J8,J30)","v":3424981},null,{"$f":"SUM(L25+L16+L8,L30)","v":2167466},{"$f":"SUM(M25,M16,M8,M30)","v":5777292},{"$f":"SUM(N25+N16+N8,N30)","v":5066256},null,{"$f":"SUM(P25+P16+P8,P30)","v":711036},{"$f":"SUM(Q25,Q16,Q8,Q30)","v":6387690.957983193},{"$f":"SUM(R25+R16+R8,R30)","v":2476894.957983193},null,{"$f":"SUM(T25+T16+T8,T30)","v":3910796},{"$f":"SUM(U25,U16,U8,U30)","v":5115147.0588235287},{"$f":"SUM(V25+V16+V8,V30)","v":1865147.0588235292},null,{"$f":"SUM(X25+X16+X8,X30)","v":3250000},{"$f":"SUM(Y25,Y16,Y8,Y30)","v":4645000},{"$f":"SUM(Z25+Z16+Z8,Z30)","v":1000000},null,{"$f":"SUM(AB25+AB16+AB8,AB30)","v":3645000}]

{"sheet":"Sheet1","index":5,"n_rows":1401,"n_cols":8,"rows_kept":1401,"cut":false,"hidden":true,"merged":[]}
[null,null,null,null,"Hayat Kareema Districts",null,null,"Hayat Kareema Village"]
[null,null,null,null,"Abnoub","Enhancing Infrastructure Service Pillar",null," Al Atmour qubli"]
[null,null,null,null,"Abu Al Matameer ","Human Capital Development Pillar",null,"aba alwaqf"]
[null,null,null,null,"Abu Homus","Social Protection Pillar",null,"abbas al akkad"]
[null,null,null,null,"Abu Korkas","Economic Development Pillar",null,"abbasa"]
[null,null,null,null,"Abu Teag",null,null,"abd al azim zahir"]
[null,null,null,null,"Abu Tesht",null,null,"abd almoneim riyad"]
["QCPR",null,null,null,"Al Blina",null,null,"abeadih damanhur"]
["Policy development and enhancement & thought leadership",null,null,null,"Al Edwah",null,null,"abis alkhamisa watawabueuha"]
["Capacity development/technical assistance",null,null,null,"Al Fatah",null,null,"abis almustajiduh"]
["Direct support/service delivery",null,null,null,"Al Housinia",null,null,"abis alrabiea watawabueuha"]
["Normative Support",null,null,null,"Al Maraghah",null,null,"abis althalitha watawabieaha"]
["Data Collection and Analysis",null,null,null,"Al Minshah",null,null,"abshada"]
["Convening/Partnerships/Knowledge Sharing",null,null,null,"Al Osyrat",null,null,"abshadat"]
["Other (including coordination)",null,null,null,"Al Saf",null,null,"abu  alhadar"]
[null,null,null,null,"Al Shohdaa",null,null,"abu  alhoul, abu bakr"]
[0,null,null,null,"Alwakef",null,null,"abu  alnasr"]
[1,null,null,null,"Armant",null,null,"abu  awala wamanashatuh"]
[2,null,null,null,"Ashmoun",null,null,"abu  aziz"]
[3,null,null,null,"Atfeh",null,null,"abu  diab gharb"]
[null,null,null,null,"Atsa",null,null,"abu  diab sharq"]
["YES",null,null,null,"Beba",null,null,"abu  hurairah"]
["NO",null,null,null,"Borg Alarab",null,null,"abu  jalal"]
[null,null,null,null,"Daer Mwas",null,null,"abu  jndyr"]
[null,null,null,null,"Dairout",null,null,"abu  kals"]
[null,null,null,null,"Damanhour",null,null,"abu  manaa bahari"]
[null,null,null,null,"Dar Alsalam",null,null,"abu  manaa gharb"]
[null,null,null,null,"Deshna",null,null,"abu  manaa qibli"]
[null,null,null,null,"El Qantara Sharq",null,null,"abu  manaa sharq"]
[null,null,null,null,"Farafra",null,null,"abu  minqar"]
[null,null,null,null,"Farashout",null,null,"abu  qultah"]
[null,null,null,null,"Gerga",null,null,"abu  rashid"]
[null,null,null,null,"Gerga city",null,null,"abu  shariban"]
[null,null,null,null,"Housh Issa ",null,null,"abu  shuwshah"]
[null,null,null,null,"Idfo",null,null,"abu  sir difnou"]
[null,null,null,null,"Isna",null,null,"abu akhurs"]
[null,null,null,null,"Kafr El Dawar",null,null,"abu alikhazr"]
[null,null,null,null,"Kafr Saad",null,null,"abu almatamir albaharia"]
[null,null,null,null,"Kesm Kafr El Dawar",null,null,"abu alnawm w tawabueuha"]
[null,null,null,null,"Kom Aumbo",null,null,"abu alsafa"]
[null,null,null,null,"Maghaghah",null,null,"abu alshaqaaf"]
[null,null,null,null,"Malwai",null,null,"abu basht"]
[null,null,null,null,"Manflout",null,null,"abu dafiha"]
[null,null,null,null,"Motobes",null,null,"abu karim"]
[null,null,null,null,"Naser",null,null,"abu khalaqa"]
[null,null,null,null,"Quos",null,null,"abu qurqas albalad"]
[null,null,null,null,"Sadfa",null,null,"abu raqabuh"]
[null,null,null,null,"Sahel Selim",null,null,"abu zaharih"]
[null,null,null,null,"Saqultah",null,null,"abusir"]
[null,null,null,null,"Shbeen Al kanter",null,null,"abwaeiad"]
[null,null,null,null,"Shrbeen",null,null,"abyanah"]
[null,null,null,null,"Tama",null,null,"abyas alssadisuh watawabueuha"]
[null,null,null,null,"Wadi Al Natroun ",null,null,"abyouha"]
[null,null,null,null,"Yousef Al Sedik ",null,null,"adfw qibli"]
[null,null,null,null,"Zefta",null,null,"aflaquh"]
[null,null,null,null,null,null,null,"Al Abtal"]
[null,null,null,null,null,null,null,"al amal"]
[null,null,null,null,null,null,null,"al aqdam - 5"]
[null,null,null,null,null,null,null,"al Ashraaf"]
[null,null,null,null,null,null,null,"al awsat samhud"]
[null,null,null,null,null,null,null,"al emam malik"]
[null,null,null,null,null,null,null,"al eman"]
[null,null,null,null,null,null,null,"Al Ghurizat"]
[null,null,null,null,null,null,null,"al islah"]
[null,null,null,null,null,null,null,"al kom al akhdar"]
[null,null,null,null,null,null,null,"Al Mhariza"]
[null,null,null,null,null,null,null,"Al Rghamuh sharq"]
[null,null,null,null,null,null,null,"al salam"]
[null,null,null,null,null,null,null,"al saleheyah 3(aliabtal)"]
[null,null,null,null,null,null,null,"al saleheyah-7 al ahrar"]
[null,null,null,null,null,null,null,"Al Sulimat"]
[null,null,null,null,null,null,null,"alabbasseya aljadidia"]
[null,null,null,null,null,null,null,"alablaq"]
[null,null,null,null,null,null,null,"alabqiein"]
[null,null,null,null,null,null,null,"aladaruh"]
[null,null,null,null,null,null,null,"aladaymuh"]
[null,null,null,null,null,null,null,"alaghanuh"]
[null,null,null,null,null,null,null,"alahayuwa gharb"]
[null,null,null,null,null,null,null,"alahmadih"]
[null,null,null,null,null,null,null,"alahmadih"]
[null,null,null,null,null,null,null,"alahraaz"]
[null,null,null,null,null,null,null,"Alahrar"]
[null,null,null,null,null,null,null,"alainjab"]
[null,null,null,null,null,null,null,"alaiqsas"]
[null,null,null,null,null,null,null,"alakhsas"]
[null,null,null,null,null,null,null,"alakhyuwh"]
[null,null,null,null,null,null,null,"alakrad"]
[null,null,null,null,null,null,null,"alalayqat"]
[null,null,null,null,null,null,null,"alamaaria algharbia"]
[null,null,null,null,null,null,null,"alamaariuh alsharqia"]
[null,null,null,null,null,null,null,"alamayida"]
[null,null,null,null,null,null,null,"alaoufuy"]
[null,null,null,null,null,null,null,"alaqab"]
[null,null,null,null,null,null,null,"alaqadmuh"]
[null,null,null,null,null,null,null,"alaqleyah"]
[null,null,null,null,null,null,null,"alaqwaz"]
[null,null,null,null,null,null,null,"alarin bahari"]
[null,null,null,null,null,null,null,"alarin qibli"]
[null,null,null,null,null,null,null,"alarkaa"]
[null,null,null,null,null,null,null,"alarqoub"]
[null,null,null,null,null,null,null,"alarwaa"]
[null,null,null,null,null,null,null,"alasakira"]
[null,null,null,null,null,null,null,"alashmunin"]
[null,null,null,null,null,null,null,"alasraa walmieraj"]
[null,null,null,null,null,null,null,"alatamina"]
[null,null,null,null,null,null,null,"alataminuh walmazarah"]
[null,null,null,null,null,null,null,"alattara"]
[null,null,null,null,null,null,null,"alattayat"]
[null,null,null,null,null,null,null,"alawamir bahari"]
[null,null,null,null,null,null,null,"alawamir qibli"]
[null,null,null,null,null,null,null,"alawamir wabani biraza"]
[null,null,null,null,null,null,null,"alawamiyah"]
[null,null,null,null,null,null,null,"alazimuh"]
[null,null,null,null,null,null,null,"albadarman"]
[null,null,null,null,null,null,null,"albadrawy"]
[null,null,null,null,null,null,null,"albahari samhud"]
[null,null,null,null,null,null,null,"albahgour"]
[null,null,null,null,null,null,null,"albajia bisheikh youssif"]
[null,null,null,null,null,null,null,"albakaria"]
[null,null,null,null,null,null,null,"albalabish almustajiduh"]
[null,null,null,null,null,null,null,"albalabish bahari"]
[null,null,null,null,null,null,null,"albalabish qibli"]
[null,null,null,null,null,null,null,"albalaeizatayn"]
[null,null,null,null,null,null,null,"albalayizuh"]
[null,null,null,null,null,null,null,"albaraba"]
[null,null,null,null,null,null,null,"albaraj"]
[null,null,null,null,null,null,null,"albarajil"]
[null,null,null,null,null,null,null,"albaraka"]
[null,null,null,null,null,null,null,"albarba"]
[null,null,null,null,null,null,null,"albarba"]
[null,null,null,null,null,null,null,"albarmel"]
[null,null,null,null,null,null,null,"albarsha"]
[null,null,null,null,null,null,null,"albarud gharb"]
[null,null,null,null,null,null,null,"albarud shrq"]
[null,null,null,null,null,null,null,"albasali"]
[null,null,null,null,null,null,null,"albasiliuh alwasta"]
[null,null,null,null,null,null,null,"albasiliuh qibli"]
[null,null,null,null,null,null,null,"albawarik"]
[null,null,null,null,null,null,null,"albayadi walqaria"]
[null,null,null,null,null,null,null,"albayadia bialnaazir"]
[null,null,null,null,null,null,null,"albayda"]
[null,null,null,null,null,null,null,"albrnoji"]
[null,null,null,null,null,null,null,"albtakh"]
[null,null,null,null,null,null,null,"albusaliqun"]
[null,null,null,null,null,null,null,"albusqalun"]
[null,null,null,null,null,null,null,"aldababishuh"]
[null,null,null,null,null,null,null,"aldahsah"]
[null,null,null,null,null,null,null,"aldama"]
[null,null,null,null,null,null,null,"aldanaquluh"]
[null,null,null,null,null,null,null,"aldaqadiq"]
[null,null,null,null,null,null,null,"aldawajin"]
[null,null,null,null,null,null,null,"aldawir"]
[null,null,null,null,null,null,null,"aldawirat"]
[null,null,null,null,null,null,null,"aldayusamy"]
[null,null,null,null,null,null,null,"aldihria"]
[null,null,null,null,null,null,null,"aldiymuqrat"]
[null,null,null,null,null,null,null,"aldiyr"]
[null,null,null,null,null,null,null,"aldubaeunuh"]
[null,null,null,null,null,null,null,"alduwmariuh"]
[null,null,null,null,null,null,null,"aleafadiruh"]
[null,null,null,null,null,null,null,"alealy"]
[null,null,null,null,null,null,null,"aleasirat"]
[null,null,null,null,null,null,null,"aleataminuh"]
[null,null,null,null,null,null,null,"aleawnuh"]
[null,null,null,null,null,null,null,"aleayadia"]
[null,null,null,null,null,null,null,"aleayayishuh"]
[null,null,null,null,null,null,null,"aleayishuh"]
[null,null,null,null,null,null,null,"aleazuh"]
[null,null,null,null,null,null,null,"aleimria"]
[null,null,null,null,null,null,null,"Aleizba"]
[null,null,null,null,null,null,null,"alekrysha"]
[null,null,null,null,null,null,null,"aleudih"]
[null,null,null,null,null,null,null,"aleumur"]
[null,null,null,null,null,null,null,"aleutiyat alqibliuh"]
[null,null,null,null,null,null,null,"alezbet almustajiduh"]
[null,null,null,null,null,null,null,"alezibet"]
[null,null,null,null,null,null,null,"alfahimiiyn"]
[null,null,null,null,null,null,null,"alfima"]
[null,null,null,null,null,null,null,"alfqaea"]
[null,null,null,null,null,null,null,"alfuqaie"]
[null,null,null,null,null,null,null,"algehad"]
[null,null,null,null,null,null,null,"alghaba"]
[null,null,null,null,null,null,null,"alghabah"]
[null,null,null,null,null,null,null,"alghabat"]
[null,null,null,null,null,null,null,"alghanimia"]
[null,null,null,null,null,null,null,"algharaq bahari"]
[null,null,null,null,null,null,null,"algharaq qibli"]
[null,null,null,null,null,null,null,"algharib"]
[null,null,null,null,null,null,null,"algharib"]
[null,null,null,null,null,null,null,"algharira"]
[null,null,null,null,null,null,null,"alghariruh"]
[null,null,null,null,null,null,null,"alghurbaniat"]
[null,null,null,null,null,null,null,"alhabil walshalulia"]
[null,null,null,null,null,null,null,"alhabilat algharbia"]
[null,null,null,null,null,null,null,"alhabilat alsharqia"]
[null,null,null,null,null,null,null,"alhadiquh"]
[null,null,null,null,null,null,null,"alhajar"]
[null,null,null,null,null,null,null,"alhajaziuh"]
[null,null,null,null,null,null,null,"alhajir bawilad yehia"]
[null,null,null,null,null,null,null,"alhajir w tawabueuha"]
[null,null,null,null,null,null,null,"alhaju qandil"]
[null,null,null,null,null,null,null,"alhajz"]
[null,null,null,null,null,null,null,"alhajz bahari"]
[null,null,null,null,null,null,null,"alhajz qibli"]
[null,null,null,null,null,null,null,"alhalafa"]
[null,null,null,null,null,null,null,"alhalaqaa"]
[null,null,null,null,null,null,null,"alhamadiiyn"]
[null,null,null,null,null,null,null,"alhamam"]
[null,null,null,null,null,null,null,"alhamam"]
[null,null,null,null,null,null,null,"alhamam"]
[null,null,null,null,null,null,null,"alhamamiha"]
[null,null,null,null,null,null,null,"alhamidat"]
[null,null,null,null,null,null,null,"alhamidia"]
[null,null,null,null,null,null,null,"alhamma"]
[null,null,null,null,null,null,null,"alhamouly"]
[null,null,null,null,null,null,null,"alhamraa"]
[null,null,null,null,null,null,null,"alhanadi"]
[null,null,null,null,null,null,null,"alharadunuh"]
[null,null,null,null,null,null,null,"alharafuh (salh aldaminaa sabqa)"]
[null,null,null,null,null,null,null,"alharajiuh"]
[null,null,null,null,null,null,null,"alharajuh qibli"]
[null,null,null,null,null,null,null,"alharfuh"]
[null,null,null,null,null,null,null,"alharidia"]
[null,null,null,null,null,null,null,"alharih"]
[null,null,null,null,null,null,null,"alharih"]
[null,null,null,null,null,null,null,"alharizat algharbia"]
[null,null,null,null,null,null,null,"alharizat alsharqia"]
[null,null,null,null,null,null,null,"alharjuh"]
[null,null,null,null,null,null,null,"alharjuh bahari"]
[null,null,null,null,null,null,null,"alharjuh walqaraean"]
[null,null,null,null,null,null,null,"alhasamiduh"]
[null,null,null,null,null,null,null,"alhasayna"]
[null,null,null,null,null,null,null,"alhassanuh"]
[null,null,null,null,null,null,null,"alhassayna"]
[null,null,null,null,null,null,null,"alhawwatukuh"]
[null,null,null,null,null,null,null,"alhay"]
[null,null,null,null,null,null,null,"alhazania"]
[null,null,null,null,null,null,null,"alhiasnih"]
[null,null,null,null,null,null,null,"alhilf"]
[null,null,null,null,null,null,null,"alhilf algharbi"]
[null,null,null,null,null,null,null,"alhilwasa"]
[null,null,null,null,null,null,null,"alhimas"]
[null,null,null,null,null,null,null,"alhisafa"]
[null,null,null,null,null,null,null,"alhisha"]
[null,null,null,null,null,null,null,"alhouriya"]
[null,null,null,null,null,null,null,"alhuda waltaqwa"]
[null,null,null,null,null,null,null,"alhuluh"]
[null,null,null,null,null,null,null,"alhuluh"]
[null,null,null,null,null,null,null,"alhumur wljaafrah"]
[null,null,null,null,null,null,null,"alhusseinat"]
[null,null,null,null,null,null,null,"alhusseiniuh"]
[null,null,null,null,null,null,null,"alhuta algharbayuh"]
[null,null,null,null,null,null,null,"alhuta alsharaqiuh"]
[null,null,null,null,null,null,null,"Ali basha alrouby"]
[null,null,null,null,null,null,null,"Ali bin aba talab"]
[null,null,null,null,null,null,null,"Ali bin abi talab"]
[null,null,null,null,null,null,null,"Ali mubarak"]
[null,null,null,null,null,null,null,"alibrahimia al baharia"]
[null,null,null,null,null,null,null,"alibrahimia alqibilia"]
[null,null,null,null,null,null,null,"aliraqiyyah"]
[null,null,null,null,null,null,null,"alismailia"]
[null,null,null,null,null,null,null,"aljabab"]
[null,null,null,null,null,null,null,"aljaear"]
[null,null,null,null,null,null,null,"aljalawih"]
[null,null,null,null,null,null,null,"aljawahin"]
[null,null,null,null,null,null,null,"aljawalaa"]
[null,null,null,null,null,null,null,"aljawiruh"]
[null,null,null,null,null,null,null,"aljazazira"]
[null,null,null,null,null,null,null,"aljazira alkhadraa"]
[null,null,null,null,null,null,null,"aljazira alshaqraa"]
[null,null,null,null,null,null,null,"aljazira alsharqia"]
[null,null,null,null,null,null,null,"alkadayuh"]
[null,null,null,null,null,null,null,"alkajuj"]
[null,null,null,null,null,null,null,"alkalabih"]
[null,null,null,null,null,null,null,"alkalalisuh"]
[null,null,null,null,null,null,null,"alkalh gharb"]
[null,null,null,null,null,null,null,"alkalh sharq"]
[null,null,null,null,null,null,null,"alkaram"]
[null,null,null,null,null,null,null,"Alkarama"]
[null,null,null,null,null,null,null,"alkardud"]
[null,null,null,null,null,null,null,"alkarimat"]
[null,null,null,null,null,null,null,"alkariyuwn"]
[null,null,null,null,null,null,null,"alkarnak"]
[null,null,null,null,null,null,null,"alkawadaa"]
[null,null,null,null,null,null,null,"alkawamil qibli"]
[null,null,null,null,null,null,null,"alkhalafia"]
[null,null,null,null,null,null,null,"alkhananisuh gharb"]
[null,null,null,null,null,null,null,"alkhananisuh sharq"]
[null,null,null,null,null,null,null,"alkharaniquh"]
[null,null,null,null,null,null,null,"alkhawalid"]
[null,null,null,null,null,null,null,"alkhawalid"]
[null,null,null,null,null,null,null,"alkhayr walnamaa"]
[null,null,null,null,null,null,null,"alkhiam wajazirat nuqnaq"]
[null,null,null,null,null,null,null,"alkhour"]
[null,null,null,null,null,null,null,"alkhurman"]
[null,null,null,null,null,null,null,"alkifah"]
[null,null,null,null,null,null,null,"alkifah"]
[null,null,null,null,null,null,null,"alkom al akhadr"]
[null,null,null,null,null,null,null,"alkuradaa"]
[null,null,null,null,null,null,null,"alkuratia"]
[null,null,null,null,null,null,null,"allewa sibeih"]
[null,null,null,null,null,null,null,"alluwqa"]
[null,null,null,null,null,null,null,"almaasara"]
[null,null,null,null,null,null,null,"almaasarah  bahari"]
[null,null,null,null,null,null,null,"almaeabiduh algharbayuh"]
[null,null,null,null,null,null,null,"almaeabiduh alsharqia"]
[null,null,null,null,null,null,null,"almaealla"]
[null,null,null,null,null,null,null,"almaeraa"]
[null,null,null,null,null,null,null,"almahamid"]
[null,null,null,null,null,null,null,"almahamid bahari"]
[null,null,null,null,null,null,null,"almahamid qibli"]
[null,null,null,null,null,null,null,"almahmoudia"]
[null,null,null,null,null,null,null,"almahris"]
[null,null,null,null,null,null,null,"almajabiruh"]
[null,null,null,null,null,null,null,"almakhayid"]
[null,null,null,null,null,null,null,"almalahia al baharia"]
[null,null,null,null,null,null,null,"almalahia alqibilia"]
[null,null,null,null,null,null,null,"almalakiiyn al baharia"]
[null,null,null,null,null,null,null,"almalakiiyn alqibilia"]
[null,null,null,null,null,null,null,"almanajah alkubra"]
[null,null,null,null,null,null,null,"almanajah alsughra"]
[null,null,null,null,null,null,null,"almanashi"]
[null,null,null,null,null,null,null,"almandra bahari"]
[null,null,null,null,null,null,null,"almandra qablaa"]
[null,null,null,null,null,null,null,"almania"]
[null,null,null,null,null,null,null,"almanshaa"]
[null,null,null,null,null,null,null,"almanshih aljadiduh"]
[null,null,null,null,null,null,null,"almansouruh"]
[null,null,null,null,null,null,null,"almareg"]
[null,null,null,null,null,null,null,"almasid"]
[null,null,null,null,null,null,null,"almasid"]
[null,null,null,null,null,null,null,"almatahira alqibilia"]
[null,null,null,null,null,null,null,"almatawiea"]
[null,null,null,null,null,null,null,"almawatin"]
[null,null,null,null,null,null,null,"almudamr"]
[null,null,null,null,null,null,null,"almudour"]
[null,null,null,null,null,null,null,"almufalisa"]
[null,null,null,null,null,null,null,"almuhasina"]
[null,null,null,null,null,null,null,"almuhdiuh"]
[null,null,null,null,null,null,null,"almunshiuh alibrahimia"]
[null,null,null,null,null,null,null,"almuqarabih"]
[null,null,null,null,null,null,null,"almuqarany"]
[null,null,null,null,null,null,null,"almuqarin"]
[null,null,null,null,null,null,null,"almurashiduh"]
[null,null,null,null,null,null,null,"almushawida"]
[null,null,null,null,null,null,null,"almusoudi"]
[null,null,null,null,null,null,null,"almuthluth"]
[null,null,null,null,null,null,null,"almutmr"]
[null,null,null,null,null,null,null,"alnaanaeyah"]
[null,null,null,null,null,null,null,"alnaghamish"]
[null,null,null,null,null,null,null,"alnahal"]
[null,null,null,null,null,null,null,"alnahayuh"]
[null,null,null,null,null,null,null,"alnahdah"]
[null,null,null,null,null,null,null,"alnahdah"]
[null,null,null,null,null,null,null,"alnajma walhimran"]
[null,null,null,null,null,null,null,"alnakhiluh"]
[null,null,null,null,null,null,null,"alnakhluh albaharia"]
[null,null,null,null,null,null,null,"alnamria"]
[null,null,null,null,null,null,null,"alnamsa"]
[null,null,null,null,null,null,null,"alnashw albuhra"]
[null,null,null,null,null,null,null,"alnasr - 6"]
[null,null,null,null,null,null,null,"alnasrab"]
[null,null,null,null,null,null,null,"alnawasiria"]
[null,null,null,null,null,null,null,"alnawayrat"]
[null,null,null,null,null,null,null,"Alnidal"]
[null,null,null,null,null,null,null,"alnjila, awlad sheikh"]
[null,null,null,null,null,null,null,"alnnasir"]
[null,null,null,null,null,null,null,"alnogoa qubli"]
[null,null,null,null,null,null,null,"alnogoaa"]
[null,null,null,null,null,null,null,"alnogoaa bahari"]
[null,null,null,null,null,null,null,"alnuseirat"]
[null,null,null,null,null,null,null,"alokaleyah"]
[null,null,null,null,null,null,null,"alomaraa"]
[null,null,null,null,null,null,null,"alqahirha"]
[null,null,null,null,null,null,null,"alqaleiuh"]
[null,null,null,null,null,null,null,"alqalmina"]
[null,null,null,null,null,null,null,"alqanatirin"]
[null,null,null,null,null,null,null,"alqaramita sharq"]
[null,null,null,null,null,null,null,"alqaraya"]
[null,null,null,null,null,null,null,"alqariuh 1"]
[null,null,null,null,null,null,null,"alqariuh 2"]
[null,null,null,null,null,null,null,"alqariuh almarkaziuh"]
[null,null,null,null,null,null,null,"alqarnayn"]
[null,null,null,null,null,null,null,"alqaruh"]
[null,null,null,null,null,null,null,"alqashish"]
[null,null,null,null,null,null,null,"alqasr"]
[null,null,null,null,null,null,null,"alqatnuh"]
[null,null,null,null,null,null,null,"alqawih"]
[null,null,null,null,null,null,null,"alqawmisiuwn gharb"]
[null,null,null,null,null,null,null,"alqayat"]
[null,null,null,null,null,null,null,"alqibli  samhud"]
[null,null,null,null,null,null,null,"alqubbiuh"]
[null,null,null,null,null,null,null,"alqulzum"]
[null,null,null,null,null,null,null,"alqunaa"]
[null,null,null,null,null,null,null,"alqunan"]
[null,null,null,null,null,null,null,"alquota"]
[null,null,null,null,null,null,null,"alquraan"]
[null,null,null,null,null,null,null,"alraabia"]
[null,null,null,null,null,null,null,"alradisiuh bahari"]
[null,null,null,null,null,null,null,"alraisyyah"]
[null,null,null,null,null,null,null,"alrakha"]
[null,null,null,null,null,null,null,"alramadaa bahari"]
[null,null,null,null,null,null,null,"alramadi qibli"]
[null,null,null,null,null,null,null,"alraqaqinuh"]
[null,null,null,null,null,null,null,"alraquh alqibilia"]
[null,null,null,null,null,null,null,"alrashayida"]
[null,null,null,null,null,null,null,"alrawatib"]
[null,null,null,null,null,null,null,"alrawayjat"]
[null,null,null,null,null,null,null,"alrayaniuh"]
[null,null,null,null,null,null,null,"alrayaniuh bialhajir"]
[null,null,null,null,null,null,null,"alrayayinuh almuealaq"]
[null,null,null,null,null,null,null,"alrayrumun"]
[null,null,null,null,null,null,null,"alrazimat"]
[null,null,null,null,null,null,null,"alraziqat alqiblia"]
[null,null,null,null,null,null,null,"alraziqat bahari"]
[null,null,null,null,null,null,null,"alriyad"]
[null,null,null,null,null,null,null,"alriyad"]
[null,null,null,null,null,null,null,"alriyad"]
[null,null,null,null,null,null,null,"alriyayinuh bialkatakatih"]
[null,null,null,null,null,null,null,"alrizqah"]
[null,null,null,null,null,null,null,"alrizqah"]
[null,null,null,null,null,null,null,"alruwyhib"]
[null,null,null,null,null,null,null,"alsaada"]
[null,null,null,null,null,null,null,"alsaadia"]
[null,null,null,null,null,null,null,"alsaadisa"]
[null,null,null,null,null,null,null,"alsabil"]
[null,null,null,null,null,null,null,"alsabil abu tajaa"]
[null,null,null,null,null,null,null,"alsabil bahari"]
[null,null,null,null,null,null,null,"alsabria"]
[null,null,null,null,null,null,null,"alsabriaat"]
[null,null,null,null,null,null,null,"alsadiq yuossif"]
[null,null,null,null,null,null,null,"alsaeaduh"]
[null,null,null,null,null,null,null,"alsaeidayuh alqibilia"]
[null,null,null,null,null,null,null,"alsafa"]
[null,null,null,null,null,null,null,"alsafa walmarwa"]
[null,null,null,null,null,null,null,"alsafasif"]
[null,null,null,null,null,null,null,"alsahala"]
[null,null,null,null,null,null,null,"alsahrij"]
[null,null,null,null,null,null,null,"alsaida"]
[null,null,null,null,null,null,null,"alsaidiyah albaharia"]
[null,null,null,null,null,null,null,"alsakhrah"]
[null,null,null,null,null,null,null,"alsalam"]
[null,null,null,null,null,null,null,"alsalam"]
[null,null,null,null,null,null,null,"alsalam - alkashah sabiqaan"]
[null,null,null,null,null,null,null,"Alsalam aljadida"]
[null,null,null,null,null,null,null,"alsalam aljadidia"]
[null,null,null,null,null,null,null,"alsaleheyah albasatin"]
[null,null,null,null,null,null,null,"alsamalawia"]
[null,null,null,null,null,null,null,"alsamata bahari"]
[null,null,null,null,null,null,null,"alsamta qibli"]
[null,null,null,null,null,null,null,"alsanaqirh"]
[null,null,null,null,null,null,null,"alsaqaria"]
[null,null,null,null,null,null,null,"alsaraneyah"]
[null,null,null,null,null,null,null,"alsawahiga"]
[null,null,null,null,null,null,null,"alsawalim"]
[null,null,null,null,null,null,null,"alsawalim"]
[null,null,null,null,null,null,null,"alsawalim albahria"]
[null,null,null,null,null,null,null,"alsenbellawein"]
[null,null,null,null,null,null,null,"alshaamih"]
[null,null,null,null,null,null,null,"alshabika"]
[null,null,null,null,null,null,null,"alshaghab"]
[null,null,null,null,null,null,null,"alshahama"]
[null,null,null,null,null,null,null,"alshahid fouad Owais"]
[null,null,null,null,null,null,null,"alshahid hassan allam"]
[null,null,null,null,null,null,null,"alshahid jawad hosny-kom al basl sabiqaan"]
[null,null,null,null,null,null,null,"alshahid muhammed abd almwla- alkhamisa buzour"]
[null,null,null,null,null,null,null,"alshahid muhammed faraj - alsaabiaa buzour, hassan allam)"]
[null,null,null,null,null,null,null,"alshahid muhammed sabah - alashira, mazraeuh althanih buzour"]
[null,null,null,null,null,null,null,"alshahidasead khayr -wshaharatha alsaadisuh budhur"]
[null,null,null,null,null,null,null,"alshanawaa"]
[null,null,null,null,null,null,null,"alshanayina"]
[null,null,null,null,null,null,null,"alsharifa waleutayat"]
[null,null,null,null,null,null,null,"alsharqaa samhud"]
[null,null,null,null,null,null,null,"Alsheikh marzoq aljadida"]
[null,null,null,null,null,null,null,"alsherana"]
[null,null,null,null,null,null,null,"alshuhadaa"]
[null,null,null,null,null,null,null,"alshuhadaa"]
[null,null,null,null,null,null,null,"alshuqyfi"]
[null,null,null,null,null,null,null,"alshuwbuk"]
[null,null,null,null,null,null,null,"alshuwka"]
[null,null,null,null,null,null,null,"alshuwkuh"]
[null,null,null,null,null,null,null,"alshwbuk alsharqaa"]
[null,null,null,null,null,null,null,"alslmani"]
[null,null,null,null,null,null,null,"alssahil bahari"]
[null,null,null,null,null,null,null,"alssahil qibli"]
[null,null,null,null,null,null,null,"alstmayih"]
[null,null,null,null,null,null,null,"alsuksakuh"]
[null,null,null,null,null,null,null,"alsultan hassan"]
[null,null,null,null,null,null,null,"alsultani"]
[null,null,null,null,null,null,null,"altahrir"]
[null,null,null,null,null,null,null,"altahrir"]
[null,null,null,null,null,null,null,"altakamul"]
[null,null,null,null,null,null,null,"Altal al ahmar"]
[null,null,null,null,null,null,null,"altamamuh"]
[null,null,null,null,null,null,null,"altanagha"]
[null,null,null,null,null,null,null,"altaqadum"]
[null,null,null,null,null,null,null,"altaraeuh"]
[null,null,null,null,null,null,null,"altarah"]
[null,null,null,null,null,null,null,"altawabia"]
[null,null,null,null,null,null,null,"altawadur"]
[null,null,null,null,null,null,null,"altawfiq - 7"]
[null,null,null,null,null,null,null,"altawfiqia"]
[null,null,null,null,null,null,null,"altawhid"]
[null,null,null,null,null,null,null,"altawnab"]
[null,null,null,null,null,null,null,"altbrani"]
[null,null,null,null,null,null,null,"alumura"]
[null,null,null,null,null,null,null,"alwaeadila"]
[null,null,null,null,null,null,null,"alwanayisuh"]
[null,null,null,null,null,null,null,"alwaqat"]
[null,null,null,null,null,null,null,"alwaqda"]
[null,null,null,null,null,null,null,"alwaqf bahari"]
[null,null,null,null,null,null,null,"alwaqf qibli"]
[null,null,null,null,null,null,null,"alwasita"]
[null,null,null,null,null,null,null,"alwasta"]
[null,null,null,null,null,null,null,"alwastanih"]
[null,null,null,null,null,null,null,"alwdaa"]
[null,null,null,null,null,null,null,"alyasinia"]
[null,null,null,null,null,null,null,"alzaaruh"]
[null,null,null,null,null,null,null,"alzahawiayn"]
[null,null,null,null,null,null,null,"alzaniquh"]
[null,null,null,null,null,null,null,"alzanqur"]
[null,null,null,null,null,null,null,"alzarabi"]
[null,null,null,null,null,null,null,"alzarayib"]
[null,null,null,null,null,null,null,"alzawatina alqibilia"]
[null,null,null,null,null,null,null,"alzawra"]
[null,null,null,null,null,null,null,"alzaynia"]
[null,null,null,null,null,null,null,"Alzirae albahari"]
[null,null,null,null,null,null,null,"alziyra"]
[null,null,null,null,null,null,null,"alzuharaa"]
[null,null,null,null,null,null,null,"alzuwk alsharqia"]
[null,null,null,null,null,null,null,"am almoeminen"]
[null,null,null,null,null,null,null,"am alqusur"]
[null,null,null,null,null,null,null,"Amarwa"]
[null,null,null,null,null,null,null,"amir"]
[null,null,null,null,null,null,null,"amr"]
[null,null,null,null,null,null,null,"Amr bin aleas - almarkazia"]
[null,null,null,null,null,null,null,"amrous"]
[null,null,null,null,null,null,null,"amshul"]
[null,null,null,null,null,null,null,"aqlit"]
[null,null,null,null,null,null,null,"arab al shaarah"]
[null,null,null,null,null,null,null,"arab alamayim"]
[null,null,null,null,null,null,null,"arab alatawla"]
[null,null,null,null,null,null,null,"arab alawamir"]
[null,null,null,null,null,null,null,"arab alayayidih"]
[null,null,null,null,null,null,null,"arab aleutayat albaharia"]
[null,null,null,null,null,null,null,"arab alhisar"]
[null,null,null,null,null,null,null,"arab alhisar albaharia"]
[null,null,null,null,null,null,null,"arab alkilabat"]
[null,null,null,null,null,null,null,"arab alsawalihia"]
[null,null,null,null,null,null,null,"arab alshanabilih"]
[null,null,null,null,null,null,null,"arab mateer"]
[null,null,null,null,null,null,null,"araba abydos"]
[null,null,null,null,null,null,null,"asfoun"]
[null,null,null,null,null,null,null,"ashma"]
[null,null,null,null,null,null,null,"ashmanat"]
[null,null,null,null,null,null,null,"ashnayn alnasari"]
[null,null,null,null,null,null,null,"askur"]
[null,null,null,null,null,null,null,"asmant"]
[null,null,null,null,null,null,null,"asmu alarous"]
[null,null,null,null,null,null,null,"ataqa"]
[null,null,null,null,null,null,null,"atlidum"]
[null,null,null,null,null,null,null,"atnia"]
[null,null,null,null,null,null,null,"awaja"]
[null,null,null,null,null,null,null,"awamir alosayrat"]
[null,null,null,null,null,null,null,"awlad ali"]
[null,null,null,null,null,null,null,"awlad badr"]
[null,null,null,null,null,null,null,"awlad bahij"]
[null,null,null,null,null,null,null,"awlad eliwa"]
[null,null,null,null,null,null,null,"awlad hamza"]
[null,null,null,null,null,null,null,"awlad ilyas"]
[null,null,null,null,null,null,null,"awlad ismail"]
[null,null,null,null,null,null,null,"awlad khalaf"]
[null,null,null,null,null,null,null,"awlad salim bahari"]
[null,null,null,null,null,null,null,"awlad salim qibli"]
[null,null,null,null,null,null,null,"awlad saraj"]
[null,null,null,null,null,null,null,"awlad sheikh"]
[null,null,null,null,null,null,null,"awlad tuq gharb"]
[null,null,null,null,null,null,null,"awlad yehia bahari"]
[null,null,null,null,null,null,null,"awlad yehia qibili"]
[null,null,null,null,null,null,null,"aysha abdalrahmin"]
[null,null,null,null,null,null,null,"bahij"]
[null,null,null,null,null,null,null,"bahr abu alimir"]
[null,null,null,null,null,null,null,"bahr baqar2"]
[null,null,null,null,null,null,null,"bahr baqar3"]
[null,null,null,null,null,null,null,"bahr baqar4"]
[null,null,null,null,null,null,null,"bahr baqar5"]
[null,null,null,null,null,null,null,"ban alalam"]
[null,null,null,null,null,null,null,"bani adaa"]
[null,null,null,null,null,null,null,"Bani Adeyat"]
[null,null,null,null,null,null,null,"bani ahmad"]
[null,null,null,null,null,null,null,"bani amir"]
[null,null,null,null,null,null,null,"bani awad"]
[null,null,null,null,null,null,null,"bani bikar"]
[null,null,null,null,null,null,null,"bani ealij"]
[null,null,null,null,null,null,null,"bani eaqibih"]
[null,null,null,null,null,null,null,"bani ebeid"]
[null,null,null,null,null,null,null,"bani eish"]
[null,null,null,null,null,null,null,"bani fiz"]
[null,null,null,null,null,null,null,"bani hafiz"]
[null,null,null,null,null,null,null,"bani haram"]
[null,null,null,null,null,null,null,"bani hashim"]
[null,null,null,null,null,null,null,"bani hassan alshrouk"]
[null,null,null,null,null,null,null,"bani hilal"]
[null,null,null,null,null,null,null,"bani ibrahim"]
[null,null,null,null,null,null,null,"bani khalaf"]
[null,null,null,null,null,null,null,"bani khalid"]
[null,null,null,null,null,null,null,"bani khalid"]
[null,null,null,null,null,null,null,"bani khalifih"]
[null,null,null,null,null,null,null,"bani khalil"]
[null,null,null,null,null,null,null,"bani khiar"]
[null,null,null,null,null,null,null,"bani madi"]
[null,null,null,null,null,null,null,"bani majad"]
[null,null,null,null,null,null,null,"bani mansour"]
[null,null,null,null,null,null,null,"bani moamena"]
[null,null,null,null,null,null,null,"bani moussa"]
[null,null,null,null,null,null,null,"bani muhammed alsharqia"]
[null,null,null,null,null,null,null,"bani muhammed shaarawy"]
[null,null,null,null,null,null,null,"bani muhmadiat"]
[null,null,null,null,null,null,null,"bani mur"]
[null,null,null,null,null,null,null,"bani omaran"]
[null,null,null,null,null,null,null,"bani qasim"]
[null,null,null,null,null,null,null,"bani rafie"]
[null,null,null,null,null,null,null,"bani ruh"]
[null,null,null,null,null,null,null,"bani saeid"]
[null,null,null,null,null,null,null,"bani salamuh"]
[null,null,null,null,null,null,null,"bani saleh"]
[null,null,null,null,null,null,null,"bani samie"]
[null,null,null,null,null,null,null,"bani selim"]
[null,null,null,null,null,null,null,"bani shaaran"]
[null,null,null,null,null,null,null,"bani shaqir"]
[null,null,null,null,null,null,null,"bani sund"]
[null,null,null,null,null,null,null,"bani talab"]
[null,null,null,null,null,null,null,"bani wallams"]
[null,null,null,null,null,null,null,"bani warkan"]
[null,null,null,null,null,null,null,"bani wasal"]
[null,null,null,null,null,null,null,"bani Wushah"]
[null,null,null,null,null,null,null,"bani yehia"]
[null,null,null,null,null,null,null,"bani zayd"]
[null,null,null,null,null,null,null,"baqur"]
[null,null,null,null,null,null,null,"baradis"]
[null,null,null,null,null,null,null,"barashim"]
[null,null,null,null,null,null,null,"bardla"]
[null,null,null,null,null,null,null,"basra"]
[null,null,null,null,null,null,null,"basturuh"]
[null,null,null,null,null,null,null,"basuna"]
[null,null,null,null,null,null,null,"bawabat alqantara"]
[null,null,null,null,null,null,null,"bawhuh shatanuf"]
[null,null,null,null,null,null,null,"bawit"]
[null,null,null,null,null,null,null,"bawit"]
[null,null,null,null,null,null,null,"bayt alkharibi"]
[null,null,null,null,null,null,null,"bayt allam"]
[null,null,null,null,null,null,null,"bayt dawood sahl"]
[null,null,null,null,null,null,null,"bayt khilaf"]
[null,null,null,null,null,null,null,"bhalil aljazira"]
[null,null,null,null,null,null,null,"bialdawir"]
[null,null,null,null,null,null,null,"biblaw"]
[null,null,null,null,null,null,null,"bihabshayn"]
[null,null,null,null,null,null,null,"bihtuh"]
[null,null,null,null,null,null,null,"bikhanas"]
[null,null,null,null,null,null,null,"bilad almal bahari"]
[null,null,null,null,null,null,null,"bilad almal qibli"]
[null,null,null,null,null,null,null,"bilahasia"]
[null,null,null,null,null,null,null,"bilansoura"]
[null,null,null,null,null,null,null,"bilaqtar algharbia"]
[null,null,null,null,null,null,null,"bilaqtar alsharaqiih"]
[null,null,null,null,null,null,null,"binadar alramalia"]
[null,null,null,null,null,null,null,"bindar altabaynat"]
[null,null,null,null,null,null,null,"bir 5"]
[null,null,null,null,null,null,null,"bir 6"]
[null,null,null,null,null,null,null,"bir 7"]
[null,null,null,null,null,null,null,"Bir alouroq"]
[null,null,null,null,null,null,null,"Bir hybiata"]
[null,null,null,null,null,null,null,"Bir madkur"]
[null,null,null,null,null,null,null,"bir raqm 4"]
[null,null,null,null,null,null,null,"biramasha"]
[null,null,null,null,null,null,null,"birambal"]
[null,null,null,null,null,null,null,"birasiq"]
[null,null,null,null,null,null,null,"birkah ghitas"]
[null,null,null,null,null,null,null,"birkhil"]
[null,null,null,null,null,null,null,"bisat karim aldiyn"]
[null,null,null,null,null,null,null,"bishatama"]
[null,null,null,null,null,null,null,"Bisitaway"]
[null,null,null,null,null,null,null,"bitouros"]
[null,null,null,null,null,null,null,"bnawit"]
[null,null,null,null,null,null,null,"borg mughyzil"]
[null,null,null,null,null,null,null,"brydeh"]
[null,null,null,null,null,null,null,"burtbat aljabal"]
[null,null,null,null,null,null,null,"dahmaru"]
[null,null,null,null,null,null,null,"dahrut"]
[null,null,null,null,null,null,null,"dakran"]
[null,null,null,null,null,null,null,"dalhumu"]
[null,null,null,null,null,null,null,"damanhour"]
[null,null,null,null,null,null,null,"damanhur alwahsh"]
[null,null,null,null,null,null,null,"danasur"]
[null,null,null,null,null,null,null,"dandil"]
[null,null,null,null,null,null,null,"danial"]
[null,null,null,null,null,null,null,"dar alsalam"]
[null,null,null,null,null,null,null,"darajil"]
[null,null,null,null,null,null,null,"dashlut"]
[null,null,null,null,null,null,null,"dawina"]
[null,null,null,null,null,null,null,"dayr abu hans"]
[null,null,null,null,null,null,null,"dayr albarsha"]
[null,null,null,null,null,null,null,"dayr aljabrawi"]
[null,null,null,null,null,null,null,"dayr aljarnus"]
[null,null,null,null,null,null,null,"dayr almaymun"]
[null,null,null,null,null,null,null,"dayr basarih"]
[null,null,null,null,null,null,null,"dayr shw"]
[null,null,null,null,null,null,null,"dayr taasa"]
[null,null,null,null,null,null,null,"dayroms"]
[null,null,null,null,null,null,null,"denjowai"]
[null,null,null,null,null,null,null,"dilas"]
[null,null,null,null,null,null,null,"dilja"]
[null,null,null,null,null,null,null,"dinshaway"]
[null,null,null,null,null,null,null,"dirut alsharif"]
[null,null,null,null,null,null,null,"dirutom nakhluh"]
[null,null,null,null,null,null,null,"disounis alhalfayih"]
[null,null,null,null,null,null,null,"dsunsom dinar"]
[null,null,null,null,null,null,null,"duhtoura"]
[null,null,null,null,null,null,null,"duruh"]
[null,null,null,null,null,null,null,"durwa"]
[null,null,null,null,null,null,null,"eank"]
[null,null,null,null,null,null,null,"eatf haydar"]
[null,null,null,null,null,null,null,"ebad sharona"]
[null,null,null,null,null,null,null,"eiramiuh alkhadiraa"]
[null,null,null,null,null,null,null,"El abbasiya"]
[null,null,null,null,null,null,null,"el anbaria"]
[null,null,null,null,null,null,null,"El Arab"]
[null,null,null,null,null,null,null,"el Eman"]
[null,null,null,null,null,null,null,"ezbet  albusuh"]
[null,null,null,null,null,null,null,"ezbet  muhammed awad"]
[null,null,null,null,null,null,null,"ezbet  mustafa hamdy"]
[null,null,null,null,null,null,null,"ezbet alabrqjaa"]
[null,null,null,null,null,null,null,"ezbet aldirwish"]
[null,null,null,null,null,null,null,"ezbet allawzi"]
[null,null,null,null,null,null,null,"ezbet alsalaniklaa"]
[null,null,null,null,null,null,null,"ezbet alsiru"]
[null,null,null,null,null,null,null,"ezbet badr aldiyn"]
[null,null,null,null,null,null,null,"ezbet basitrih"]
[null,null,null,null,null,null,null,"ezbet hussein amr"]
[null,null,null,null,null,null,null,"ezbet selim"]
[null,null,null,null,null,null,null,"ezbet tarabina (drika)"]
[null,null,null,null,null,null,null,"ezbit qalmashah"]
[null,null,null,null,null,null,null,"ezib al awqaf"]
[null,null,null,null,null,null,null,"ezib algharb"]
[null,null,null,null,null,null,null,"ezib alkhalij bahari"]
[null,null,null,null,null,null,null,"ezib alkhalij qibli"]
[null,null,null,null,null,null,null,"ezib amin sayid ahmad"]
[null,null,null,null,null,null,null,"ezib dafshu"]
[null,null,null,null,null,null,null,"ezib naqaryta"]
[null,null,null,null,null,null,null,"ezib om alrizq"]
[null,null,null,null,null,null,null,"ezib qabil"]
[null,null,null,null,null,null,null,"ezib qartasana watamus"]
[null,null,null,null,null,null,null,"ezib sakanidh"]
[null,null,null,null,null,null,null,"ezib shubra"]
[null,null,null,null,null,null,null,"farasis"]
[null,null,null,null,null,null,null,"faris"]
[null,null,null,null,null,null,null,"fatira"]
[null,null,null,null,null,null,null,"faw bahari"]
[null,null,null,null,null,null,null,"faw gharb"]
[null,null,null,null,null,null,null,"faw qibli"]
[null,null,null,null,null,null,null,"fawelgi"]
[null,null,null,null,null,null,null,"fazara"]
[null,null,null,null,null,null,null,"fazara bilqarya"]
[null,null,null,null,null,null,null,"gabir bin hian"]
[null,null,null,null,null,null,null,"garis"]
[null,null,null,null,null,null,null,"gehad - 4"]
[null,null,null,null,null,null,null,"ghamaza alkubra"]
[null,null,null,null,null,null,null,"ghamaza alsughraa"]
[null,null,null,null,null,null,null,"Ghayata"]
[null,null,null,null,null,null,null,"Ghayt albaharaa"]
[null,null,null,null,null,null,null,"ghiaduh algharbia"]
[null,null,null,null,null,null,null,"ghiaduh alsharaqia"]
[null,null,null,null,null,null,null,"had abu saeada"]
[null,null,null,null,null,null,null,"hafs"]
[null,null,null,null,null,null,null,"halih"]
[null,null,null,null,null,null,null,"hamalis"]
[null,null,null,null,null,null,null,"hamiduh aljandaa"]
[null,null,null,null,null,null,null,"hanoun"]
[null,null,null,null,null,null,null,"hanut"]
[null,null,null,null,null,null,null,"harubshinat"]
[null,null,null,null,null,null,null,"hasuh almanasiruh"]
[null,null,null,null,null,null,null,"hatih sheikh marzouq"]
[null,null,null,null,null,null,null,"hawd sakarah -abu hamd"]
[null,null,null,null,null,null,null,"hegaza"]
[null,null,null,null,null,null,null,"hiraruh"]
[null,null,null,null,null,null,null,"hujazuh bahari"]
[null,null,null,null,null,null,null,"hujazuh qibli"]
[null,null,null,null,null,null,null,"hur"]
[null,null,null,null,null,null,null,"ilyas"]
[null,null,null,null,null,null,null,"Ismailia (shrq rqam 6 sabqan)"]
[null,null,null,null,null,null,null,"Jaafra"]
[null,null,null,null,null,null,null,"Jaafrah"]
[null,null,null,null,null,null,null,"jabal alnour"]
[null,null,null,null,null,null,null,"jabal um khashib"]
[null,null,null,null,null,null,null,"jahdum"]
[null,null,null,null,null,null,null,"jalal alsharaqih"]
[null,null,null,null,null,null,null,"jalbanah"]
[null,null,null,null,null,null,null,"jamaeia al amal"]
[null,null,null,null,null,null,null,"jamaeia alwaadi"]
[null,null,null,null,null,null,null,"jarajus"]
[null,null,null,null,null,null,null,"jardu"]
[null,null,null,null,null,null,null,"jaris"]
[null,null,null,null,null,null,null,"jazirat abu  saleh"]
[null,null,null,null,null,null,null,"jazirat alakraad"]
[null,null,null,null,null,null,null,"jazirat alduwm"]
[null,null,null,null,null,null,null,"jazirat alfqaea"]
[null,null,null,null,null,null,null,"jazirat alhajar"]
[null,null,null,null,null,null,null,"jazirat alhumudaa"]
[null,null,null,null,null,null,null,"jazirat alkarimat"]
[null,null,null,null,null,null,null,"jazirat almaabdah"]
[null,null,null,null,null,null,null,"jazirat almuntasir"]
[null,null,null,null,null,null,null,"jazirat alshuwraniuh"]
[null,null,null,null,null,null,null,"jazirat awlad hamza"]
[null,null,null,null,null,null,null,"jazirat bahij"]
[null,null,null,null,null,null,null,"jazirat biba"]
[null,null,null,null,null,null,null,"jazirat mutira"]
[null,null,null,null,null,null,null,"jazirat Saudi"]
[null,null,null,null,null,null,null,"jazirat sharunuh"]
[null,null,null,null,null,null,null,"jazirat shayba"]
[null,null,null,null,null,null,null,"jazirat tala bani omaran"]
[null,null,null,null,null,null,null,"jazirat tama"]
[null,null,null,null,null,null,null,"jurf sarhan"]
[null,null,null,null,null,null,null,"k3"]
[null,null,null,null,null,null,null,"kafar alwaq"]
[null,null,null,null,null,null,null,"kafour hishmat"]
[null,null,null,null,null,null,null,"kafr abd alkhalik"]
[null,null,null,null,null,null,null,"kafr abdalrihmin"]
[null,null,null,null,null,null,null,"kafr abraa"]
[null,null,null,null,null,null,null,"kafr abu  mahmoud"]
[null,null,null,null,null,null,null,"kafr abu  raqabah"]
[null,null,null,null,null,null,null,"kafr abu  zahar, ezbaha"]
[null,null,null,null,null,null,null,"kafr al arab"]
[null,null,null,null,null,null,null,"kafr alatrish"]
[null,null,null,null,null,null,null,"kafr aldabosi"]
[null,null,null,null,null,null,null,"kafr aldaghayidih"]
[null,null,null,null,null,null,null,"kafr aldiyb"]
[null,null,null,null,null,null,null,"kafr aldiyr"]
[null,null,null,null,null,null,null,"kafr alfilih"]
[null,null,null,null,null,null,null,"kafr alghab"]
[null,null,null,null,null,null,null,"kafr algharib"]
[null,null,null,null,null,null,null,"kafr alhaj sharbaynaa"]
[null,null,null,null,null,null,null,"kafr alhamayidia"]
[null,null,null,null,null,null,null,"kafr alhema"]
[null,null,null,null,null,null,null,"kafr alhutabuh"]
[null,null,null,null,null,null,null,"kafr aljalabitih"]
[null,null,null,null,null,null,null,"kafr aljamalih"]
[null,null,null,null,null,null,null,"kafr aljazira"]
[null,null,null,null,null,null,null,"kafr aljazirih"]
[null,null,null,null,null,null,null,"kafr aljunidaa"]
[null,null,null,null,null,null,null,"kafr almaghrbi"]
[null,null,null,null,null,null,null,"kafr almahdi"]
[null,null,null,null,null,null,null,"kafr almanazila"]
[null,null,null,null,null,null,null,"kafr almidawaar"]
[null,null,null,null,null,null,null,"kafr almurabiein alsharqia"]
[null,null,null,null,null,null,null,"kafr alpharaonia"]
[null,null,null,null,null,null,null,"kafr alsaalihin"]
[null,null,null,null,null,null,null,"kafr alsahima"]
[null,null,null,null,null,null,null,"kafr alsaid"]
[null,null,null,null,null,null,null,"kafr alsanadiih"]
[null,null,null,null,null,null,null,"kafr alsawalimia"]
[null,null,null,null,null,null,null,"kafr alshabaa"]
[null,null,null,null,null,null,null,"kafr alsharfa alqibli"]
[null,null,null,null,null,null,null,"kafr alshoubik"]
[null,null,null,null,null,null,null,"kafr alssarim alqibli"]
[null,null,null,null,null,null,null,"kafr alsuhba"]
[null,null,null,null,null,null,null,"kafr altaranih"]
[null,null,null,null,null,null,null,"kafr alwakalih"]
[null,null,null,null,null,null,null,"kafr alwasilin"]
[null,null,null,null,null,null,null,"kafr alwastani"]
[null,null,null,null,null,null,null,"kafr alzafrana"]
[null,null,null,null,null,null,null,"kafr alzaytoun"]
[null,null,null,null,null,null,null,"kafr aoun"]
[null,null,null,null,null,null,null,"kafr ashma"]
[null,null,null,null,null,null,null,"kafr azaz"]
[null,null,null,null,null,null,null,"kafr bani hilal"]
[null,null,null,null,null,null,null,"kafr damanhur alqadim"]
[null,null,null,null,null,null,null,"kafr dawood"]
[null,null,null,null,null,null,null,"kafr dinshaway"]
[null,null,null,null,null,null,null,"kafr farasis"]
[null,null,null,null,null,null,null,"kafr ghazi"]
[null,null,null,null,null,null,null,"kafr halawah"]
[null,null,null,null,null,null,null,"kafr hanut albhra"]
[null,null,null,null,null,null,null,"kafr hanwt alqbla"]
[null,null,null,null,null,null,null,"kafr hegazy"]
[null,null,null,null,null,null,null,"kafr hisam"]
[null,null,null,null,null,null,null,"kafr hussein"]
[null,null,null,null,null,null,null,"kafr ismail"]
[null,null,null,null,null,null,null,"kafr jameah"]
[null,null,null,null,null,null,null,"kafr khizam"]
[null,null,null,null,null,null,null,"kafr labs"]
[null,null,null,null,null,null,null,"kafr mansour"]
[null,null,null,null,null,null,null,"kafr mansour"]
[null,null,null,null,null,null,null,"kafr mit alharoun"]
[null,null,null,null,null,null,null,"kafr monshaat alnasr"]
[null,null,null,null,null,null,null,"kafr nasir"]
[null,null,null,null,null,null,null,"kafr nuway"]
[null,null,null,null,null,null,null,"kafr qandel"]
[null,null,null,null,null,null,null,"kafr qayrts"]
[null,null,null,null,null,null,null,"kafr saad albalad"]
[null,null,null,null,null,null,null,"kafr saad bihayra"]
[null,null,null,null,null,null,null,"kafr sandwa"]
[null,null,null,null,null,null,null,"kafr sanibat"]
[null,null,null,null,null,null,null,"kafr sarasamus"]
[null,null,null,null,null,null,null,"kafr sarawah"]
[null,null,null,null,null,null,null,"kafr selim"]
[null,null,null,null,null,null,null,"kafr shahatuh"]
[null,null,null,null,null,null,null,"kafr shahin"]
[null,null,null,null,null,null,null,"kafr shamarih"]
[null,null,null,null,null,null,null,"kafr shashtaa"]
[null,null,null,null,null,null,null,"kafr shebeen"]
[null,null,null,null,null,null,null,"kafr sheikh atyia"]
[null,null,null,null,null,null,null,"kafr sheikha salmah"]
[null,null,null,null,null,null,null,"kafr Shubra alyaman"]
[null,null,null,null,null,null,null,"kafr Shubra qulouj"]
[null,null,null,null,null,null,null,"kafr sinabu"]
[null,null,null,null,null,null,null,"kafr sintes"]
[null,null,null,null,null,null,null,"kafr soliman albaharia"]
[null,null,null,null,null,null,null,"kafr soliman alwar"]
[null,null,null,null,null,null,null,"kafr taha"]
[null,null,null,null,null,null,null,"kafr tahuria"]
[null,null,null,null,null,null,null,"kafr tarkhan"]
[null,null,null,null,null,null,null,"kafr teraa aljadid"]
[null,null,null,null,null,null,null,"kafr teraa alqadim"]
[null,null,null,null,null,null,null,"kafr youssif"]
[null,null,null,null,null,null,null,"kardus"]
[null,null,null,null,null,null,null,"katibat algaysh"]
[null,null,null,null,null,null,null,"khalaf"]
[null,null,null,null,null,null,null,"kharifa almonshaat"]
[null,null,null,null,null,null,null,"kharifa gerga"]
[null,null,null,null,null,null,null,"khizam"]
[null,null,null,null,null,null,null,"khurfa"]
[null,null,null,null,null,null,null,"kiman almataeinih"]
[null,null,null,null,null,null,null,"kiman saeid alsharqaa watamma"]
[null,null,null,null,null,null,null,"kom abu sheel"]
[null,null,null,null,null,null,null,"kom al arab"]
[null,null,null,null,null,null,null,"kom albarkih"]
[null,null,null,null,null,null,null,"kom albayja"]
[null,null,null,null,null,null,null,"Kom alfaraj"]
[null,null,null,null,null,null,null,"kom alhasil"]
[null,null,null,null,null,null,null,"kom almahris"]
[null,null,null,null,null,null,null,"Kom almansurih"]
[null,null,null,null,null,null,null,"Kom alqadah"]
[null,null,null,null,null,null,null,"kom alqanatir"]
[null,null,null,null,null,null,null,"kom alsamn"]
[null,null,null,null,null,null,null,"Kom alshahid"]
[null,null,null,null,null,null,null,"kom altarifayih"]
[null,null,null,null,null,null,null,"kom alzahir"]
[null,null,null,null,null,null,null,"Kom anjashih"]
[null,null,null,null,null,null,null,"Kom asfiht"]
[null,null,null,null,null,null,null,"kom ashkilu"]
[null,null,null,null,null,null,null,"kom ashqaw"]
[null,null,null,null,null,null,null,"kom ashw"]
[null,null,null,null,null,null,null,"kom ayiad"]
[null,null,null,null,null,null,null,"kom bidar"]
[null,null,null,null,null,null,null,"kom bouha bahari"]
[null,null,null,null,null,null,null,"Kom bouha qibli"]
[null,null,null,null,null,null,null,"kom el saayda"]
[null,null,null,null,null,null,null,"kom gabir"]
[null,null,null,null,null,null,null,"kom gharyb"]
[null,null,null,null,null,null,null,"Kom hafin"]
[null,null,null,null,null,null,null,"Kom saeid algharbi"]
[null,null,null,null,null,null,null,"kom yacob"]
[null,null,null,null,null,null,null,"komabu  khalad"]
[null,null,null,null,null,null,null,"Komabu hajar"]
[null,null,null,null,null,null,null,"kowmir"]
[null,null,null,null,null,null,null,"kudih mubarak"]
[null,null,null,null,null,null,null,"kufur Kom umbo"]
[null,null,null,null,null,null,null,"kunaj othman"]
[null,null,null,null,null,null,null,"labishah, hessatha"]
[null,null,null,null,null,null,null,"lawqin"]
[null,null,null,null,null,null,null,"maasarah  arafa"]
[null,null,null,null,null,null,null,"maedih mahdy"]
[null,null,null,null,null,null,null,"maejoun"]
[null,null,null,null,null,null,null,"maemal alqizaz"]
[null,null,null,null,null,null,null,"magareyah, Kafr megahed"]
[null,null,null,null,null,null,null,"mahala anshaq"]
[null,null,null,null,null,null,null,"mahala sabak"]
[null,null,null,null,null,null,null,"mahalah kayl"]
[null,null,null,null,null,null,null,"majris"]
[null,null,null,null,null,null,null,"malatih"]
[null,null,null,null,null,null,null,"manajim alfawasafat"]
[null,null,null,null,null,null,null,"manhari"]
[null,null,null,null,null,null,null,"manial alsultan"]
[null,null,null,null,null,null,null,"manial arous"]
[null,null,null,null,null,null,null,"manial duwib wamanashatuh"]
[null,null,null,null,null,null,null,"manial gowida"]
[null,null,null,null,null,null,null,"manial moussa"]
[null,null,null,null,null,null,null,"manshait al awqaf"]
[null,null,null,null,null,null,null,"manshiat alraghama"]
[null,null,null,null,null,null,null,"manshiat bishara altahawy"]
[null,null,null,null,null,null,null,"manshiat nasir"]
[null,null,null,null,null,null,null,"mantub"]
[null,null,null,null,null,null,null,"Marqya alsiyahia"]
[null,null,null,null,null,null,null,"masaruh"]
[null,null,null,null,null,null,null,"mashatana"]
[null,null,null,null,null,null,null,"masjid mousaa"]
[null,null,null,null,null,null,null,"masjid wasef"]
[null,null,null,null,null,null,null,"mayana alwaqf"]
[null,null,null,null,null,null,null,"mayit abu alkawm aljadiduh"]
[null,null,null,null,null,null,null,"mazata sharq"]
[null,null,null,null,null,null,null,"mazatuh wsheikh jbr"]
[null,null,null,null,null,null,null,"mazinuh"]
[null,null,null,null,null,null,null,"menia aljayid"]
[null,null,null,null,null,null,null,"menia almubashirin"]
[null,null,null,null,null,null,null,"menia alraquh"]
[null,null,null,null,null,null,null,"menia shebeen"]
[null,null,null,null,null,null,null,"meniat atia"]
[null,null,null,null,null,null,null,"meniat bani moussa"]
[null,null,null,null,null,null,null,"miliha"]
[null,null,null,null,null,null,null,"miniah almurshid"]
[null,null,null,null,null,null,null,"minyat alhit"]
[null,null,null,null,null,null,null,"mit albiz"]
[null,null,null,null,null,null,null,"mit alharuwn"]
[null,null,null,null,null,null,null,"mit almukhlis"]
[null,null,null,null,null,null,null,"mit alrakha"]
[null,null,null,null,null,null,null,"mnshah bsyunaa"]
[null,null,null,null,null,null,null,"monsa wezibateha"]
[null,null,null,null,null,null,null,"monshaat abdalllah lamalum"]
[null,null,null,null,null,null,null,"monshaat abdalmajid"]
[null,null,null,null,null,null,null,"monshaat abu  dukhan"]
[null,null,null,null,null,null,null,"monshaat abu amer"]
[null,null,null,null,null,null,null,"monshaat al amir"]
[null,null,null,null,null,null,null,"monshaat alawqaf"]
[null,null,null,null,null,null,null,"monshaat alazhari"]
[null,null,null,null,null,null,null,"monshaat alhubshaa"]
[null,null,null,null,null,null,null,"monshaat alkhazan"]
[null,null,null,null,null,null,null,"monshaat alkiram"]
[null,null,null,null,null,null,null,"monshaat allouba"]
[null,null,null,null,null,null,null,"monshaat almaghaliqa"]
[null,null,null,null,null,null,null,"monshaat almataran"]
[null,null,null,null,null,null,null,"monshaat alnasr"]
[null,null,null,null,null,null,null,"monshaat alsaawi"]
[null,null,null,null,null,null,null,"monshaat alsadat"]
[null,null,null,null,null,null,null,"monshaat alsharakah"]
[null,null,null,null,null,null,null,"monshaat baradis"]
[null,null,null,null,null,null,null,"monshaat bawlyn (munshaat blba w monshaat bawlayn sabqan)"]
[null,null,null,null,null,null,null,"monshaat daebes"]
[null,null,null,null,null,null,null,"monshaat damasna"]
[null,null,null,null,null,null,null,"monshaat elwaa"]
[null,null,null,null,null,null,null,"monshaat fasil"]
[null,null,null,null,null,null,null,"monshaat garis"]
[null,null,null,null,null,null,null,"monshaat gharbal"]
[null,null,null,null,null,null,null,"monshaat hadayb"]
[null,null,null,null,null,null,null,"monshaat hamur"]
[null,null,null,null,null,null,null,"monshaat hassan"]
[null,null,null,null,null,null,null,"monshaat hatim"]
[null,null,null,null,null,null,null,"monshaat hilfa"]
[null,null,null,null,null,null,null,"monshaat hilfa"]
[null,null,null,null,null,null,null,"monshaat jalal algharbia"]
[null,null,null,null,null,null,null,"monshaat khizam algharbia"]
[null,null,null,null,null,null,null,"monshaat lamalum"]
[null,null,null,null,null,null,null,"monshaat muhammed alwakil"]
[null,null,null,null,null,null,null,"monshaat mustafa khalil"]
[null,null,null,null,null,null,null,"monshaat nayazi"]
[null,null,null,null,null,null,null,"monshaat rabaie"]
[null,null,null,null,null,null,null,"monshaat raghib"]
[null,null,null,null,null,null,null,"monshaat raghib altahawy"]
[null,null,null,null,null,null,null,"monshaat rahma"]
[null,null,null,null,null,null,null,"monshaat ramzy"]
[null,null,null,null,null,null,null,"monshaat sabry"]
[null,null,null,null,null,null,null,"monshaat saeid (tousun)"]
[null,null,null,null,null,null,null,"monshaat samhan"]
[null,null,null,null,null,null,null,"monshaat seif algharbia"]
[null,null,null,null,null,null,null,"monshaat seif alnasr"]
[null,null,null,null,null,null,null,"monshaat seif alnasr alsharqia"]
[null,null,null,null,null,null,null,"monshaat soliman"]
[null,null,null,null,null,null,null,"monshaat younis"]
[null,null,null,null,null,null,null,"monshaat zaafarana"]
[null,null,null,null,null,null,null,"monshaat zafir"]
[null,null,null,null,null,null,null,"moussa miyzar"]
[null,null,null,null,null,null,null,"mufuz tiba"]
[null,null,null,null,null,null,null,"muhammed refaat"]
[null,null,null,null,null,null,null,"munsha'at alhlbawa"]
[null,null,null,null,null,null,null,"munshaat almassarh"]
[null,null,null,null,null,null,null,"munshaat alwakil"]
[null,null,null,null,null,null,null,"munshaat amir"]
[null,null,null,null,null,null,null,"munshaat janakilis"]
[null,null,null,null,null,null,null,"munshaat khiat"]
[null,null,null,null,null,null,null,"munshaat nassar"]
[null,null,null,null,null,null,null,"munshaat tharwat"]
[null,null,null,null,null,null,null,"munsifis"]
[null,null,null,null,null,null,null,"mutoul"]
[null,null,null,null,null,null,null,"nadiba"]
[null,null,null,null,null,null,null,"nadir"]
[null,null,null,null,null,null,null,"nagaa alghabashi"]
[null,null,null,null,null,null,null,"nagaa alhaj salam"]
[null,null,null,null,null,null,null,"nagaa euzuz"]
[null,null,null,null,null,null,null,"nagaa hilal"]
[null,null,null,null,null,null,null,"nagaa khidr"]
[null,null,null,null,null,null,null,"nagaa markab"]
[null,null,null,null,null,null,null,"nagaa mazin gharb"]
[null,null,null,null,null,null,null,"nagaa saeid"]
[null,null,null,null,null,null,null,"nagaa sheikh Ali"]
[null,null,null,null,null,null,null,"nagaa tayie"]
[null,null,null,null,null,null,null,"najib mahfouz"]
[null,null,null,null,null,null,null,"nawa"]
[null,null,null,null,null,null,null,"nazh qarar"]
[null,null,null,null,null,null,null,"nazlat abdalilaa"]
[null,null,null,null,null,null,null,"nazlat aleawamir"]
[null,null,null,null,null,null,null,"nazlat almalik"]
[null,null,null,null,null,null,null,"nazlat alqadadih"]
[null,null,null,null,null,null,null,"nazlat alshaykh shahatih"]
[null,null,null,null,null,null,null,"nazlat assarah"]
[null,null,null,null,null,null,null,"nazlat badwaa"]
[null,null,null,null,null,null,null,"nazlat bakhum"]
[null,null,null,null,null,null,null,"nazlat baqur"]
[null,null,null,null,null,null,null,"nazlat faraj mahmoud"]
[null,null,null,null,null,null,null,"nazlat mustafa abd alhalem"]
[null,null,null,null,null,null,null,"nazlat ramih"]
[null,null,null,null,null,null,null,"nazlat saaw"]
[null,null,null,null,null,null,null,"nazlat sariqana"]
[null,null,null,null,null,null,null,"nazlat zahir"]
[null,null,null,null,null,null,null,"nazlet abdalllah"]
[null,null,null,null,null,null,null,"nazlet abdalmsih"]
[null,null,null,null,null,null,null,"nazlet ahmad yunis"]
[null,null,null,null,null,null,null,"nazlet alarin alqibli"]
[null,null,null,null,null,null,null,"nazlet albadarman"]
[null,null,null,null,null,null,null,"nazlet aldawik"]
[null,null,null,null,null,null,null,"nazlet alhasayba"]
[null,null,null,null,null,null,null,"nazlet alia kaylani"]
[null,null,null,null,null,null,null,"nazlet alsarou"]
[null,null,null,null,null,null,null,"nazlet alsharif"]
[null,null,null,null,null,null,null,"nazlet alyian"]
[null,null,null,null,null,null,null,"nazlet alzaawia"]
[null,null,null,null,null,null,null,"nazlet arab juhayna"]
[null,null,null,null,null,null,null,"nazlet asmant"]
[null,null,null,null,null,null,null,"nazlet awlad jawid"]
[null,null,null,null,null,null,null,"nazlet awlad murgan"]
[null,null,null,null,null,null,null,"nazlet awlad sheikh"]
[null,null,null,null,null,null,null,"nazlet bani khalaf"]
[null,null,null,null,null,null,null,"nazlet bilahasih"]
[null,null,null,null,null,null,null,"nazlet dahrut"]
[null,null,null,null,null,null,null,"nazlet hamazawy"]
[null,null,null,null,null,null,null,"nazlet haraz"]
[null,null,null,null,null,null,null,"nazlet jaris"]
[null,null,null,null,null,null,null,"nazlet mahmoud"]
[null,null,null,null,null,null,null,"nazlet makin"]
[null,null,null,null,null,null,null,"nazlet muhammed samhan"]
[null,null,null,null,null,null,null,"nazlet ramadan"]
[null,null,null,null,null,null,null,"nazlet saeid"]
[null,null,null,null,null,null,null,"nazlet sharamukh"]
[null,null,null,null,null,null,null,"nazlet shayhuh"]
[null,null,null,null,null,null,null,"nazlet tanda"]
[null,null,null,null,null,null,null,"nazlet tarjam"]
[null,null,null,null,null,null,null,"nazlet tuna"]
[null,null,null,null,null,null,null,"nogoaa al arab"]
[null,null,null,null,null,null,null,"nogoaa alrayayinih"]
[null,null,null,null,null,null,null,"nogoaa alsadadirih"]
[null,null,null,null,null,null,null,"nogoaa bani wasal"]
[null,null,null,null,null,null,null,"nogoaa bindar"]
[null,null,null,null,null,null,null,"nogoaa biradis"]
[null,null,null,null,null,null,null,"nogoaa mazin sharq"]
[null,null,null,null,null,null,null,"nowaay"]
[null,null,null,null,null,null,null,"nub taha"]
[null,null,null,null,null,null,null,"nuhtay"]
[null,null,null,null,null,null,null,"nuqnaq"]
[null,null,null,null,null,null,null,"om aljanazir"]
[null,null,null,null,null,null,null,"om doma"]
[null,null,null,null,null,null,null,"om qamas"]
[null,null,null,null,null,null,null,"omar bin alkhitab"]
[null,null,null,null,null,null,null,"othman bin affan"]
[null,null,null,null,null,null,null,"oulaa nasir"]
[null,null,null,null,null,null,null,"qabil"]
[null,null,null,null,null,null,null,"qafaduh"]
[null,null,null,null,null,null,null,"qafiluh"]
[null,null,null,null,null,null,null,"qahibuna"]
[null,null,null,null,null,null,null,"qalbaan"]
[null,null,null,null,null,null,null,"qalmashah"]
[null,null,null,null,null,null,null,"qalndul"]
[null,null,null,null,null,null,null,"qanbash alhamraa"]
[null,null,null,null,null,null,null,"qaraqis"]
[null,null,null,null,null,null,null,"qaroun"]
[null,null,null,null,null,null,null,"qaryt alabbasiya"]
[null,null,null,null,null,null,null,"qaryt alamyria"]
[null,null,null,null,null,null,null,"qaryt alaqaria"]
[null,null,null,null,null,null,null,"qaryt alawamir algharbia"]
[null,null,null,null,null,null,null,"qaryt albaranih"]
[null,null,null,null,null,null,null,"qaryt albaraniquh"]
[null,null,null,null,null,null,null,"qaryt albasatin"]
[null,null,null,null,null,null,null,"qaryt albasikia"]
[null,null,null,null,null,null,null,"qaryt albasrat"]
[null,null,null,null,null,null,null,"qaryt albayadiuh"]
[null,null,null,null,null,null,null,"qaryt aldahayima"]
[null,null,null,null,null,null,null,"qaryt aldiyabiuh"]
[null,null,null,null,null,null,null,"qaryt aleiwja"]
[null,null,null,null,null,null,null,"qaryt alezib"]
[null,null,null,null,null,null,null,"qaryt alfarasiuh"]
[null,null,null,null,null,null,null,"qaryt algamalia"]
[null,null,null,null,null,null,null,"qaryt alghanamih"]
[null,null,null,null,null,null,null,"qaryt alhisas"]
[null,null,null,null,null,null,null,"qaryt aljamalih"]
[null,null,null,null,null,null,null,"qaryt aljaradat"]
[null,null,null,null,null,null,null,"qaryt aljurn"]
[null,null,null,null,null,null,null,"qaryt alkanayis"]
[null,null,null,null,null,null,null,"qaryt alkhadruh"]
[null,null,null,null,null,null,null,"qaryt alkhamisa"]
[null,null,null,null,null,null,null,"qaryt alkom al ahmar"]
[null,null,null,null,null,null,null,"qaryt alkom al ahmar"]
[null,null,null,null,null,null,null,"qaryt almasaeid"]
[null,null,null,null,null,null,null,"qaryt almasawia"]
[null,null,null,null,null,null,null,"qaryt almufrijih"]
[null,null,null,null,null,null,null,"qaryt almuhammedia"]
[null,null,null,null,null,null,null,"qaryt almukhzin"]
[null,null,null,null,null,null,null,"qaryt almulaquh"]
[null,null,null,null,null,null,null,"qaryt alnaasirih"]
[null,null,null,null,null,null,null,"qaryt alpharaonia"]
[null,null,null,null,null,null,null,"qaryt alqasimih"]
[null,null,null,null,null,null,null,"qaryt alqawmisiuwn sharq"]
[null,null,null,null,null,null,null,"qaryt alqubaabat"]
[null,null,null,null,null,null,null,"qaryt alrahmenia"]
[null,null,null,null,null,null,null,"qaryt alraquh al baharia"]
[null,null,null,null,null,null,null,"qaryt alrifshuh"]
[null,null,null,null,null,null,null,"qaryt alsamarinuh"]
[null,null,null,null,null,null,null,"qaryt alsamata"]
[null,null,null,null,null,null,null,"qaryt alsharawna"]
[null,null,null,null,null,null,null,"qaryt alshawawla"]
[null,null,null,null,null,null,null,"qaryt altawayil algharbia"]
[null,null,null,null,null,null,null,"qaryt altawayil alsharqia"]
[null,null,null,null,null,null,null,"qaryt althaamina"]
[null,null,null,null,null,null,null,"qaryt alzawatina al baharia"]
[null,null,null,null,null,null,null,"qaryt alzaytun"]
[null,null,null,null,null,null,null,"qaryt alzuwk algharbia"]
[null,null,null,null,null,null,null,"qaryt awlad jabarih"]
[null,null,null,null,null,null,null,"qaryt awlad salama"]
[null,null,null,null,null,null,null,"qaryt aziz alayh alsalam"]
[null,null,null,null,null,null,null,"qaryt bani hamil"]
[null,null,null,null,null,null,null,"qaryt dnshal"]
[null,null,null,null,null,null,null,"qaryt kom dafshu"]
[null,null,null,null,null,null,null,"qasasin alsharq"]
[null,null,null,null,null,null,null,"qasir bikhanis"]
[null,null,null,null,null,null,null,"qasr albasil"]
[null,null,null,null,null,null,null,"qasr hur"]
[null,null,null,null,null,null,null,"qasruhidur"]
[null,null,null,null,null,null,null,"qaw gharb"]
[null,null,null,null,null,null,null,"qawmeniaabu  qir"]
[null,null,null,null,null,null,null,"qawmibanih luqin"]
[null,null,null,null,null,null,null,"qawris"]
[null,null,null,null,null,null,null,"qulhana"]
[null,null,null,null,null,null,null,"ramaluh alanjab"]
[null,null,null,null,null,null,null,"ras alkhalig"]
[null,null,null,null,null,null,null,"rawafie alissawia"]
[null,null,null,null,null,null,null,"rawaq"]
[null,null,null,null,null,null,null,"rawda"]
[null,null,null,null,null,null,null,"rawda khairy"]
[null,null,null,null,null,null,null,"rihana"]
[null,null,null,null,null,null,null,"rizqah almashariquh"]
[null,null,null,null,null,null,null,"rufaa"]
[null,null,null,null,null,null,null,"saaw"]
[null,null,null,null,null,null,null,"sabaa bahari"]
[null,null,null,null,null,null,null,"sabaa qibli"]
[null,null,null,null,null,null,null,"sabik al ahad"]
[null,null,null,null,null,null,null,"sabil alarab"]
[null,null,null,null,null,null,null,"sabil mukaa"]
[null,null,null,null,null,null,null,"sadas alomaraa"]
[null,null,null,null,null,null,null,"safanih"]
[null,null,null,null,null,null,null,"saflaq"]
[null,null,null,null,null,null,null,"sahaaly"]
[null,null,null,null,null,null,null,"sahil algawabir"]
[null,null,null,null,null,null,null,"sahwag"]
[null,null,null,null,null,null,null,"sakara"]
[null,null,null,null,null,null,null,"sakiat abu sharah"]
[null,null,null,null,null,null,null,"sakiat almunqada"]
[null,null,null,null,null,null,null,"sakiat moussa"]
[null,null,null,null,null,null,null,"salah alabd"]
[null,null,null,null,null,null,null,"salamun"]
[null,null,null,null,null,null,null,"salamun bahari"]
[null,null,null,null,null,null,null,"salamun qibli"]
[null,null,null,null,null,null,null,"salaqous"]
[null,null,null,null,null,null,null,"saleheyah"]
[null,null,null,null,null,null,null,"salu bahari"]
[null,null,null,null,null,null,null,"salu qibli"]
[null,null,null,null,null,null,null,"samadun"]
[null,null,null,null,null,null,null,"samakin algharb"]
[null,null,null,null,null,null,null,"samakin alsharq"]
[null,null,null,null,null,null,null,"samhud"]
[null,null,null,null,null,null,null,"samlaa"]
[null,null,null,null,null,null,null,"sanahur"]
[null,null,null,null,null,null,null,"sanajruj"]
[null,null,null,null,null,null,null,"sanataris"]
[null,null,null,null,null,null,null,"sanbu alkubra"]
[null,null,null,null,null,null,null,"sanibat"]
[null,null,null,null,null,null,null,"sanim"]
[null,null,null,null,null,null,null,"santes"]
[null,null,null,null,null,null,null,"sanudbisut"]
[null,null,null,null,null,null,null,"sarasmus"]
[null,null,null,null,null,null,null,"sarawah"]
[null,null,null,null,null,null,null,"sarawh"]
[null,null,null,null,null,null,null,"sariqana"]
[null,null,null,null,null,null,null,"saydi ghazaa"]
[null,null,null,null,null,null,null,"sayidna alkhidr"]
[null,null,null,null,null,null,null,"selim"]
[null,null,null,null,null,null,null,"shaalan"]
[null,null,null,null,null,null,null,"shaarawya"]
[null,null,null,null,null,null,null,"shadumuh"]
[null,null,null,null,null,null,null,"shalash"]
[null,null,null,null,null,null,null,"shaltut"]
[null,null,null,null,null,null,null,"sham albasl albaharia"]
[null,null,null,null,null,null,null,"sham albasl alqibilia"]
[null,null,null,null,null,null,null,"shama"]
[null,null,null,null,null,null,null,"shamayatis"]
[null,null,null,null,null,null,null,"shanahur"]
[null,null,null,null,null,null,null,"shanshur"]
[null,null,null,null,null,null,null,"shanwa ,kafr albadranah"]
[null,null,null,null,null,null,null,"shaqlaqil"]
[null,null,null,null,null,null,null,"Sharaawi"]
[null,null,null,null,null,null,null,"shararh"]
[null,null,null,null,null,null,null,"sharnub"]
[null,null,null,null,null,null,null,"sharona"]
[null,null,null,null,null,null,null,"sharshaba"]
[null,null,null,null,null,null,null,"Shashaey"]
[null,null,null,null,null,null,null,"shashtaa"]
[null,null,null,null,null,null,null,"shatanuf"]
[null,null,null,null,null,null,null,"sheikh Abdul Basit Abdul Samad"]
[null,null,null,null,null,null,null,"sheikh ammar"]
[null,null,null,null,null,null,null,"sheikh baraka"]
[null,null,null,null,null,null,null,"sheikh ebada"]
[null,null,null,null,null,null,null,"sheikh hussein"]
[null,null,null,null,null,null,null,"sheikh marzouq"]
[null,null,null,null,null,null,null,"sheikh marzouq"]
[null,null,null,null,null,null,null,"sheikh masaud"]
[null,null,null,null,null,null,null,"sheikh muhammed mutawalaa alsharawi"]
[null,null,null,null,null,null,null,"sheikh shabika"]
[null,null,null,null,null,null,null,"sheikh shibl"]
[null,null,null,null,null,null,null,"sheikh tami"]
[null,null,null,null,null,null,null,"sheikh youssif"]
[null,null,null,null,null,null,null,"sheikh ziad"]
[null,null,null,null,null,null,null,"shiakhat alqaryt 15"]
[null,null,null,null,null,null,null,"shinduil"]
[null,null,null,null,null,null,null,"shishaa"]
[null,null,null,null,null,null,null,"Shubra alyaman"]
[null,null,null,null,null,null,null,"Shubra milas"]
[null,null,null,null,null,null,null,"shushaay ,kafr atta"]
[null,null,null,null,null,null,null,"sift rashin"]
[null,null,null,null,null,null,null,"sinbu"]
[null,null,null,null,null,null,null,"siruh"]
[null,null,null,null,null,null,null,"solaimaneyah"]
[null,null,null,null,null,null,null,"soul"]
[null,null,null,null,null,null,null,"sufay"]
[null,null,null,null,null,null,null,"tafahuna alezib"]
[null,null,null,null,null,null,null,"tafnays"]
[null,null,null,null,null,null,null,"taftish than"]
[null,null,null,null,null,null,null,"Taha alamin"]
[null,null,null,null,null,null,null,"taha bush"]
[null,null,null,null,null,null,null,"tahaan albayshah"]
[null,null,null,null,null,null,null,"tahanub"]
[null,null,null,null,null,null,null,"tahuria"]
[null,null,null,null,null,null,null,"tahwaa"]
[null,null,null,null,null,null,null,"tal alzouki"]
[null,null,null,null,null,null,null,"tal awlad saraj"]
[null,null,null,null,null,null,null,"tala bani omaran"]
[null,null,null,null,null,null,null,"tala bani tim"]
[null,null,null,null,null,null,null,"talaeat dargham"]
[null,null,null,null,null,null,null,"talamubaat hulaq aljamal"]
[null,null,null,null,null,null,null,"tanaduh"]
[null,null,null,null,null,null,null,"tanuf"]
[null,null,null,null,null,null,null,"tarabina"]
[null,null,null,null,null,null,null,"tarawajaa"]
[null,null,null,null,null,null,null,"tareuh ghanim"]
[null,null,null,null,null,null,null,"tarshub"]
[null,null,null,null,null,null,null,"tasana"]
[null,null,null,null,null,null,null,"tatoun"]
[null,null,null,null,null,null,null,"tawfiq alhakim"]
[null,null,null,null,null,null,null,"toumas 3"]
[null,null,null,null,null,null,null,"tuh"]
[null,null,null,null,null,null,null,"tumabdi"]
[null,null,null,null,null,null,null,"Tumas weafia"]
[null,null,null,null,null,null,null,"tunsa bani malu"]
[null,null,null,null,null,null,null,"tunuh aljabal"]
[null,null,null,null,null,null,null,"tylya, ezibatah"]
[null,null,null,null,null,null,null,"waadi abadi 1"]
[null,null,null,null,null,null,null,"waadi alrayan"]
[null,null,null,null,null,null,null,"waburat almataeinih"]
[null,null,null,null,null,null,null,"wadi abadaa 3"]
[null,null,null,null,null,null,null,"Wadi alradisah"]
[null,null,null,null,null,null,null,"Wadi alsaayidih"]
[null,null,null,null,null,null,null,"Wadi eibadi"]
[null,null,null,null,null,null,null,"wadi eibadi 2"]
[null,null,null,null,null,null,null,"wadi salah aldiyn -(alnazaluh almustajiduh)"]
[null,null,null,null,null,null,null,"Wahat alamal"]
[null,null,null,null,null,null,null,"yacoub"]
[null,null,null,null,null,null,null,"zaafarana"]
[null,null,null,null,null,null,null,"zabara"]
[null,null,null,null,null,null,null,"zahra"]
[null,null,null,null,null,null,null,"zahraa al baharia"]
[null,null,null,null,null,null,null,"zahraa alqibliuh"]
[null,null,null,null,null,null,null,"zarnikh"]
[null,null,null,null,null,null,null,"zarqun"]
[null,null,null,null,null,null,null,"zawiat salim"]
[null,null,null,null,null,null,null,"zawiat saqr"]
[null,null,null,null,null,null,null,"zawih harun"]
[null,null,null,null,null,null,null,"zawyat albuqli"]
[null,null,null,null,null,null,null,"zawyat aljadami"]
[null,null,null,null,null,null,null,"zawyat alnaawih"]
[null,null,null,null,null,null,null,"zawyat alnaourah"]
[null,null,null,null,null,null,null,"zawyat biramasha"]
[null,null,null,null,null,null,null,"zawyat ghazal"]
[null,null,null,null,null,null,null,"zawyat hatim"]
[null,null,null,null,null,null,null,"zawyat naeim"]
[null,null,null,null,null,null,null,"ziraeuh 10"]
[null,null,null,null,null,null,null,"ziraeuh 14"]
[null,null,null,null,null,null,null,"ziraeuh 16"]